NUMERO_MANDATO;RIGA_MANDATO;QUIET;IMPORTO_RIGA;IMPORTO_MANDATO;BENEFICIARIO;CIG;TITOLO_PAGAMENTO;DATA_MANDATO;CAPITOLO;ARTICOLO;NUMERO_IMPEGNO;TITOLO;DESCR_TITOLO;LIVELLO_II;DESCR_LIVELLO_II;LIVELLO_III;DESCR_LIVELLO_III;LIVELLO_IV;DESCR_LIVELLO_IV;LIVELLO_V;DESCR_LIVELLO_V;DATA_PAG_EFF
1;1;0;102,78;102,78;MELE CARLA - ECONOMO COMUNALE; ;RIMBORSO ECONOMATO;09/01/2019;1043;0;213;1;Spese correnti;3;Acquisto di beni e servizi;1;Acquisto di beni;2;Altri beni di consumo;1;Carta, cancelleria e stampati;09/01/2019
2;1;0;510;510;MELE CARLA - ECONOMO COMUNALE; ;RIMBORSO ECONOMO;09/01/2019;1056;1;212;1;Spese correnti;3;Acquisto di beni e servizi;2;Acquisto di servizi;9;Manutenzione ordinaria e riparazioni;1;Manutenzione ordinaria e riparazioni di mezzi di trasporto ad uso civile, di sicurezza e ordine pubblico;09/01/2019
3;1;0;250;250;MELE CARLA - ECONOMO COMUNALE; ;RIMBORSO ECONOMO;09/01/2019;1056;0;211;1;Spese correnti;3;Acquisto di beni e servizi;1;Acquisto di beni;2;Altri beni di consumo;2;Carburanti, combustibili e lubrificanti;09/01/2019
4;1;0;150;150;MELE CARLA - ECONOMO COMUNALE; ;RIMBORSO ECONOMATO;09/01/2019;1002;0;214;1;Spese correnti;3;Acquisto di beni e servizi;2;Acquisto di servizi;99;Altri servizi;999;Altri servizi diversi n.a.c.;09/01/2019
5;1;0;1.481,58;1.481,58;PERSONALE DIVERSO (Confr.Allegato); ;STIPENDI MESE DI: GENNAIO 19;16/01/2019;1001;0;0;1;Spese correnti;3;Acquisto di beni e servizi;2;Acquisto di servizi;1;Organi e incarichi istituzionali dell'amministrazione;1;Organi istituzionali dell'amministrazione - Indennità;16/01/2019
34;1;0;27,84;167,04;OMISSIS; ;BORSE DI STUDIO A SOSTEGNO FAMIGLIE;17/01/2019;1426;0;216;1;Spese correnti;4;Trasferimenti correnti;2;Trasferimenti correnti a Famiglie;2;Interventi assistenziali;999;Altri assegni e sussidi assistenziali;17/01/2019
34;2;0;27,84;167,04;OMISSIS; ;BORSE DI STUDIO A SOSTEGNO FAMIGLIE;17/01/2019;1426;0;216;1;Spese correnti;4;Trasferimenti correnti;2;Trasferimenti correnti a Famiglie;2;Interventi assistenziali;999;Altri assegni e sussidi assistenziali;17/01/2019
34;3;0;27,84;167,04;OMISSIS; ;BORSE DI STUDIO A SOSTEGNO FAMIGLIE;17/01/2019;1426;0;216;1;Spese correnti;4;Trasferimenti correnti;2;Trasferimenti correnti a Famiglie;2;Interventi assistenziali;999;Altri assegni e sussidi assistenziali;17/01/2019
34;4;0;83,52;167,04;OMISSIS; ;BORSE DI STUDIO A SOSTEGNO FAMIGLIE;17/01/2019;1426;0;216;1;Spese correnti;4;Trasferimenti correnti;2;Trasferimenti correnti a Famiglie;2;Interventi assistenziali;999;Altri assegni e sussidi assistenziali;17/01/2019
35;1;0;55,68;83,52;OMISSIS; ;BORSE DI STUDIO A SOSTEGNO FAMIGLIE;17/01/2019;1426;0;216;1;Spese correnti;4;Trasferimenti correnti;2;Trasferimenti correnti a Famiglie;2;Interventi assistenziali;999;Altri assegni e sussidi assistenziali;17/01/2019
35;2;0;27,84;83,52;OMISSIS; ;BORSE DI STUDIO A SOSTEGNO FAMIGLIE;17/01/2019;1426;0;216;1;Spese correnti;4;Trasferimenti correnti;2;Trasferimenti correnti a Famiglie;2;Interventi assistenziali;999;Altri assegni e sussidi assistenziali;17/01/2019
36;1;0;55,68;167,04;OMISSIS; ;BORSE DI STUDIO A SOSTEGNO FAMIGLIE;17/01/2019;1426;0;216;1;Spese correnti;4;Trasferimenti correnti;2;Trasferimenti correnti a Famiglie;2;Interventi assistenziali;999;Altri assegni e sussidi assistenziali;17/01/2019
36;2;0;27,84;167,04;OMISSIS; ;BORSE DI STUDIO A SOSTEGNO FAMIGLIE;17/01/2019;1426;0;216;1;Spese correnti;4;Trasferimenti correnti;2;Trasferimenti correnti a Famiglie;2;Interventi assistenziali;999;Altri assegni e sussidi assistenziali;17/01/2019
36;3;0;55,68;167,04;OMISSIS; ;BORSE DI STUDIO A SOSTEGNO FAMIGLIE;17/01/2019;1426;0;216;1;Spese correnti;4;Trasferimenti correnti;2;Trasferimenti correnti a Famiglie;2;Interventi assistenziali;999;Altri assegni e sussidi assistenziali;17/01/2019
36;4;0;27,84;167,04;OMISSIS; ;BORSE DI STUDIO A SOSTEGNO FAMIGLIE;17/01/2019;1426;0;216;1;Spese correnti;4;Trasferimenti correnti;2;Trasferimenti correnti a Famiglie;2;Interventi assistenziali;999;Altri assegni e sussidi assistenziali;17/01/2019
37;1;0;27,84;194,88;OMISSIS; ;BORSE DI STUDIO A SOSTEGNO FAMIGLIE;17/01/2019;1426;0;216;1;Spese correnti;4;Trasferimenti correnti;2;Trasferimenti correnti a Famiglie;2;Interventi assistenziali;999;Altri assegni e sussidi assistenziali;17/01/2019
37;2;0;55,68;194,88;OMISSIS; ;BORSE DI STUDIO A SOSTEGNO FAMIGLIE;17/01/2019;1426;0;216;1;Spese correnti;4;Trasferimenti correnti;2;Trasferimenti correnti a Famiglie;2;Interventi assistenziali;999;Altri assegni e sussidi assistenziali;17/01/2019
37;3;0;55,68;194,88;OMISSIS; ;BORSE DI STUDIO A SOSTEGNO FAMIGLIE;17/01/2019;1426;0;216;1;Spese correnti;4;Trasferimenti correnti;2;Trasferimenti correnti a Famiglie;2;Interventi assistenziali;999;Altri assegni e sussidi assistenziali;17/01/2019
37;4;0;55,68;194,88;OMISSIS; ;BORSE DI STUDIO A SOSTEGNO FAMIGLIE;17/01/2019;1426;0;216;1;Spese correnti;4;Trasferimenti correnti;2;Trasferimenti correnti a Famiglie;2;Interventi assistenziali;999;Altri assegni e sussidi assistenziali;17/01/2019
38;1;0;27,84;111,36;OMISSIS; ;BORSE DI STUDIO A SOSTEGNO FAMIGLIE;17/01/2019;1426;0;216;1;Spese correnti;4;Trasferimenti correnti;2;Trasferimenti correnti a Famiglie;2;Interventi assistenziali;999;Altri assegni e sussidi assistenziali;17/01/2019
38;2;0;83,52;111,36;OMISSIS; ;BORSE DI STUDIO A SOSTEGNO FAMIGLIE;17/01/2019;1426;0;216;1;Spese correnti;4;Trasferimenti correnti;2;Trasferimenti correnti a Famiglie;2;Interventi assistenziali;999;Altri assegni e sussidi assistenziali;17/01/2019
39;1;0;169,37;611,68;OMISSIS; ;DIRITTO ALLO STUDIO;17/01/2019;1428;0;215;1;Spese correnti;4;Trasferimenti correnti;2;Trasferimenti correnti a Famiglie;2;Interventi assistenziali;999;Altri assegni e sussidi assistenziali;17/01/2019
39;2;0;172,5;611,68;OMISSIS; ;DIRITTO ALLO STUDIO;17/01/2019;1428;0;215;1;Spese correnti;4;Trasferimenti correnti;2;Trasferimenti correnti a Famiglie;2;Interventi assistenziali;999;Altri assegni e sussidi assistenziali;17/01/2019
39;3;0;175,91;611,68;OMISSIS; ;DIRITTO ALLO STUDIO;17/01/2019;1428;0;215;1;Spese correnti;4;Trasferimenti correnti;2;Trasferimenti correnti a Famiglie;2;Interventi assistenziali;999;Altri assegni e sussidi assistenziali;17/01/2019
39;4;0;93,9;611,68;OMISSIS; ;DIRITTO ALLO STUDIO;17/01/2019;1428;0;215;1;Spese correnti;4;Trasferimenti correnti;2;Trasferimenti correnti a Famiglie;2;Interventi assistenziali;999;Altri assegni e sussidi assistenziali;17/01/2019
40;1;0;55,47;354,73;OMISSIS; ;DIRITTO ALLO STUDIO;17/01/2019;1428;0;215;1;Spese correnti;4;Trasferimenti correnti;2;Trasferimenti correnti a Famiglie;2;Interventi assistenziali;999;Altri assegni e sussidi assistenziali;17/01/2019
40;2;0;240,35;354,73;OMISSIS; ;DIRITTO ALLO STUDIO;17/01/2019;1428;0;215;1;Spese correnti;4;Trasferimenti correnti;2;Trasferimenti correnti a Famiglie;2;Interventi assistenziali;999;Altri assegni e sussidi assistenziali;17/01/2019
40;3;0;22,71;354,73;OMISSIS; ;DIRITTO ALLO STUDIO;17/01/2019;1428;0;215;1;Spese correnti;4;Trasferimenti correnti;2;Trasferimenti correnti a Famiglie;2;Interventi assistenziali;999;Altri assegni e sussidi assistenziali;17/01/2019
40;4;0;36,2;354,73;OMISSIS; ;DIRITTO ALLO STUDIO;17/01/2019;1428;0;215;1;Spese correnti;4;Trasferimenti correnti;2;Trasferimenti correnti a Famiglie;2;Interventi assistenziali;999;Altri assegni e sussidi assistenziali;17/01/2019
41;1;0;198,51;621,3;OMISSIS; ;DIRITTO ALLO STUDIO;17/01/2019;1428;0;215;1;Spese correnti;4;Trasferimenti correnti;2;Trasferimenti correnti a Famiglie;2;Interventi assistenziali;999;Altri assegni e sussidi assistenziali;17/01/2019
41;2;0;60,61;621,3;OMISSIS; ;DIRITTO ALLO STUDIO;17/01/2019;1428;0;215;1;Spese correnti;4;Trasferimenti correnti;2;Trasferimenti correnti a Famiglie;2;Interventi assistenziali;999;Altri assegni e sussidi assistenziali;17/01/2019
41;3;0;130,75;621,3;OMISSIS; ;DIRITTO ALLO STUDIO;17/01/2019;1428;0;215;1;Spese correnti;4;Trasferimenti correnti;2;Trasferimenti correnti a Famiglie;2;Interventi assistenziali;999;Altri assegni e sussidi assistenziali;17/01/2019
41;4;0;160,5;621,3;OMISSIS; ;DIRITTO ALLO STUDIO;17/01/2019;1428;0;215;1;Spese correnti;4;Trasferimenti correnti;2;Trasferimenti correnti a Famiglie;2;Interventi assistenziali;999;Altri assegni e sussidi assistenziali;17/01/2019
41;5;0;70,93;621,3;OMISSIS; ;DIRITTO ALLO STUDIO;17/01/2019;1428;0;215;1;Spese correnti;4;Trasferimenti correnti;2;Trasferimenti correnti a Famiglie;2;Interventi assistenziali;999;Altri assegni e sussidi assistenziali;17/01/2019
42;1;0;2.718,00;2.718,00;A.I.A.S.; ;CONTRIBUZIONE PER UN UTENTE INSERITO IN STRUTTURA;17/01/2019;1934;0;78;1;Spese correnti;4;Trasferimenti correnti;4;Trasferimenti correnti a Istituzioni Sociali Private;1;Trasferimenti correnti a Istituzioni Sociali Private;1;Trasferimenti correnti a Istituzioni Sociali Private;17/01/2019
45;1;0;890,7;890,7;BOSINCO LUIGI;Z341F3FOCC;SALDO Fatt.n. FATTPA 2_19  del 03/01/2019 C.I.G.Z341F3FOCC;17/01/2019;1400;0;132;1;Spese correnti;3;Acquisto di beni e servizi;2;Acquisto di servizi;15;Contratti di servizio pubblico;2;Contratti di servizio di trasporto scolastico;17/01/2019
47;1;0;3.253,35;3.253,35;CHESSA ALESSANDRO;Z9A1CFA2F9;SALDO Fatt.n. FATTPA 3_19  del 09/01/2019 Vs.dare per manutenzione ordinaria impianto di illuminazione pubblica  ed impianti elettrici immobili comunali per i mesi di Novembre e Dicembre 2018;17/01/2019;1939;0;34;1;Spese correnti;3;Acquisto di beni e servizi;2;Acquisto di servizi;9;Manutenzione ordinaria e riparazioni;8;Manutenzione ordinaria e riparazioni di beni immobili;17/01/2019
48;1;0;1.829,59;1.829,59;OMESSO NOMINATIVO NEL RISPETTO DELLA NORMATIVA SULLA PROTEZIONE DATI PERSONALI;Z791CFA3E2;SALDO Fatt.n. FPA 1/19  del 09/01/2019 Lavori eseguiti c/o Vs Comune nel mese di Dicembre/2018;17/01/2019;1699;0;76;1;Spese correnti;3;Acquisto di beni e servizi;2;Acquisto di servizi;9;Manutenzione ordinaria e riparazioni;8;Manutenzione ordinaria e riparazioni di beni immobili;17/01/2019
49;1;0;1.352,67;1.352,67;CONSORZIO LA SORGENTE;7591934620;SALDO Fatt.n. 3/7  del 08/01/2019 VENDITA;17/01/2019;1902;0;180;1;Spese correnti;3;Acquisto di beni e servizi;2;Acquisto di servizi;15;Contratti di servizio pubblico;9;Contratti di servizio di assistenza sociale domiciliare;17/01/2019
50;1;0;2.289,21;2.289,21;SILODEMA SOCIETA' COOPERATIVA SOCIALE A R.L.;7587760F2B;SALDO Fatt.n. FATTPA 3_19  del 04/01/2019 Servizio mensa svolto nel mese di Dicembre   CIG 7585760F2B;17/01/2019;1352;3;135;1;Spese correnti;3;Acquisto di beni e servizi;2;Acquisto di servizi;15;Contratti di servizio pubblico;6;Contratti di servizio per le mense scolastiche;17/01/2019
51;1;0;55,4;55,4;TELECOM ITALIA SPA;ZD32272852;SALDO Fatt.n. 8R00247747  del 06/12/2018 1BIM 2019;17/01/2019;1043;12;172;1;Spese correnti;3;Acquisto di beni e servizi;2;Acquisto di servizi;5;Utenze e canoni;1;Telefonia fissa;17/01/2019
52;1;0;99,03;99,03;TELECOM ITALIA SPA;ZD32272852;SALDO Fatt.n. 8R00248728  del 06/12/2018 1BIM 2019;17/01/2019;1043;12;172;1;Spese correnti;3;Acquisto di beni e servizi;2;Acquisto di servizi;5;Utenze e canoni;1;Telefonia fissa;17/01/2019
53;1;0;85,96;85,96;TELECOM ITALIA SPA;ZD32272852;SALDO Fatt.n. 8R00248776  del 06/12/2018 1BIM 2019;18/01/2019;1043;12;172;1;Spese correnti;3;Acquisto di beni e servizi;2;Acquisto di servizi;5;Utenze e canoni;1;Telefonia fissa;18/01/2019
54;1;0;98,36;98,36;TELECOM ITALIA SPA;ZD32272852;SALDO Fatt.n. 8R00250210  del 06/12/2018 1BIM 2019;18/01/2019;1043;12;172;1;Spese correnti;3;Acquisto di beni e servizi;2;Acquisto di servizi;5;Utenze e canoni;1;Telefonia fissa;18/01/2019
55;1;0;87,61;87,61;TELECOM ITALIA SPA;ZD32272852;SALDO Fatt.n. 8R00248978  del 06/12/2018 1BIM 2019;18/01/2019;1043;12;172;1;Spese correnti;3;Acquisto di beni e servizi;2;Acquisto di servizi;5;Utenze e canoni;1;Telefonia fissa;18/01/2019
56;1;0;47,4;47,4;TELECOM ITALIA SPA;ZD32272852;SALDO Fatt.n. 8R00249003  del 06/12/2018 1BIM 2019;18/01/2019;1043;12;172;1;Spese correnti;3;Acquisto di beni e servizi;2;Acquisto di servizi;5;Utenze e canoni;1;Telefonia fissa;18/01/2019
57;1;0;36,42;36,42;TELECOM ITALIA SPA;ZD32272852;SALDO Fatt.n. 8R00248881  del 06/12/2018 1BIM 2019;18/01/2019;1366;0;174;1;Spese correnti;3;Acquisto di beni e servizi;2;Acquisto di servizi;5;Utenze e canoni;1;Telefonia fissa;18/01/2019
59;1;0;18.150,00;18.150,00;CICLAT TRASPORTI AMBIENTE SOC.COOP.;7,63E+14;SALDO Fatt.n. 855 -P  del 27/12/2018 FATTURA;18/01/2019;1738;0;137;1;Spese correnti;3;Acquisto di beni e servizi;2;Acquisto di servizi;15;Contratti di servizio pubblico;5;Contratti di servizio per il conferimento in discarica dei rifiuti;18/01/2019
60;1;0;1.829,49;1.829,49;OMESSO NOMINATIVO NEL RISPETTO DELLA NORMATIVA SULLA PROTEZIONE DATI PERSONALI;Z791CFA3E2;SALDO Fatt.n. FPA 10/18  del 19/12/2018;18/01/2019;1699;0;76;1;Spese correnti;3;Acquisto di beni e servizi;2;Acquisto di servizi;9;Manutenzione ordinaria e riparazioni;8;Manutenzione ordinaria e riparazioni di beni immobili;18/01/2019
61;1;0;329,01;329,01;ASARA MAURIZIO;ZD725234E3;SALDO Fatt.n. FATTPA 70_18  del 31/12/2018;18/01/2019;1600;0;171;1;Spese correnti;3;Acquisto di beni e servizi;2;Acquisto di servizi;18;Servizi sanitari;13;Acquisti di servizi di trasporto in emergenza e urgenza;18/01/2019
62;1;0;100,74;100,74;MINISTERO INTERNO; ;carte identita' mese di dicembre 218- comune laerru n. 6;18/01/2019;1039;0;238;1;Spese correnti;3;Acquisto di beni e servizi;2;Acquisto di servizi;16;Servizi amministrativi;999;Altre spese per servizi amministrativi;18/01/2019
63;1;0;15.410,70;15.410,70;COMUNE DI OSILO; ;TRASFERIMENTO SOMME SEGRETERIA;18/01/2019;1023;3;220;1;Spese correnti;4;Trasferimenti correnti;1;Trasferimenti correnti a Amministrazioni Pubbliche;2;Trasferimenti correnti a Amministrazioni Locali;3;Trasferimenti correnti a Comuni;18/01/2019
64;1;0;150;330;OMISSIS; ;reis;18/01/2019;1912;3;228;1;Spese correnti;4;Trasferimenti correnti;2;Trasferimenti correnti a Famiglie;2;Interventi assistenziali;999;Altri assegni e sussidi assistenziali;18/01/2019
64;2;0;60;330;OMISSIS; ;reis;18/01/2019;1912;3;228;1;Spese correnti;4;Trasferimenti correnti;2;Trasferimenti correnti a Famiglie;2;Interventi assistenziali;999;Altri assegni e sussidi assistenziali;18/01/2019
64;3;0;60;330;OMISSIS; ;reis;18/01/2019;1912;3;228;1;Spese correnti;4;Trasferimenti correnti;2;Trasferimenti correnti a Famiglie;2;Interventi assistenziali;999;Altri assegni e sussidi assistenziali;18/01/2019
64;4;0;60;330;OMISSIS; ;reis;18/01/2019;1912;3;228;1;Spese correnti;4;Trasferimenti correnti;2;Trasferimenti correnti a Famiglie;2;Interventi assistenziali;999;Altri assegni e sussidi assistenziali;18/01/2019
65;1;0;150;450;OMISSIS; ;reis;18/01/2019;1912;3;228;1;Spese correnti;4;Trasferimenti correnti;2;Trasferimenti correnti a Famiglie;2;Interventi assistenziali;999;Altri assegni e sussidi assistenziali;18/01/2019
65;2;0;90;450;OMISSIS; ;reis;18/01/2019;1912;3;228;1;Spese correnti;4;Trasferimenti correnti;2;Trasferimenti correnti a Famiglie;2;Interventi assistenziali;999;Altri assegni e sussidi assistenziali;18/01/2019
65;3;0;150;450;OMISSIS; ;reis;18/01/2019;1912;3;228;1;Spese correnti;4;Trasferimenti correnti;2;Trasferimenti correnti a Famiglie;2;Interventi assistenziali;999;Altri assegni e sussidi assistenziali;18/01/2019
65;4;0;60;450;OMISSIS; ;reis;18/01/2019;1912;3;228;1;Spese correnti;4;Trasferimenti correnti;2;Trasferimenti correnti a Famiglie;2;Interventi assistenziali;999;Altri assegni e sussidi assistenziali;18/01/2019
66;1;0;400;1.400,00;OMISSIS; ;reis;18/01/2019;1912;3;228;1;Spese correnti;4;Trasferimenti correnti;2;Trasferimenti correnti a Famiglie;2;Interventi assistenziali;999;Altri assegni e sussidi assistenziali;18/01/2019
66;2;0;400;1.400,00;OMISSIS; ;reis;18/01/2019;1912;3;228;1;Spese correnti;4;Trasferimenti correnti;2;Trasferimenti correnti a Famiglie;2;Interventi assistenziali;999;Altri assegni e sussidi assistenziali;18/01/2019
66;3;0;300;1.400,00;OMISSIS; ;reis;18/01/2019;1912;3;228;1;Spese correnti;4;Trasferimenti correnti;2;Trasferimenti correnti a Famiglie;2;Interventi assistenziali;999;Altri assegni e sussidi assistenziali;18/01/2019
66;4;0;300;1.400,00;OMISSIS; ;reis;18/01/2019;1912;3;228;1;Spese correnti;4;Trasferimenti correnti;2;Trasferimenti correnti a Famiglie;2;Interventi assistenziali;999;Altri assegni e sussidi assistenziali;18/01/2019
67;1;0;200;1.200,00;OMISSIS; ;reis;18/01/2019;1912;3;228;1;Spese correnti;4;Trasferimenti correnti;2;Trasferimenti correnti a Famiglie;2;Interventi assistenziali;999;Altri assegni e sussidi assistenziali;18/01/2019
67;2;0;300;1.200,00;OMISSIS; ;reis;18/01/2019;1912;3;228;1;Spese correnti;4;Trasferimenti correnti;2;Trasferimenti correnti a Famiglie;2;Interventi assistenziali;999;Altri assegni e sussidi assistenziali;18/01/2019
67;3;0;300;1.200,00;OMISSIS; ;reis;18/01/2019;1912;3;228;1;Spese correnti;4;Trasferimenti correnti;2;Trasferimenti correnti a Famiglie;2;Interventi assistenziali;999;Altri assegni e sussidi assistenziali;18/01/2019
67;4;0;400;1.200,00;OMISSIS; ;reis;18/01/2019;1912;3;228;1;Spese correnti;4;Trasferimenti correnti;2;Trasferimenti correnti a Famiglie;2;Interventi assistenziali;999;Altri assegni e sussidi assistenziali;18/01/2019
68;1;0;400;1.800,00;OMISSIS; ;reis;18/01/2019;1912;3;228;1;Spese correnti;4;Trasferimenti correnti;2;Trasferimenti correnti a Famiglie;2;Interventi assistenziali;999;Altri assegni e sussidi assistenziali;18/01/2019
68;2;0;400;1.800,00;OMISSIS; ;reis;18/01/2019;1912;3;228;1;Spese correnti;4;Trasferimenti correnti;2;Trasferimenti correnti a Famiglie;2;Interventi assistenziali;999;Altri assegni e sussidi assistenziali;18/01/2019
68;3;0;500;1.800,00;OMISSIS; ;reis;18/01/2019;1912;3;228;1;Spese correnti;4;Trasferimenti correnti;2;Trasferimenti correnti a Famiglie;2;Interventi assistenziali;999;Altri assegni e sussidi assistenziali;18/01/2019
68;4;0;500;1.800,00;OMISSIS; ;reis;18/01/2019;1912;3;228;1;Spese correnti;4;Trasferimenti correnti;2;Trasferimenti correnti a Famiglie;2;Interventi assistenziali;999;Altri assegni e sussidi assistenziali;18/01/2019
69;1;0;500;1.900,00;OMISSIS; ;reis;18/01/2019;1912;3;228;1;Spese correnti;4;Trasferimenti correnti;2;Trasferimenti correnti a Famiglie;2;Interventi assistenziali;999;Altri assegni e sussidi assistenziali;18/01/2019
69;2;0;500;1.900,00;OMISSIS; ;reis;18/01/2019;1912;3;228;1;Spese correnti;4;Trasferimenti correnti;2;Trasferimenti correnti a Famiglie;2;Interventi assistenziali;999;Altri assegni e sussidi assistenziali;18/01/2019
69;3;0;500;1.900,00;OMISSIS; ;reis;18/01/2019;1912;3;228;1;Spese correnti;4;Trasferimenti correnti;2;Trasferimenti correnti a Famiglie;2;Interventi assistenziali;999;Altri assegni e sussidi assistenziali;18/01/2019
69;4;0;400;1.900,00;OMISSIS; ;reis;18/01/2019;1912;3;228;1;Spese correnti;4;Trasferimenti correnti;2;Trasferimenti correnti a Famiglie;2;Interventi assistenziali;999;Altri assegni e sussidi assistenziali;18/01/2019
70;1;0;373,09;373,09;ABBANOA; ;SALDO Fatt.n. 0150020180032705700  del 13/12/2018 B/Bollettazione;18/01/2019;1386;2;2;1;Spese correnti;3;Acquisto di beni e servizi;2;Acquisto di servizi;5;Utenze e canoni;5;Acqua;18/01/2019
71;1;0;40,05;131,7;ABBANOA; ;SALDO Fatt.n. 0150020180032705600  del 13/12/2018 B/Bollettazione;18/01/2019;1043;5;3;1;Spese correnti;3;Acquisto di beni e servizi;2;Acquisto di servizi;5;Utenze e canoni;5;Acqua;18/01/2019
71;2;0;91,65;131,7;ABBANOA; ;SALDO Fatt.n. 0150020180032705500  del 13/12/2018 B/Bollettazione;18/01/2019;1043;5;3;1;Spese correnti;3;Acquisto di beni e servizi;2;Acquisto di servizi;5;Utenze e canoni;5;Acqua;18/01/2019
72;1;0;45,49;45,49;ABBANOA; ;SALDO Fatt.n. 0150020180032705800  del 13/12/2018 B/Bollettazione;18/01/2019;1829;1;130;1;Spese correnti;3;Acquisto di beni e servizi;1;Acquisto di beni;2;Altri beni di consumo;2;Carburanti, combustibili e lubrificanti;18/01/2019
74;1;0;2.116,80;2.116,80;AIRONE COOPERATIVA SOCIALE DI ASSISTENZA ONLUS;Z04256347E;SALDO Fatt.n. 370  del 31/12/2018 Fattura Cliente;23/01/2019;1899;1;141;1;Spese correnti;3;Acquisto di beni e servizi;2;Acquisto di servizi;11;Prestazioni professionali e specialistiche;999;Altre prestazioni professionali e specialistiche n.a.c.;23/01/2019
75;1;0;134,04;756,82;OMESSO NOMINATIVO NEL RISPETTO DELLA NORMATIVA SULLA PROTEZIONE DATI PERSONALI; ;L.162/98 DICEMBRE;23/01/2019;1927;3;87;1;Spese correnti;4;Trasferimenti correnti;2;Trasferimenti correnti a Famiglie;2;Interventi assistenziali;999;Altri assegni e sussidi assistenziali;23/01/2019
75;2;0;375;756,82;OMESSO NOMINATIVO NEL RISPETTO DELLA NORMATIVA SULLA PROTEZIONE DATI PERSONALI; ;L.162/98 DICEMBRE;23/01/2019;1927;3;87;1;Spese correnti;4;Trasferimenti correnti;2;Trasferimenti correnti a Famiglie;2;Interventi assistenziali;999;Altri assegni e sussidi assistenziali;23/01/2019
75;3;0;217,78;756,82;OMESSO NOMINATIVO NEL RISPETTO DELLA NORMATIVA SULLA PROTEZIONE DATI PERSONALI; ;L.162/98 DICEMBRE;23/01/2019;1927;3;87;1;Spese correnti;4;Trasferimenti correnti;2;Trasferimenti correnti a Famiglie;2;Interventi assistenziali;999;Altri assegni e sussidi assistenziali;23/01/2019
75;4;0;30;756,82;OMESSO NOMINATIVO NEL RISPETTO DELLA NORMATIVA SULLA PROTEZIONE DATI PERSONALI; ;L.162/98 DICEMBRE;23/01/2019;1927;3;87;1;Spese correnti;4;Trasferimenti correnti;2;Trasferimenti correnti a Famiglie;2;Interventi assistenziali;999;Altri assegni e sussidi assistenziali;23/01/2019
76;1;0;117,5;754,08;OMESSO NOMINATIVO NEL RISPETTO DELLA NORMATIVA SULLA PROTEZIONE DATI PERSONALI; ;L.162/98 DICEMBRE;23/01/2019;1927;3;87;1;Spese correnti;4;Trasferimenti correnti;2;Trasferimenti correnti a Famiglie;2;Interventi assistenziali;999;Altri assegni e sussidi assistenziali;23/01/2019
76;2;0;189,63;754,08;OMESSO NOMINATIVO NEL RISPETTO DELLA NORMATIVA SULLA PROTEZIONE DATI PERSONALI; ;L.162/98 DICEMBRE;23/01/2019;1927;3;87;1;Spese correnti;4;Trasferimenti correnti;2;Trasferimenti correnti a Famiglie;2;Interventi assistenziali;999;Altri assegni e sussidi assistenziali;23/01/2019
76;3;0;200,36;754,08;OMESSO NOMINATIVO NEL RISPETTO DELLA NORMATIVA SULLA PROTEZIONE DATI PERSONALI; ;L.162/98 DICEMBRE;23/01/2019;1927;3;87;1;Spese correnti;4;Trasferimenti correnti;2;Trasferimenti correnti a Famiglie;2;Interventi assistenziali;999;Altri assegni e sussidi assistenziali;23/01/2019
76;4;0;155,73;754,08;OMESSO NOMINATIVO NEL RISPETTO DELLA NORMATIVA SULLA PROTEZIONE DATI PERSONALI; ;L.162/98 DICEMBRE;23/01/2019;1927;3;87;1;Spese correnti;4;Trasferimenti correnti;2;Trasferimenti correnti a Famiglie;2;Interventi assistenziali;999;Altri assegni e sussidi assistenziali;23/01/2019
76;5;0;90,86;754,08;OMESSO NOMINATIVO NEL RISPETTO DELLA NORMATIVA SULLA PROTEZIONE DATI PERSONALI; ;L.162/98 DICEMBRE;23/01/2019;1927;3;87;1;Spese correnti;4;Trasferimenti correnti;2;Trasferimenti correnti a Famiglie;2;Interventi assistenziali;999;Altri assegni e sussidi assistenziali;23/01/2019
77;1;0;164,41;1.340,39;OMESSO NOMINATIVO NEL RISPETTO DELLA NORMATIVA SULLA PROTEZIONE DATI PERSONALI; ;L.162/98 DICEMBRE;23/01/2019;1927;3;87;1;Spese correnti;4;Trasferimenti correnti;2;Trasferimenti correnti a Famiglie;2;Interventi assistenziali;999;Altri assegni e sussidi assistenziali;23/01/2019
77;2;0;321,47;1.340,39;OMESSO NOMINATIVO NEL RISPETTO DELLA NORMATIVA SULLA PROTEZIONE DATI PERSONALI; ;L.162/98 DICEMBRE;23/01/2019;1927;3;87;1;Spese correnti;4;Trasferimenti correnti;2;Trasferimenti correnti a Famiglie;2;Interventi assistenziali;999;Altri assegni e sussidi assistenziali;23/01/2019
77;3;0;503;1.340,39;OMESSO NOMINATIVO NEL RISPETTO DELLA NORMATIVA SULLA PROTEZIONE DATI PERSONALI; ;L.162/98 DICEMBRE;23/01/2019;1927;3;87;1;Spese correnti;4;Trasferimenti correnti;2;Trasferimenti correnti a Famiglie;2;Interventi assistenziali;999;Altri assegni e sussidi assistenziali;23/01/2019
77;4;0;209,94;1.340,39;OMESSO NOMINATIVO NEL RISPETTO DELLA NORMATIVA SULLA PROTEZIONE DATI PERSONALI; ;L.162/98 DICEMBRE;23/01/2019;1927;3;87;1;Spese correnti;4;Trasferimenti correnti;2;Trasferimenti correnti a Famiglie;2;Interventi assistenziali;999;Altri assegni e sussidi assistenziali;23/01/2019
77;5;0;141,57;1.340,39;OMESSO NOMINATIVO NEL RISPETTO DELLA NORMATIVA SULLA PROTEZIONE DATI PERSONALI; ;L.162/98 DICEMBRE;23/01/2019;1927;3;87;1;Spese correnti;4;Trasferimenti correnti;2;Trasferimenti correnti a Famiglie;2;Interventi assistenziali;999;Altri assegni e sussidi assistenziali;23/01/2019
78;1;0;181,83;1.779,01;OMESSO NOMINATIVO NEL RISPETTO DELLA NORMATIVA SULLA PROTEZIONE DATI PERSONALI; ;L.162/98 DICEMBRE;23/01/2019;1927;3;87;1;Spese correnti;4;Trasferimenti correnti;2;Trasferimenti correnti a Famiglie;2;Interventi assistenziali;999;Altri assegni e sussidi assistenziali;23/01/2019
78;2;0;403,9;1.779,01;OMESSO NOMINATIVO NEL RISPETTO DELLA NORMATIVA SULLA PROTEZIONE DATI PERSONALI; ;L.162/98 DICEMBRE;23/01/2019;1927;3;87;1;Spese correnti;4;Trasferimenti correnti;2;Trasferimenti correnti a Famiglie;2;Interventi assistenziali;999;Altri assegni e sussidi assistenziali;23/01/2019
78;3;0;279,22;1.779,01;OMESSO NOMINATIVO NEL RISPETTO DELLA NORMATIVA SULLA PROTEZIONE DATI PERSONALI; ;L.162/98 DICEMBRE;23/01/2019;1927;3;87;1;Spese correnti;4;Trasferimenti correnti;2;Trasferimenti correnti a Famiglie;2;Interventi assistenziali;999;Altri assegni e sussidi assistenziali;23/01/2019
78;4;0;165,6;1.779,01;OMESSO NOMINATIVO NEL RISPETTO DELLA NORMATIVA SULLA PROTEZIONE DATI PERSONALI; ;L.162/98 DICEMBRE;23/01/2019;1927;3;87;1;Spese correnti;4;Trasferimenti correnti;2;Trasferimenti correnti a Famiglie;2;Interventi assistenziali;999;Altri assegni e sussidi assistenziali;23/01/2019
78;5;0;748,46;1.779,01;OMESSO NOMINATIVO NEL RISPETTO DELLA NORMATIVA SULLA PROTEZIONE DATI PERSONALI; ;L.162/98 DICEMBRE;23/01/2019;1927;3;87;1;Spese correnti;4;Trasferimenti correnti;2;Trasferimenti correnti a Famiglie;2;Interventi assistenziali;999;Altri assegni e sussidi assistenziali;23/01/2019
79;1;0;166,4;2.172,04;OMESSO NOMINATIVO NEL RISPETTO DELLA NORMATIVA SULLA PROTEZIONE DATI PERSONALI; ;L.162/98 DICEMBRE;23/01/2019;1927;3;87;1;Spese correnti;4;Trasferimenti correnti;2;Trasferimenti correnti a Famiglie;2;Interventi assistenziali;999;Altri assegni e sussidi assistenziali;23/01/2019
79;2;0;200,75;2.172,04;OMESSO NOMINATIVO NEL RISPETTO DELLA NORMATIVA SULLA PROTEZIONE DATI PERSONALI; ;L.162/98 DICEMBRE;23/01/2019;1927;3;87;1;Spese correnti;4;Trasferimenti correnti;2;Trasferimenti correnti a Famiglie;2;Interventi assistenziali;999;Altri assegni e sussidi assistenziali;23/01/2019
79;3;0;835,11;2.172,04;OMESSO NOMINATIVO NEL RISPETTO DELLA NORMATIVA SULLA PROTEZIONE DATI PERSONALI; ;L.162/98 DICEMBRE;23/01/2019;1927;3;87;1;Spese correnti;4;Trasferimenti correnti;2;Trasferimenti correnti a Famiglie;2;Interventi assistenziali;999;Altri assegni e sussidi assistenziali;23/01/2019
79;4;0;590,52;2.172,04;OMESSO NOMINATIVO NEL RISPETTO DELLA NORMATIVA SULLA PROTEZIONE DATI PERSONALI; ;L.162/98 DICEMBRE;23/01/2019;1927;3;87;1;Spese correnti;4;Trasferimenti correnti;2;Trasferimenti correnti a Famiglie;2;Interventi assistenziali;999;Altri assegni e sussidi assistenziali;23/01/2019
79;5;0;379,26;2.172,04;OMESSO NOMINATIVO NEL RISPETTO DELLA NORMATIVA SULLA PROTEZIONE DATI PERSONALI; ;L.162/98 DICEMBRE;23/01/2019;1927;3;87;1;Spese correnti;4;Trasferimenti correnti;2;Trasferimenti correnti a Famiglie;2;Interventi assistenziali;999;Altri assegni e sussidi assistenziali;23/01/2019
80;1;0;367,36;1.602,23;OMESSO NOMINATIVO NEL RISPETTO DELLA NORMATIVA SULLA PROTEZIONE DATI PERSONALI; ;L.162/98 DICEMBRE;23/01/2019;1927;3;87;1;Spese correnti;4;Trasferimenti correnti;2;Trasferimenti correnti a Famiglie;2;Interventi assistenziali;999;Altri assegni e sussidi assistenziali;23/01/2019
80;2;0;330,75;1.602,23;OMESSO NOMINATIVO NEL RISPETTO DELLA NORMATIVA SULLA PROTEZIONE DATI PERSONALI; ;L.162/98 DICEMBRE;23/01/2019;1927;3;87;1;Spese correnti;4;Trasferimenti correnti;2;Trasferimenti correnti a Famiglie;2;Interventi assistenziali;999;Altri assegni e sussidi assistenziali;23/01/2019
80;3;0;276,92;1.602,23;OMESSO NOMINATIVO NEL RISPETTO DELLA NORMATIVA SULLA PROTEZIONE DATI PERSONALI; ;L.162/98 DICEMBRE;23/01/2019;1927;3;87;1;Spese correnti;4;Trasferimenti correnti;2;Trasferimenti correnti a Famiglie;2;Interventi assistenziali;999;Altri assegni e sussidi assistenziali;23/01/2019
80;4;0;465,92;1.602,23;OMESSO NOMINATIVO NEL RISPETTO DELLA NORMATIVA SULLA PROTEZIONE DATI PERSONALI; ;L.162/98 DICEMBRE;23/01/2019;1927;3;87;1;Spese correnti;4;Trasferimenti correnti;2;Trasferimenti correnti a Famiglie;2;Interventi assistenziali;999;Altri assegni e sussidi assistenziali;23/01/2019
80;5;0;161,28;1.602,23;OMESSO NOMINATIVO NEL RISPETTO DELLA NORMATIVA SULLA PROTEZIONE DATI PERSONALI; ;L.162/98 DICEMBRE;23/01/2019;1927;3;87;1;Spese correnti;4;Trasferimenti correnti;2;Trasferimenti correnti a Famiglie;2;Interventi assistenziali;999;Altri assegni e sussidi assistenziali;23/01/2019
81;1;0;259,84;835,58;OMESSO NOMINATIVO NEL RISPETTO DELLA NORMATIVA SULLA PROTEZIONE DATI PERSONALI; ;L.162/98 DICEMBRE;23/01/2019;1927;3;87;1;Spese correnti;4;Trasferimenti correnti;2;Trasferimenti correnti a Famiglie;2;Interventi assistenziali;999;Altri assegni e sussidi assistenziali;23/01/2019
81;2;0;433,13;835,58;OMESSO NOMINATIVO NEL RISPETTO DELLA NORMATIVA SULLA PROTEZIONE DATI PERSONALI; ;L.162/98 DICEMBRE;23/01/2019;1927;3;87;1;Spese correnti;4;Trasferimenti correnti;2;Trasferimenti correnti a Famiglie;2;Interventi assistenziali;999;Altri assegni e sussidi assistenziali;23/01/2019
81;3;0;142,61;835,58;OMESSO NOMINATIVO NEL RISPETTO DELLA NORMATIVA SULLA PROTEZIONE DATI PERSONALI; ;L.162/98 DICEMBRE;23/01/2019;1927;3;87;1;Spese correnti;4;Trasferimenti correnti;2;Trasferimenti correnti a Famiglie;2;Interventi assistenziali;999;Altri assegni e sussidi assistenziali;23/01/2019
82;1;0;2.808,60;2.808,60;A.I.A.S.; ;CONTRIBUZIONE PER UN UTENTE INSERITO IN STRUTTURA dicembre;23/01/2019;1934;0;78;1;Spese correnti;4;Trasferimenti correnti;4;Trasferimenti correnti a Istituzioni Sociali Private;1;Trasferimenti correnti a Istituzioni Sociali Private;1;Trasferimenti correnti a Istituzioni Sociali Private;23/01/2019
83;1;0;1.013,69;1.013,69;OMESSO NOMINATIVO NEL RISPETTO DELLA NORMATIVA SULLA PROTEZIONE DATI PERSONALI; ;L.162/98 DICEMBRE;24/01/2019;1927;3;87;1;Spese correnti;4;Trasferimenti correnti;2;Trasferimenti correnti a Famiglie;2;Interventi assistenziali;999;Altri assegni e sussidi assistenziali;24/01/2019
85;1;0;300;300;OMESSO NOMINATIVO NEL RISPETTO DELLA NORMATIVA SULLA PROTEZIONE DATI PERSONALI; ;contributo straordinario;28/01/2019;1935;0;6;1;Spese correnti;4;Trasferimenti correnti;2;Trasferimenti correnti a Famiglie;2;Interventi assistenziali;999;Altri assegni e sussidi assistenziali;28/01/2019
87;1;0;1.814,00;1.814,00;SARA ASSICURAZIONI -PIERO TOLU;Z1C26D1375;assicurazione scuolabus;28/01/2019;1056;3;7;1;Spese correnti;10;Altre spese correnti;4;Premi di assicurazione;1;Premi di assicurazione contro i danni;3;Premi di assicurazione per responsabilità civile verso terzi;28/01/2019
89;1;0;104,22;104,22;OMESSO NOMINATIVO NEL RISPETTO DELLA NORMATIVA SULLA PROTEZIONE DATI PERSONALI; ;L.162/98 DICEMBRE;28/01/2019;1927;3;87;1;Spese correnti;4;Trasferimenti correnti;2;Trasferimenti correnti a Famiglie;2;Interventi assistenziali;999;Altri assegni e sussidi assistenziali;28/01/2019
90;1;0;300;300;OMESSO NOMINATIVO NEL RISPETTO DELLA NORMATIVA SULLA PROTEZIONE DATI PERSONALI; ;contributo sraordinario;31/01/2019;1935;0;10;1;Spese correnti;4;Trasferimenti correnti;2;Trasferimenti correnti a Famiglie;2;Interventi assistenziali;999;Altri assegni e sussidi assistenziali;31/01/2019
91;1;0;300;300;OMESSO NOMINATIVO NEL RISPETTO DELLA NORMATIVA SULLA PROTEZIONE DATI PERSONALI; ;contributo straordinario;01/02/2019;1935;0;11;1;Spese correnti;4;Trasferimenti correnti;2;Trasferimenti correnti a Famiglie;2;Interventi assistenziali;999;Altri assegni e sussidi assistenziali;01/02/2019
92;1;0;682;682;UNIPOL SAI AGENTI BECCU MARCO- TERROSU MASSIMILIANO;Z5826CFB6E;ASSICURAZIONE AUTOMEZZO COMUNALE LAND ROVER;01/02/2019;1056;3;12;1;Spese correnti;10;Altre spese correnti;4;Premi di assicurazione;1;Premi di assicurazione contro i danni;3;Premi di assicurazione per responsabilità civile verso terzi;01/02/2019
93;1;0;112,8;281,64;OMISSIS; ;LEGGI SETTORE;01/02/2019;1906;0;194;1;Spese correnti;4;Trasferimenti correnti;2;Trasferimenti correnti a Famiglie;2;Interventi assistenziali;999;Altri assegni e sussidi assistenziali;01/02/2019
93;2;0;42,12;281,64;OMISSIS; ;LEGGI SETTORE;01/02/2019;1906;0;194;1;Spese correnti;4;Trasferimenti correnti;2;Trasferimenti correnti a Famiglie;2;Interventi assistenziali;999;Altri assegni e sussidi assistenziali;01/02/2019
93;3;0;126,72;281,64;OMISSIS; ;LEGGI SETTORE;01/02/2019;1906;0;194;1;Spese correnti;4;Trasferimenti correnti;2;Trasferimenti correnti a Famiglie;2;Interventi assistenziali;999;Altri assegni e sussidi assistenziali;01/02/2019
94;1;0;42,12;42,12;OMISSIS; ;LEGGI SETTORE 9/04;01/02/2019;1906;0;194;1;Spese correnti;4;Trasferimenti correnti;2;Trasferimenti correnti a Famiglie;2;Interventi assistenziali;999;Altri assegni e sussidi assistenziali;01/02/2019
95;1;0;1.158,30;1.158,30;OMISSIS; ;LEGGI SETTORE;01/02/2019;1906;0;193;1;Spese correnti;4;Trasferimenti correnti;2;Trasferimenti correnti a Famiglie;2;Interventi assistenziali;999;Altri assegni e sussidi assistenziali;01/02/2019
97;1;0;394,38;394,38;TURRA GAVINA; ;rimborso spese viaggio novembre dicembre;04/02/2019;1024;3;206;1;Spese correnti;3;Acquisto di beni e servizi;2;Acquisto di servizi;2;Organizzazione eventi, pubblicita` e servizi per trasferta;1;Rimborso per viaggio e trasloco;04/02/2019
98;1;0;105,45;105,45;POSTE ITALIANE;Z2E22DE889;SALDO Fatt.n. 8719032459  del 05/02/2019 Fattura Elettronica relativa all'Identificativo Rendiconto 2100305231;07/02/2019;1043;11;51;1;Spese correnti;3;Acquisto di beni e servizi;2;Acquisto di servizi;16;Servizi amministrativi;2;Spese postali;07/02/2019
99;1;0;496,01;496,01;POSTE ITALIANE;Z2E22DE889;ACCONTO Fatt.n. 8719031260  del 04/02/2019 Fattura Elettronica relativa all'Identificativo Rendiconto 2100679774;07/02/2019;1043;11;51;1;Spese correnti;3;Acquisto di beni e servizi;2;Acquisto di servizi;16;Servizi amministrativi;2;Spese postali;07/02/2019
100;1;0;1.040,10;1.040,10;POSTE ITALIANE;ZDB270E28A;SALDO Fatt.n. 8719031260  del 04/02/2019 Fattura Elettronica relativa all'Identificativo Rendiconto 2100679774;07/02/2019;1043;11;13;1;Spese correnti;3;Acquisto di beni e servizi;2;Acquisto di servizi;16;Servizi amministrativi;2;Spese postali;07/02/2019
101;1;0;580,66;580,66;GLOBAL POWER;Z6E2234C3D;SALDO Fatt.n. V0/151240  del 01/12/2018 Fattura Energia Elettrica;07/02/2019;1937;1;179;1;Spese correnti;3;Acquisto di beni e servizi;2;Acquisto di servizi;5;Utenze e canoni;4;Energia elettrica;07/02/2019
102;1;0;262,75;262,75;GLOBAL POWER;Z6E2234C3D;SALDO Fatt.n. V0/151241  del 01/12/2018 Fattura Energia Elettrica;07/02/2019;1937;1;179;1;Spese correnti;3;Acquisto di beni e servizi;2;Acquisto di servizi;5;Utenze e canoni;4;Energia elettrica;07/02/2019
103;1;0;18.150,00;18.150,00;CICLAT TRASPORTI AMBIENTE SOC.COOP.;7,63E+14;SALDO Fatt.n. 25 -P  del 31/01/2019 FATTURA;07/02/2019;1738;0;14;1;Spese correnti;3;Acquisto di beni e servizi;2;Acquisto di servizi;15;Contratti di servizio pubblico;5;Contratti di servizio per il conferimento in discarica dei rifiuti;07/02/2019
104;1;0;2.788,45;2.788,45;GLOBAL POWER;Z6E2234C3D;ACCONTO Fatt.n. V0/8331  del 02/01/2019 Fattura Energia Elettrica;08/02/2019;1937;1;179;1;Spese correnti;3;Acquisto di beni e servizi;2;Acquisto di servizi;5;Utenze e canoni;4;Energia elettrica;08/02/2019
105;1;0;613,46;613,46;GLOBAL POWER;Z6E2234C3D;SALDO Fatt.n. V0/8331  del 02/01/2019 Fattura Energia Elettrica;08/02/2019;1937;1;22;1;Spese correnti;3;Acquisto di beni e servizi;2;Acquisto di servizi;5;Utenze e canoni;4;Energia elettrica;08/02/2019
106;1;0;1.053,89;1.053,89;GLOBAL POWER;Z6E2234C3D;ACCONTO Fatt.n. V0/8332  del 02/01/2019 Fattura Energia Elettrica;08/02/2019;1937;1;22;1;Spese correnti;3;Acquisto di beni e servizi;2;Acquisto di servizi;5;Utenze e canoni;4;Energia elettrica;08/02/2019
107;1;0;231,86;231,86;GLOBAL POWER;Z6E2234C3D;SALDO Fatt.n. V0/8332  del 02/01/2019 Fattura Energia Elettrica;08/02/2019;1937;1;22;1;Spese correnti;3;Acquisto di beni e servizi;2;Acquisto di servizi;5;Utenze e canoni;4;Energia elettrica;08/02/2019
108;1;0;730,22;730,22;TESTONI SRL;ZBC259C2F0;SALDO Fatt.n. 700521  del 22/01/2019 Consegna a: BIBLIOTECA VIA GRAZIA DELEDDA 4 LAERRU 07030 SS;08/02/2019;1476;3;15;1;Spese correnti;3;Acquisto di beni e servizi;1;Acquisto di beni;2;Altri beni di consumo;2;Carburanti, combustibili e lubrificanti;08/02/2019
109;1;0;1.566,70;1.566,70;TESTONI SRL;ZBC259C2F0;SALDO Fatt.n. 700520  del 22/01/2019 Consegna a: SCUOLA MATERNA VIA GRAZIA DELEDDA 4 LAERRU 07030 SS;08/02/2019;1344;1;16;1;Spese correnti;3;Acquisto di beni e servizi;1;Acquisto di beni;2;Altri beni di consumo;2;Carburanti, combustibili e lubrificanti;08/02/2019
110;1;0;1.044,81;1.044,81;TESTONI SRL;ZBC259C2F0;SALDO Fatt.n. 700519  del 22/01/2019 Consegna a: COMUNE DI LAERRU VIA GRAZIA DELEDDA 4 LAERRU 07030 SS;08/02/2019;1043;0;17;1;Spese correnti;3;Acquisto di beni e servizi;1;Acquisto di beni;2;Altri beni di consumo;2;Carburanti, combustibili e lubrificanti;08/02/2019
111;1;0;1.626,67;1.626,67;CHESSA ALESSANDRO;Z9A1CFA2F9;SALDO Fatt.n. FATTPA 17_19  del 01/02/2019 Vs.dare per manutenzione ordinaria impianto di illuminazione pubblica ed impianti elettrici immobili comunali GENNAIO 2019;08/02/2019;1939;0;1;1;Spese correnti;3;Acquisto di beni e servizi;2;Acquisto di servizi;9;Manutenzione ordinaria e riparazioni;8;Manutenzione ordinaria e riparazioni di beni immobili;08/02/2019
112;1;0;999;999;OMISSIS; ;VIAGGI;08/02/2019;1906;0;193;1;Spese correnti;4;Trasferimenti correnti;2;Trasferimenti correnti a Famiglie;2;Interventi assistenziali;999;Altri assegni e sussidi assistenziali;08/02/2019
113;1;0;412,02;412,02;OMISSIS; ;l.27/83;12/02/2019;1906;0;93;1;Spese correnti;4;Trasferimenti correnti;2;Trasferimenti correnti a Famiglie;2;Interventi assistenziali;999;Altri assegni e sussidi assistenziali;12/02/2019
114;1;0;117,5;761,02;OMESSO NOMINATIVO NEL RISPETTO DELLA NORMATIVA SULLA PROTEZIONE DATI PERSONALI; ;l.162/98 gennaio;12/02/2019;1927;3;19;1;Spese correnti;4;Trasferimenti correnti;2;Trasferimenti correnti a Famiglie;2;Interventi assistenziali;999;Altri assegni e sussidi assistenziali;12/02/2019
114;2;0;83,72;761,02;OMESSO NOMINATIVO NEL RISPETTO DELLA NORMATIVA SULLA PROTEZIONE DATI PERSONALI; ;l.162/98 gennaio;12/02/2019;1927;3;19;1;Spese correnti;4;Trasferimenti correnti;2;Trasferimenti correnti a Famiglie;2;Interventi assistenziali;999;Altri assegni e sussidi assistenziali;12/02/2019
114;3;0;375;761,02;OMESSO NOMINATIVO NEL RISPETTO DELLA NORMATIVA SULLA PROTEZIONE DATI PERSONALI; ;l.162/98 gennaio;12/02/2019;1927;3;19;1;Spese correnti;4;Trasferimenti correnti;2;Trasferimenti correnti a Famiglie;2;Interventi assistenziali;999;Altri assegni e sussidi assistenziali;12/02/2019
114;4;0;154,8;761,02;OMESSO NOMINATIVO NEL RISPETTO DELLA NORMATIVA SULLA PROTEZIONE DATI PERSONALI; ;l.162/98 gennaio;12/02/2019;1927;3;19;1;Spese correnti;4;Trasferimenti correnti;2;Trasferimenti correnti a Famiglie;2;Interventi assistenziali;999;Altri assegni e sussidi assistenziali;12/02/2019
114;5;0;30;761,02;OMESSO NOMINATIVO NEL RISPETTO DELLA NORMATIVA SULLA PROTEZIONE DATI PERSONALI; ;l.162/98 gennaio;12/02/2019;1927;3;19;1;Spese correnti;4;Trasferimenti correnti;2;Trasferimenti correnti a Famiglie;2;Interventi assistenziali;999;Altri assegni e sussidi assistenziali;12/02/2019
115;1;0;125,63;721,19;OMESSO NOMINATIVO NEL RISPETTO DELLA NORMATIVA SULLA PROTEZIONE DATI PERSONALI; ;l.162/98 gennaio;12/02/2019;1927;3;19;1;Spese correnti;4;Trasferimenti correnti;2;Trasferimenti correnti a Famiglie;2;Interventi assistenziali;999;Altri assegni e sussidi assistenziali;12/02/2019
115;2;0;126;721,19;OMESSO NOMINATIVO NEL RISPETTO DELLA NORMATIVA SULLA PROTEZIONE DATI PERSONALI; ;l.162/98 gennaio;12/02/2019;1927;3;19;1;Spese correnti;4;Trasferimenti correnti;2;Trasferimenti correnti a Famiglie;2;Interventi assistenziali;999;Altri assegni e sussidi assistenziali;12/02/2019
115;3;0;129,4;721,19;OMESSO NOMINATIVO NEL RISPETTO DELLA NORMATIVA SULLA PROTEZIONE DATI PERSONALI; ;l.162/98 gennaio;12/02/2019;1927;3;19;1;Spese correnti;4;Trasferimenti correnti;2;Trasferimenti correnti a Famiglie;2;Interventi assistenziali;999;Altri assegni e sussidi assistenziali;12/02/2019
115;4;0;250,16;721,19;OMESSO NOMINATIVO NEL RISPETTO DELLA NORMATIVA SULLA PROTEZIONE DATI PERSONALI; ;l.162/98 gennaio;12/02/2019;1927;3;19;1;Spese correnti;4;Trasferimenti correnti;2;Trasferimenti correnti a Famiglie;2;Interventi assistenziali;999;Altri assegni e sussidi assistenziali;12/02/2019
115;5;0;90;721,19;OMESSO NOMINATIVO NEL RISPETTO DELLA NORMATIVA SULLA PROTEZIONE DATI PERSONALI; ;l.162/98 gennaio;12/02/2019;1927;3;19;1;Spese correnti;4;Trasferimenti correnti;2;Trasferimenti correnti a Famiglie;2;Interventi assistenziali;999;Altri assegni e sussidi assistenziali;12/02/2019
116;1;0;212;1.890,81;OMESSO NOMINATIVO NEL RISPETTO DELLA NORMATIVA SULLA PROTEZIONE DATI PERSONALI; ;l.162/98;12/02/2019;1927;3;19;1;Spese correnti;4;Trasferimenti correnti;2;Trasferimenti correnti a Famiglie;2;Interventi assistenziali;999;Altri assegni e sussidi assistenziali;12/02/2019
116;2;0;181,83;1.890,81;OMESSO NOMINATIVO NEL RISPETTO DELLA NORMATIVA SULLA PROTEZIONE DATI PERSONALI; ;l.162/98;12/02/2019;1927;3;19;1;Spese correnti;4;Trasferimenti correnti;2;Trasferimenti correnti a Famiglie;2;Interventi assistenziali;999;Altri assegni e sussidi assistenziali;12/02/2019
116;3;0;434;1.890,81;OMESSO NOMINATIVO NEL RISPETTO DELLA NORMATIVA SULLA PROTEZIONE DATI PERSONALI; ;l.162/98;12/02/2019;1927;3;19;1;Spese correnti;4;Trasferimenti correnti;2;Trasferimenti correnti a Famiglie;2;Interventi assistenziali;999;Altri assegni e sussidi assistenziali;12/02/2019
116;4;0;315,48;1.890,81;OMESSO NOMINATIVO NEL RISPETTO DELLA NORMATIVA SULLA PROTEZIONE DATI PERSONALI; ;l.162/98;12/02/2019;1927;3;19;1;Spese correnti;4;Trasferimenti correnti;2;Trasferimenti correnti a Famiglie;2;Interventi assistenziali;999;Altri assegni e sussidi assistenziali;12/02/2019
116;5;0;747,5;1.890,81;OMESSO NOMINATIVO NEL RISPETTO DELLA NORMATIVA SULLA PROTEZIONE DATI PERSONALI; ;l.162/98;12/02/2019;1927;3;19;1;Spese correnti;4;Trasferimenti correnti;2;Trasferimenti correnti a Famiglie;2;Interventi assistenziali;999;Altri assegni e sussidi assistenziali;12/02/2019
117;1;0;200;1.218,66;OMESSO NOMINATIVO NEL RISPETTO DELLA NORMATIVA SULLA PROTEZIONE DATI PERSONALI; ;l.162/98;12/02/2019;1927;3;19;1;Spese correnti;4;Trasferimenti correnti;2;Trasferimenti correnti a Famiglie;2;Interventi assistenziali;999;Altri assegni e sussidi assistenziali;12/02/2019
117;2;0;249;1.218,66;OMESSO NOMINATIVO NEL RISPETTO DELLA NORMATIVA SULLA PROTEZIONE DATI PERSONALI; ;l.162/98;12/02/2019;1927;3;19;1;Spese correnti;4;Trasferimenti correnti;2;Trasferimenti correnti a Famiglie;2;Interventi assistenziali;999;Altri assegni e sussidi assistenziali;12/02/2019
117;3;0;317;1.218,66;OMESSO NOMINATIVO NEL RISPETTO DELLA NORMATIVA SULLA PROTEZIONE DATI PERSONALI; ;l.162/98;12/02/2019;1927;3;19;1;Spese correnti;4;Trasferimenti correnti;2;Trasferimenti correnti a Famiglie;2;Interventi assistenziali;999;Altri assegni e sussidi assistenziali;12/02/2019
117;4;0;286;1.218,66;OMESSO NOMINATIVO NEL RISPETTO DELLA NORMATIVA SULLA PROTEZIONE DATI PERSONALI; ;l.162/98;12/02/2019;1927;3;19;1;Spese correnti;4;Trasferimenti correnti;2;Trasferimenti correnti a Famiglie;2;Interventi assistenziali;999;Altri assegni e sussidi assistenziali;12/02/2019
117;5;0;166,66;1.218,66;OMESSO NOMINATIVO NEL RISPETTO DELLA NORMATIVA SULLA PROTEZIONE DATI PERSONALI; ;l.162/98;12/02/2019;1927;3;19;1;Spese correnti;4;Trasferimenti correnti;2;Trasferimenti correnti a Famiglie;2;Interventi assistenziali;999;Altri assegni e sussidi assistenziali;12/02/2019
118;1;0;166,4;738,77;OMESSO NOMINATIVO NEL RISPETTO DELLA NORMATIVA SULLA PROTEZIONE DATI PERSONALI; ;l.162/98;12/02/2019;1927;3;19;1;Spese correnti;4;Trasferimenti correnti;2;Trasferimenti correnti a Famiglie;2;Interventi assistenziali;999;Altri assegni e sussidi assistenziali;12/02/2019
118;2;0;249,61;738,77;OMESSO NOMINATIVO NEL RISPETTO DELLA NORMATIVA SULLA PROTEZIONE DATI PERSONALI; ;l.162/98;12/02/2019;1927;3;19;1;Spese correnti;4;Trasferimenti correnti;2;Trasferimenti correnti a Famiglie;2;Interventi assistenziali;999;Altri assegni e sussidi assistenziali;12/02/2019
118;3;0;111,82;738,77;OMESSO NOMINATIVO NEL RISPETTO DELLA NORMATIVA SULLA PROTEZIONE DATI PERSONALI; ;l.162/98;12/02/2019;1927;3;19;1;Spese correnti;4;Trasferimenti correnti;2;Trasferimenti correnti a Famiglie;2;Interventi assistenziali;999;Altri assegni e sussidi assistenziali;12/02/2019
118;4;0;128;738,77;OMESSO NOMINATIVO NEL RISPETTO DELLA NORMATIVA SULLA PROTEZIONE DATI PERSONALI; ;l.162/98;12/02/2019;1927;3;19;1;Spese correnti;4;Trasferimenti correnti;2;Trasferimenti correnti a Famiglie;2;Interventi assistenziali;999;Altri assegni e sussidi assistenziali;12/02/2019
118;5;0;82,94;738,77;OMESSO NOMINATIVO NEL RISPETTO DELLA NORMATIVA SULLA PROTEZIONE DATI PERSONALI; ;l.162/98;12/02/2019;1927;3;19;1;Spese correnti;4;Trasferimenti correnti;2;Trasferimenti correnti a Famiglie;2;Interventi assistenziali;999;Altri assegni e sussidi assistenziali;12/02/2019
119;1;0;251,44;1.309,18;OMESSO NOMINATIVO NEL RISPETTO DELLA NORMATIVA SULLA PROTEZIONE DATI PERSONALI; ;l.162/98;12/02/2019;1927;3;19;1;Spese correnti;4;Trasferimenti correnti;2;Trasferimenti correnti a Famiglie;2;Interventi assistenziali;999;Altri assegni e sussidi assistenziali;12/02/2019
119;2;0;312,4;1.309,18;OMESSO NOMINATIVO NEL RISPETTO DELLA NORMATIVA SULLA PROTEZIONE DATI PERSONALI; ;l.162/98;12/02/2019;1927;3;19;1;Spese correnti;4;Trasferimenti correnti;2;Trasferimenti correnti a Famiglie;2;Interventi assistenziali;999;Altri assegni e sussidi assistenziali;12/02/2019
119;3;0;278,38;1.309,18;OMESSO NOMINATIVO NEL RISPETTO DELLA NORMATIVA SULLA PROTEZIONE DATI PERSONALI; ;l.162/98;12/02/2019;1927;3;19;1;Spese correnti;4;Trasferimenti correnti;2;Trasferimenti correnti a Famiglie;2;Interventi assistenziali;999;Altri assegni e sussidi assistenziali;12/02/2019
119;4;0;305,32;1.309,18;OMESSO NOMINATIVO NEL RISPETTO DELLA NORMATIVA SULLA PROTEZIONE DATI PERSONALI; ;l.162/98;12/02/2019;1927;3;19;1;Spese correnti;4;Trasferimenti correnti;2;Trasferimenti correnti a Famiglie;2;Interventi assistenziali;999;Altri assegni e sussidi assistenziali;12/02/2019
119;5;0;161,64;1.309,18;OMESSO NOMINATIVO NEL RISPETTO DELLA NORMATIVA SULLA PROTEZIONE DATI PERSONALI; ;l.162/98;12/02/2019;1927;3;19;1;Spese correnti;4;Trasferimenti correnti;2;Trasferimenti correnti a Famiglie;2;Interventi assistenziali;999;Altri assegni e sussidi assistenziali;12/02/2019
120;1;0;242,46;504,07;OMESSO NOMINATIVO NEL RISPETTO DELLA NORMATIVA SULLA PROTEZIONE DATI PERSONALI; ;l.162/98;12/02/2019;1927;3;19;1;Spese correnti;4;Trasferimenti correnti;2;Trasferimenti correnti a Famiglie;2;Interventi assistenziali;999;Altri assegni e sussidi assistenziali;12/02/2019
120;2;0;62,48;504,07;OMESSO NOMINATIVO NEL RISPETTO DELLA NORMATIVA SULLA PROTEZIONE DATI PERSONALI; ;l.162/98;12/02/2019;1927;3;19;1;Spese correnti;4;Trasferimenti correnti;2;Trasferimenti correnti a Famiglie;2;Interventi assistenziali;999;Altri assegni e sussidi assistenziali;12/02/2019
120;3;0;199,13;504,07;OMESSO NOMINATIVO NEL RISPETTO DELLA NORMATIVA SULLA PROTEZIONE DATI PERSONALI; ;l.162/98;12/02/2019;1927;3;19;1;Spese correnti;4;Trasferimenti correnti;2;Trasferimenti correnti a Famiglie;2;Interventi assistenziali;999;Altri assegni e sussidi assistenziali;12/02/2019
121;1;0;500;500;OMISSIS; ;viaggi;12/02/2019;1906;0;93;1;Spese correnti;4;Trasferimenti correnti;2;Trasferimenti correnti a Famiglie;2;Interventi assistenziali;999;Altri assegni e sussidi assistenziali;12/02/2019
122;1;0;90;420;OMISSIS; ;REIS;14/02/2019;1912;3;153;1;Spese correnti;4;Trasferimenti correnti;2;Trasferimenti correnti a Famiglie;2;Interventi assistenziali;999;Altri assegni e sussidi assistenziali;14/02/2019
122;2;0;150;420;OMISSIS; ;REIS;14/02/2019;1912;3;153;1;Spese correnti;4;Trasferimenti correnti;2;Trasferimenti correnti a Famiglie;2;Interventi assistenziali;999;Altri assegni e sussidi assistenziali;14/02/2019
122;3;0;60;420;OMISSIS; ;REIS;14/02/2019;1912;3;153;1;Spese correnti;4;Trasferimenti correnti;2;Trasferimenti correnti a Famiglie;2;Interventi assistenziali;999;Altri assegni e sussidi assistenziali;14/02/2019
122;4;0;60;420;OMISSIS; ;REIS;14/02/2019;1912;3;153;1;Spese correnti;4;Trasferimenti correnti;2;Trasferimenti correnti a Famiglie;2;Interventi assistenziali;999;Altri assegni e sussidi assistenziali;14/02/2019
122;5;0;60;420;OMISSIS; ;REIS;14/02/2019;1912;3;153;1;Spese correnti;4;Trasferimenti correnti;2;Trasferimenti correnti a Famiglie;2;Interventi assistenziali;999;Altri assegni e sussidi assistenziali;14/02/2019
123;1;0;150;1.060,00;OMISSIS; ;reis;14/02/2019;1912;3;228;1;Spese correnti;4;Trasferimenti correnti;2;Trasferimenti correnti a Famiglie;2;Interventi assistenziali;999;Altri assegni e sussidi assistenziali;14/02/2019
123;2;0;400;1.060,00;OMISSIS; ;reis;14/02/2019;1912;3;228;1;Spese correnti;4;Trasferimenti correnti;2;Trasferimenti correnti a Famiglie;2;Interventi assistenziali;999;Altri assegni e sussidi assistenziali;14/02/2019
123;3;0;300;1.060,00;OMISSIS; ;reis;14/02/2019;1912;3;228;1;Spese correnti;4;Trasferimenti correnti;2;Trasferimenti correnti a Famiglie;2;Interventi assistenziali;999;Altri assegni e sussidi assistenziali;14/02/2019
123;4;0;150;1.060,00;OMISSIS; ;reis;14/02/2019;1912;3;228;1;Spese correnti;4;Trasferimenti correnti;2;Trasferimenti correnti a Famiglie;2;Interventi assistenziali;999;Altri assegni e sussidi assistenziali;14/02/2019
123;5;0;60;1.060,00;OMISSIS; ;reis;14/02/2019;1912;3;228;1;Spese correnti;4;Trasferimenti correnti;2;Trasferimenti correnti a Famiglie;2;Interventi assistenziali;999;Altri assegni e sussidi assistenziali;14/02/2019
124;1;0;200;1.500,00;OMISSIS; ;reis;14/02/2019;1912;3;228;1;Spese correnti;4;Trasferimenti correnti;2;Trasferimenti correnti a Famiglie;2;Interventi assistenziali;999;Altri assegni e sussidi assistenziali;14/02/2019
124;2;0;400;1.500,00;OMISSIS; ;reis;14/02/2019;1912;3;228;1;Spese correnti;4;Trasferimenti correnti;2;Trasferimenti correnti a Famiglie;2;Interventi assistenziali;999;Altri assegni e sussidi assistenziali;14/02/2019
124;3;0;300;1.500,00;OMISSIS; ;reis;14/02/2019;1912;3;228;1;Spese correnti;4;Trasferimenti correnti;2;Trasferimenti correnti a Famiglie;2;Interventi assistenziali;999;Altri assegni e sussidi assistenziali;14/02/2019
124;4;0;300;1.500,00;OMISSIS; ;reis;14/02/2019;1912;3;228;1;Spese correnti;4;Trasferimenti correnti;2;Trasferimenti correnti a Famiglie;2;Interventi assistenziali;999;Altri assegni e sussidi assistenziali;14/02/2019
124;5;0;300;1.500,00;OMISSIS; ;reis;14/02/2019;1912;3;228;1;Spese correnti;4;Trasferimenti correnti;2;Trasferimenti correnti a Famiglie;2;Interventi assistenziali;999;Altri assegni e sussidi assistenziali;14/02/2019
125;1;0;400;2.200,00;OMISSIS; ;reis;14/02/2019;1912;3;228;1;Spese correnti;4;Trasferimenti correnti;2;Trasferimenti correnti a Famiglie;2;Interventi assistenziali;999;Altri assegni e sussidi assistenziali;14/02/2019
125;2;0;400;2.200,00;OMISSIS; ;reis;14/02/2019;1912;3;228;1;Spese correnti;4;Trasferimenti correnti;2;Trasferimenti correnti a Famiglie;2;Interventi assistenziali;999;Altri assegni e sussidi assistenziali;14/02/2019
125;3;0;400;2.200,00;OMISSIS; ;reis;14/02/2019;1912;3;228;1;Spese correnti;4;Trasferimenti correnti;2;Trasferimenti correnti a Famiglie;2;Interventi assistenziali;999;Altri assegni e sussidi assistenziali;14/02/2019
125;4;0;500;2.200,00;OMISSIS; ;reis;14/02/2019;1912;3;228;1;Spese correnti;4;Trasferimenti correnti;2;Trasferimenti correnti a Famiglie;2;Interventi assistenziali;999;Altri assegni e sussidi assistenziali;14/02/2019
125;5;0;500;2.200,00;OMISSIS; ;reis;14/02/2019;1912;3;228;1;Spese correnti;4;Trasferimenti correnti;2;Trasferimenti correnti a Famiglie;2;Interventi assistenziali;999;Altri assegni e sussidi assistenziali;14/02/2019
126;1;0;500;998,53;OMISSIS; ;reis;14/02/2019;1912;3;228;1;Spese correnti;4;Trasferimenti correnti;2;Trasferimenti correnti a Famiglie;2;Interventi assistenziali;999;Altri assegni e sussidi assistenziali;14/02/2019
126;2;0;98,53;998,53;OMISSIS; ;reis;14/02/2019;1912;3;228;1;Spese correnti;4;Trasferimenti correnti;2;Trasferimenti correnti a Famiglie;2;Interventi assistenziali;999;Altri assegni e sussidi assistenziali;14/02/2019
126;3;0;400;998,53;OMISSIS; ;reis;14/02/2019;1912;3;228;1;Spese correnti;4;Trasferimenti correnti;2;Trasferimenti correnti a Famiglie;2;Interventi assistenziali;999;Altri assegni e sussidi assistenziali;14/02/2019
127;1;0;401,47;401,47;OMISSIS; ;REIS;14/02/2019;1912;3;153;1;Spese correnti;4;Trasferimenti correnti;2;Trasferimenti correnti a Famiglie;2;Interventi assistenziali;999;Altri assegni e sussidi assistenziali;14/02/2019
128;1;0;500;500;OMISSIS; ;REIS;14/02/2019;1912;3;153;1;Spese correnti;4;Trasferimenti correnti;2;Trasferimenti correnti a Famiglie;2;Interventi assistenziali;999;Altri assegni e sussidi assistenziali;14/02/2019
129;1;0;1.481,58;1.481,58;PERSONALE DIVERSO (Confr.Allegato); ;STIPENDI MESE DI: FEBBRAIO 19;15/02/2019;1001;0;0;1;Spese correnti;3;Acquisto di beni e servizi;2;Acquisto di servizi;1;Organi e incarichi istituzionali dell'amministrazione;1;Organi istituzionali dell'amministrazione - Indennità;15/02/2019
158;1;0;2.906,37;2.906,37;HALLEY SARDEGNA SRL;ZD326B45F5;SALDO Fatt.n. 0000061  del 22/01/2019;18/02/2019;1042;0;20;1;Spese correnti;3;Acquisto di beni e servizi;2;Acquisto di servizi;9;Manutenzione ordinaria e riparazioni;6;Manutenzione ordinaria e riparazioni di macchine per ufficio;18/02/2019
159;1;0;1.189,50;1.189,50;HALLEY SARDEGNA SRL;ZE626B60A6;SALDO Fatt.n. 0000044  del 16/01/2019;18/02/2019;1043;12;21;1;Spese correnti;3;Acquisto di beni e servizi;2;Acquisto di servizi;5;Utenze e canoni;999;Utenze e canoni per altri servizi n.a.c.;18/02/2019
160;1;0;109,8;109,8;DITTA GASPARI;Z6326CB7CD;SALDO Fatt.n. 01425/S  del 31/01/2019;18/02/2019;1043;2;8;1;Spese correnti;3;Acquisto di beni e servizi;1;Acquisto di beni;2;Altri beni di consumo;14;Stampati specialistici;18/02/2019
161;1;0;781,9;781,9;AIRONE COOPERATIVA SOCIALE DI ASSISTENZA ONLUS;Z04256347E;ACCONTO Fatt.n. 147  del 11/02/2019 Fattura Cliente;18/02/2019;1899;1;141;1;Spese correnti;3;Acquisto di beni e servizi;2;Acquisto di servizi;11;Prestazioni professionali e specialistiche;999;Altre prestazioni professionali e specialistiche n.a.c.;18/02/2019
162;1;0;1.070,30;1.070,30;AIRONE COOPERATIVA SOCIALE DI ASSISTENZA ONLUS;Z04256347E;SALDO Fatt.n. 147  del 11/02/2019 Fattura Cliente;18/02/2019;1899;1;23;1;Spese correnti;3;Acquisto di beni e servizi;2;Acquisto di servizi;11;Prestazioni professionali e specialistiche;999;Altre prestazioni professionali e specialistiche n.a.c.;18/02/2019
163;1;0;1.039,15;1.039,15;BOSINCO LUIGI;Z341F3FOCC;SALDO Fatt.n. FATTPA 4_19  del 02/02/2019 CIG :Z341F3FOCC;18/02/2019;1400;0;132;1;Spese correnti;3;Acquisto di beni e servizi;2;Acquisto di servizi;15;Contratti di servizio pubblico;2;Contratti di servizio di trasporto scolastico;18/02/2019
164;1;0;329,93;329,93;PROVINCIA DI SASSARI; ;ADDIZIONALE PROVINCIALE4 TRIMESTRE 2018;18/02/2019;1055;2;223;1;Spese correnti;4;Trasferimenti correnti;1;Trasferimenti correnti a Amministrazioni Pubbliche;2;Trasferimenti correnti a Amministrazioni Locali;2;Trasferimenti correnti a Province;18/02/2019
165;1;0;64,45;64,45;COMUNE DI SASSARI; ;COMMISSIONE ELETTORALE 2018;18/02/2019;1047;2;222;1;Spese correnti;4;Trasferimenti correnti;1;Trasferimenti correnti a Amministrazioni Pubbliche;2;Trasferimenti correnti a Amministrazioni Locali;3;Trasferimenti correnti a Comuni;18/02/2019
166;1;0;1.455,61;1.455,61;TRANSPORT S.A.S DI TAULA;ZF826FD9C9;SALDO Fatt.n. 190102804  del 06/02/2019 Consegna a: COMUNE DI LAERRU VIA G.DELEDDA LAERRU 07030 SS;18/02/2019;1056;0;24;1;Spese correnti;3;Acquisto di beni e servizi;1;Acquisto di beni;2;Altri beni di consumo;2;Carburanti, combustibili e lubrificanti;18/02/2019
167;1;0;973,66;973,66;MM IMPIANTISTICA DI MONAGHEDDU MASSIMILIANO VITTORIO;Z32256DAD3;ACCONTO Fatt.n. 1/PA  del 11/01/2019;18/02/2019;1043;9;27;1;Spese correnti;3;Acquisto di beni e servizi;2;Acquisto di servizi;9;Manutenzione ordinaria e riparazioni;4;Manutenzione ordinaria e riparazioni di impianti e macchinari;18/02/2019
168;1;0;973,66;973,66;MM IMPIANTISTICA DI MONAGHEDDU MASSIMILIANO VITTORIO;Z32256DAD3;ACCONTO Fatt.n. 1/PA  del 11/01/2019;18/02/2019;1344;0;28;1;Spese correnti;3;Acquisto di beni e servizi;2;Acquisto di servizi;9;Manutenzione ordinaria e riparazioni;4;Manutenzione ordinaria e riparazioni di impianti e macchinari;18/02/2019
169;1;0;52,68;52,68;MM IMPIANTISTICA DI MONAGHEDDU MASSIMILIANO VITTORIO;Z32256DAD3;SALDO Fatt.n. 1/PA  del 11/01/2019;18/02/2019;1514;2;29;1;Spese correnti;3;Acquisto di beni e servizi;2;Acquisto di servizi;5;Utenze e canoni;999;Utenze e canoni per altri servizi n.a.c.;18/02/2019
170;1;0;2.806,60;2.806,60;A.I.A.S.; ;inserimento utente in struttura;26/02/2019;1934;0;30;1;Spese correnti;4;Trasferimenti correnti;4;Trasferimenti correnti a Istituzioni Sociali Private;1;Trasferimenti correnti a Istituzioni Sociali Private;1;Trasferimenti correnti a Istituzioni Sociali Private;26/02/2019
171;1;0;1.349,27;1.349,27;CONSORZIO LA SORGENTE;7591934620;SALDO Fatt.n. 3/61  del 21/02/2019 VENDITA;26/02/2019;1902;0;31;1;Spese correnti;3;Acquisto di beni e servizi;2;Acquisto di servizi;15;Contratti di servizio pubblico;9;Contratti di servizio di assistenza sociale domiciliare;26/02/2019
172;1;0;197,6;197,6;IPSOA EDITORE S.R.L.;Z9E274B932;SALDO Fatt.n. 0054301169  del 25/01/2019;26/02/2019;1043;2;32;1;Spese correnti;3;Acquisto di beni e servizi;1;Acquisto di beni;2;Altri beni di consumo;1;Carta, cancelleria e stampati;26/02/2019
175;1;0;2.558,52;2.558,52;SILODEMA SOCIETA' COOPERATIVA SOCIALE A R.L.;7585760F2B;SALDO Fatt.n. FATTPA 7_19  del 01/02/2019 Servizio mensa svolto nel mese di Gennaio    CIG 7585760F2B;27/02/2019;1352;3;35;1;Spese correnti;3;Acquisto di beni e servizi;2;Acquisto di servizi;15;Contratti di servizio pubblico;6;Contratti di servizio per le mense scolastiche;27/02/2019
176;1;0;658,3;658,3;OMISSIS; ;VIAGGI;04/03/2019;1906;0;93;1;Spese correnti;4;Trasferimenti correnti;2;Trasferimenti correnti a Famiglie;2;Interventi assistenziali;999;Altri assegni e sussidi assistenziali;04/03/2019
178;1;0;300;300;OMESSO NOMINATIVO NEL RISPETTO DELLA NORMATIVA SULLA PROTEZIONE DATI PERSONALI; ;contributo straordinario;04/03/2019;1935;0;36;1;Spese correnti;4;Trasferimenti correnti;2;Trasferimenti correnti a Famiglie;2;Interventi assistenziali;999;Altri assegni e sussidi assistenziali;04/03/2019
179;1;0;151,56;151,56;OMESSO NOMINATIVO NEL RISPETTO DELLA NORMATIVA SULLA PROTEZIONE DATI PERSONALI; ;l.162/98;04/03/2019;1927;3;19;1;Spese correnti;4;Trasferimenti correnti;2;Trasferimenti correnti a Famiglie;2;Interventi assistenziali;999;Altri assegni e sussidi assistenziali;04/03/2019
180;1;0;517,39;517,39;OMESSO NOMINATIVO NEL RISPETTO DELLA NORMATIVA SULLA PROTEZIONE DATI PERSONALI; ;l.162/98;04/03/2019;1927;3;19;1;Spese correnti;4;Trasferimenti correnti;2;Trasferimenti correnti a Famiglie;2;Interventi assistenziali;999;Altri assegni e sussidi assistenziali;04/03/2019
181;1;0;329,01;329,01;ASARA MAURIZIO;ZD725234E3;SALDO Fatt.n. FATTPA 4_19  del 27/02/2019;04/03/2019;1600;0;171;1;Spese correnti;3;Acquisto di beni e servizi;2;Acquisto di servizi;18;Servizi sanitari;13;Acquisti di servizi di trasporto in emergenza e urgenza;04/03/2019
182;1;0;120;630;CHIGHINE GIAN LUIGI; ;liquidazione componenti dei seggi elezioni del 24/02/2019;04/03/2019;1065;1;37;1;Spese correnti;3;Acquisto di beni e servizi;2;Acquisto di servizi;99;Altri servizi;4;Altre spese per consultazioni elettorali dell'ente;04/03/2019
182;2;0;120;630;FIORI STEFANIA; ;liquidazione componenti dei seggi elezioni del 24/02/2019;04/03/2019;1065;1;37;1;Spese correnti;3;Acquisto di beni e servizi;2;Acquisto di servizi;99;Altri servizi;4;Altre spese per consultazioni elettorali dell'ente;04/03/2019
182;3;0;150;630;MASTINO GIUSEPPINA; ;liquidazione componenti dei seggi elezioni del 24/02/2019;04/03/2019;1065;1;37;1;Spese correnti;3;Acquisto di beni e servizi;2;Acquisto di servizi;99;Altri servizi;4;Altre spese per consultazioni elettorali dell'ente;04/03/2019
182;4;0;120;630;PIRAS MATTEO; ;liquidazione componenti dei seggi elezioni del 24/02/2019;04/03/2019;1065;1;37;1;Spese correnti;3;Acquisto di beni e servizi;2;Acquisto di servizi;99;Altri servizi;4;Altre spese per consultazioni elettorali dell'ente;04/03/2019
182;5;0;120;630;PUGGIONI GRAZIELLA; ;liquidazione componenti dei seggi elezioni del 24/02/2019;04/03/2019;1065;1;37;1;Spese correnti;3;Acquisto di beni e servizi;2;Acquisto di servizi;99;Altri servizi;4;Altre spese per consultazioni elettorali dell'ente;04/03/2019
183;1;0;47;47;MARA MARGHERITA; ;RESTITUZIONE SOMME NON DOVUTE;04/03/2019;1029;0;0;1;Spese correnti;4;Trasferimenti correnti;2;Trasferimenti correnti a Famiglie;2;Interventi assistenziali;999;Altri assegni e sussidi assistenziali;04/03/2019
184;1;0;120;120;FRAONI MARIANNA; ;liquidazione componenti dei seggi elezioni del 24/02/2019;05/03/2019;1065;1;37;1;Spese correnti;3;Acquisto di beni e servizi;2;Acquisto di servizi;99;Altri servizi;4;Altre spese per consultazioni elettorali dell'ente;05/03/2019
185;1;0;4.119,45;4.119,45;BANCO SARDEGNA;Z96269B52C;servizio tesoreria;06/03/2019;1054;0;237;1;Spese correnti;3;Acquisto di beni e servizi;2;Acquisto di servizi;17;Servizi finanziari;2;Oneri per servizio di tesoreria;06/03/2019
186;1;0;1.626,67;1.626,67;CHESSA ALESSANDRO;Z9A1CFA2F9;SALDO Fatt.n. FATTPA 23_19  del 01/03/2019 vs.dare per manutenzione ordinaria impianto di illuminazione pubblica ed impianti elettrici immobili comunali FEBBRAIO 2019;06/03/2019;1939;0;1;1;Spese correnti;3;Acquisto di beni e servizi;2;Acquisto di servizi;9;Manutenzione ordinaria e riparazioni;8;Manutenzione ordinaria e riparazioni di beni immobili;06/03/2019
188;1;0;18.150,00;18.150,00;CICLAT TRASPORTI AMBIENTE SOC.COOP.;7,63E+14;SALDO Fatt.n. 139 -P  del 28/02/2019 FATTURA;06/03/2019;1738;0;14;1;Spese correnti;3;Acquisto di beni e servizi;2;Acquisto di servizi;15;Contratti di servizio pubblico;5;Contratti di servizio per il conferimento in discarica dei rifiuti;06/03/2019
189;1;0;1.187,60;1.187,60;BOSINCO LUIGI;Z341F3FOCC;SALDO Fatt.n. FATTPA 10_19  del 02/03/2019 C.I.G.Z341F3FOCC;06/03/2019;1400;0;132;1;Spese correnti;3;Acquisto di beni e servizi;2;Acquisto di servizi;15;Contratti di servizio pubblico;2;Contratti di servizio di trasporto scolastico;06/03/2019
190;1;0;84,67;84,67;EDUPE';Z7F2686393;SALDO Fatt.n. 2/3  del 04/02/2019;06/03/2019;1360;0;210;1;Spese correnti;3;Acquisto di beni e servizi;2;Acquisto di servizi;11;Prestazioni professionali e specialistiche;2;Assistenza psicologica, sociale e religiosa;06/03/2019
192;1;0;2.517,09;2.517,09;SILODEMA SOCIETA' COOPERATIVA SOCIALE A R.L.;7585760F2B;SALDO Fatt.n. FATTPA 13_19  del 04/03/2019 Servizio mensa svolto nel mese di Febbraio   CIG 7585760F2B;11/03/2019;1352;3;38;1;Spese correnti;3;Acquisto di beni e servizi;2;Acquisto di servizi;15;Contratti di servizio pubblico;6;Contratti di servizio per le mense scolastiche;11/03/2019
193;1;0;90;420;OMISSIS; ;REIS;11/03/2019;1912;3;153;1;Spese correnti;4;Trasferimenti correnti;2;Trasferimenti correnti a Famiglie;2;Interventi assistenziali;999;Altri assegni e sussidi assistenziali;11/03/2019
193;2;0;150;420;OMISSIS; ;REIS;11/03/2019;1912;3;153;1;Spese correnti;4;Trasferimenti correnti;2;Trasferimenti correnti a Famiglie;2;Interventi assistenziali;999;Altri assegni e sussidi assistenziali;11/03/2019
193;3;0;60;420;OMISSIS; ;REIS;11/03/2019;1912;3;153;1;Spese correnti;4;Trasferimenti correnti;2;Trasferimenti correnti a Famiglie;2;Interventi assistenziali;999;Altri assegni e sussidi assistenziali;11/03/2019
193;4;0;60;420;OMISSIS; ;REIS;11/03/2019;1912;3;153;1;Spese correnti;4;Trasferimenti correnti;2;Trasferimenti correnti a Famiglie;2;Interventi assistenziali;999;Altri assegni e sussidi assistenziali;11/03/2019
193;5;0;60;420;OMISSIS; ;REIS;11/03/2019;1912;3;153;1;Spese correnti;4;Trasferimenti correnti;2;Trasferimenti correnti a Famiglie;2;Interventi assistenziali;999;Altri assegni e sussidi assistenziali;11/03/2019
194;1;0;150;1.060,00;OMISSIS; ;REIS;11/03/2019;1912;3;153;1;Spese correnti;4;Trasferimenti correnti;2;Trasferimenti correnti a Famiglie;2;Interventi assistenziali;999;Altri assegni e sussidi assistenziali;11/03/2019
194;2;0;400;1.060,00;OMISSIS; ;REIS;11/03/2019;1912;3;153;1;Spese correnti;4;Trasferimenti correnti;2;Trasferimenti correnti a Famiglie;2;Interventi assistenziali;999;Altri assegni e sussidi assistenziali;11/03/2019
194;3;0;300;1.060,00;OMISSIS; ;REIS;11/03/2019;1912;3;153;1;Spese correnti;4;Trasferimenti correnti;2;Trasferimenti correnti a Famiglie;2;Interventi assistenziali;999;Altri assegni e sussidi assistenziali;11/03/2019
194;4;0;150;1.060,00;OMISSIS; ;REIS;11/03/2019;1912;3;153;1;Spese correnti;4;Trasferimenti correnti;2;Trasferimenti correnti a Famiglie;2;Interventi assistenziali;999;Altri assegni e sussidi assistenziali;11/03/2019
194;5;0;60;1.060,00;OMISSIS; ;REIS;11/03/2019;1912;3;153;1;Spese correnti;4;Trasferimenti correnti;2;Trasferimenti correnti a Famiglie;2;Interventi assistenziali;999;Altri assegni e sussidi assistenziali;11/03/2019
195;1;0;200;1.500,00;OMISSIS; ;REIS;11/03/2019;1912;3;153;1;Spese correnti;4;Trasferimenti correnti;2;Trasferimenti correnti a Famiglie;2;Interventi assistenziali;999;Altri assegni e sussidi assistenziali;11/03/2019
195;2;0;400;1.500,00;OMISSIS; ;REIS;11/03/2019;1912;3;153;1;Spese correnti;4;Trasferimenti correnti;2;Trasferimenti correnti a Famiglie;2;Interventi assistenziali;999;Altri assegni e sussidi assistenziali;11/03/2019
195;3;0;300;1.500,00;OMISSIS; ;REIS;11/03/2019;1912;3;153;1;Spese correnti;4;Trasferimenti correnti;2;Trasferimenti correnti a Famiglie;2;Interventi assistenziali;999;Altri assegni e sussidi assistenziali;11/03/2019
195;4;0;300;1.500,00;OMISSIS; ;REIS;11/03/2019;1912;3;153;1;Spese correnti;4;Trasferimenti correnti;2;Trasferimenti correnti a Famiglie;2;Interventi assistenziali;999;Altri assegni e sussidi assistenziali;11/03/2019
195;5;0;300;1.500,00;OMISSIS; ;REIS;11/03/2019;1912;3;153;1;Spese correnti;4;Trasferimenti correnti;2;Trasferimenti correnti a Famiglie;2;Interventi assistenziali;999;Altri assegni e sussidi assistenziali;11/03/2019
196;1;0;400;2.200,00;OMISSIS; ;REIS;11/03/2019;1912;3;153;1;Spese correnti;4;Trasferimenti correnti;2;Trasferimenti correnti a Famiglie;2;Interventi assistenziali;999;Altri assegni e sussidi assistenziali;11/03/2019
196;2;0;400;2.200,00;OMISSIS; ;REIS;11/03/2019;1912;3;153;1;Spese correnti;4;Trasferimenti correnti;2;Trasferimenti correnti a Famiglie;2;Interventi assistenziali;999;Altri assegni e sussidi assistenziali;11/03/2019
196;3;0;400;2.200,00;OMISSIS; ;REIS;11/03/2019;1912;3;153;1;Spese correnti;4;Trasferimenti correnti;2;Trasferimenti correnti a Famiglie;2;Interventi assistenziali;999;Altri assegni e sussidi assistenziali;11/03/2019
196;4;0;500;2.200,00;OMISSIS; ;REIS;11/03/2019;1912;3;153;1;Spese correnti;4;Trasferimenti correnti;2;Trasferimenti correnti a Famiglie;2;Interventi assistenziali;999;Altri assegni e sussidi assistenziali;11/03/2019
196;5;0;500;2.200,00;OMISSIS; ;REIS;11/03/2019;1912;3;153;1;Spese correnti;4;Trasferimenti correnti;2;Trasferimenti correnti a Famiglie;2;Interventi assistenziali;999;Altri assegni e sussidi assistenziali;11/03/2019
197;1;0;500;1.900,00;OMISSIS; ;REIS;11/03/2019;1912;3;153;1;Spese correnti;4;Trasferimenti correnti;2;Trasferimenti correnti a Famiglie;2;Interventi assistenziali;999;Altri assegni e sussidi assistenziali;11/03/2019
197;2;0;500;1.900,00;OMISSIS; ;REIS;11/03/2019;1912;3;153;1;Spese correnti;4;Trasferimenti correnti;2;Trasferimenti correnti a Famiglie;2;Interventi assistenziali;999;Altri assegni e sussidi assistenziali;11/03/2019
197;3;0;500;1.900,00;OMISSIS; ;REIS;11/03/2019;1912;3;153;1;Spese correnti;4;Trasferimenti correnti;2;Trasferimenti correnti a Famiglie;2;Interventi assistenziali;999;Altri assegni e sussidi assistenziali;11/03/2019
197;4;0;400;1.900,00;OMISSIS; ;REIS;11/03/2019;1912;3;153;1;Spese correnti;4;Trasferimenti correnti;2;Trasferimenti correnti a Famiglie;2;Interventi assistenziali;999;Altri assegni e sussidi assistenziali;11/03/2019
198;1;0;117,55;1.015,80;OMESSO NOMINATIVO NEL RISPETTO DELLA NORMATIVA SULLA PROTEZIONE DATI PERSONALI; ;l.162/98;11/03/2019;1927;3;19;1;Spese correnti;4;Trasferimenti correnti;2;Trasferimenti correnti a Famiglie;2;Interventi assistenziali;999;Altri assegni e sussidi assistenziali;11/03/2019
198;2;0;146,09;1.015,80;OMESSO NOMINATIVO NEL RISPETTO DELLA NORMATIVA SULLA PROTEZIONE DATI PERSONALI; ;l.162/98;11/03/2019;1927;3;19;1;Spese correnti;4;Trasferimenti correnti;2;Trasferimenti correnti a Famiglie;2;Interventi assistenziali;999;Altri assegni e sussidi assistenziali;11/03/2019
198;3;0;127;1.015,80;OMESSO NOMINATIVO NEL RISPETTO DELLA NORMATIVA SULLA PROTEZIONE DATI PERSONALI; ;l.162/98;11/03/2019;1927;3;19;1;Spese correnti;4;Trasferimenti correnti;2;Trasferimenti correnti a Famiglie;2;Interventi assistenziali;999;Altri assegni e sussidi assistenziali;11/03/2019
198;4;0;375;1.015,80;OMESSO NOMINATIVO NEL RISPETTO DELLA NORMATIVA SULLA PROTEZIONE DATI PERSONALI; ;l.162/98;11/03/2019;1927;3;19;1;Spese correnti;4;Trasferimenti correnti;2;Trasferimenti correnti a Famiglie;2;Interventi assistenziali;999;Altri assegni e sussidi assistenziali;11/03/2019
198;5;0;250,16;1.015,80;OMESSO NOMINATIVO NEL RISPETTO DELLA NORMATIVA SULLA PROTEZIONE DATI PERSONALI; ;l.162/98;11/03/2019;1927;3;19;1;Spese correnti;4;Trasferimenti correnti;2;Trasferimenti correnti a Famiglie;2;Interventi assistenziali;999;Altri assegni e sussidi assistenziali;11/03/2019
199;1;0;212;1.607,00;OMESSO NOMINATIVO NEL RISPETTO DELLA NORMATIVA SULLA PROTEZIONE DATI PERSONALI; ;l.162/98;11/03/2019;1927;3;19;1;Spese correnti;4;Trasferimenti correnti;2;Trasferimenti correnti a Famiglie;2;Interventi assistenziali;999;Altri assegni e sussidi assistenziali;11/03/2019
199;2;0;423;1.607,00;OMESSO NOMINATIVO NEL RISPETTO DELLA NORMATIVA SULLA PROTEZIONE DATI PERSONALI; ;l.162/98;11/03/2019;1927;3;19;1;Spese correnti;4;Trasferimenti correnti;2;Trasferimenti correnti a Famiglie;2;Interventi assistenziali;999;Altri assegni e sussidi assistenziali;11/03/2019
199;3;0;134,6;1.607,00;OMESSO NOMINATIVO NEL RISPETTO DELLA NORMATIVA SULLA PROTEZIONE DATI PERSONALI; ;l.162/98;11/03/2019;1927;3;19;1;Spese correnti;4;Trasferimenti correnti;2;Trasferimenti correnti a Famiglie;2;Interventi assistenziali;999;Altri assegni e sussidi assistenziali;11/03/2019
199;4;0;747,5;1.607,00;OMESSO NOMINATIVO NEL RISPETTO DELLA NORMATIVA SULLA PROTEZIONE DATI PERSONALI; ;l.162/98;11/03/2019;1927;3;19;1;Spese correnti;4;Trasferimenti correnti;2;Trasferimenti correnti a Famiglie;2;Interventi assistenziali;999;Altri assegni e sussidi assistenziali;11/03/2019
199;5;0;89,9;1.607,00;OMESSO NOMINATIVO NEL RISPETTO DELLA NORMATIVA SULLA PROTEZIONE DATI PERSONALI; ;l.162/98;11/03/2019;1927;3;19;1;Spese correnti;4;Trasferimenti correnti;2;Trasferimenti correnti a Famiglie;2;Interventi assistenziali;999;Altri assegni e sussidi assistenziali;11/03/2019
200;1;0;181,83;910,79;OMESSO NOMINATIVO NEL RISPETTO DELLA NORMATIVA SULLA PROTEZIONE DATI PERSONALI; ;l.162/98;11/03/2019;1927;3;19;1;Spese correnti;4;Trasferimenti correnti;2;Trasferimenti correnti a Famiglie;2;Interventi assistenziali;999;Altri assegni e sussidi assistenziali;11/03/2019
200;2;0;249;910,79;OMESSO NOMINATIVO NEL RISPETTO DELLA NORMATIVA SULLA PROTEZIONE DATI PERSONALI; ;l.162/98;11/03/2019;1927;3;19;1;Spese correnti;4;Trasferimenti correnti;2;Trasferimenti correnti a Famiglie;2;Interventi assistenziali;999;Altri assegni e sussidi assistenziali;11/03/2019
200;3;0;313,3;910,79;OMESSO NOMINATIVO NEL RISPETTO DELLA NORMATIVA SULLA PROTEZIONE DATI PERSONALI; ;l.162/98;11/03/2019;1927;3;19;1;Spese correnti;4;Trasferimenti correnti;2;Trasferimenti correnti a Famiglie;2;Interventi assistenziali;999;Altri assegni e sussidi assistenziali;11/03/2019
200;4;0;166,66;910,79;OMESSO NOMINATIVO NEL RISPETTO DELLA NORMATIVA SULLA PROTEZIONE DATI PERSONALI; ;l.162/98;11/03/2019;1927;3;19;1;Spese correnti;4;Trasferimenti correnti;2;Trasferimenti correnti a Famiglie;2;Interventi assistenziali;999;Altri assegni e sussidi assistenziali;11/03/2019
201;1;0;166,4;1.036,70;OMESSO NOMINATIVO NEL RISPETTO DELLA NORMATIVA SULLA PROTEZIONE DATI PERSONALI; ;l.162/98;11/03/2019;1927;3;19;1;Spese correnti;4;Trasferimenti correnti;2;Trasferimenti correnti a Famiglie;2;Interventi assistenziali;999;Altri assegni e sussidi assistenziali;11/03/2019
201;2;0;102,3;1.036,70;OMESSO NOMINATIVO NEL RISPETTO DELLA NORMATIVA SULLA PROTEZIONE DATI PERSONALI; ;l.162/98;11/03/2019;1927;3;19;1;Spese correnti;4;Trasferimenti correnti;2;Trasferimenti correnti a Famiglie;2;Interventi assistenziali;999;Altri assegni e sussidi assistenziali;11/03/2019
201;3;0;199;1.036,70;OMESSO NOMINATIVO NEL RISPETTO DELLA NORMATIVA SULLA PROTEZIONE DATI PERSONALI; ;l.162/98;11/03/2019;1927;3;19;1;Spese correnti;4;Trasferimenti correnti;2;Trasferimenti correnti a Famiglie;2;Interventi assistenziali;999;Altri assegni e sussidi assistenziali;11/03/2019
201;4;0;285;1.036,70;OMESSO NOMINATIVO NEL RISPETTO DELLA NORMATIVA SULLA PROTEZIONE DATI PERSONALI; ;l.162/98;11/03/2019;1927;3;19;1;Spese correnti;4;Trasferimenti correnti;2;Trasferimenti correnti a Famiglie;2;Interventi assistenziali;999;Altri assegni e sussidi assistenziali;11/03/2019
201;5;0;284;1.036,70;OMESSO NOMINATIVO NEL RISPETTO DELLA NORMATIVA SULLA PROTEZIONE DATI PERSONALI; ;l.162/98;11/03/2019;1927;3;19;1;Spese correnti;4;Trasferimenti correnti;2;Trasferimenti correnti a Famiglie;2;Interventi assistenziali;999;Altri assegni e sussidi assistenziali;11/03/2019
203;1;0;36,37;280,17;TELECOM ITALIA SPA;ZD32272852;SALDO Fatt.n. 8R00025097  del 06/02/2019 2BIM 2019;11/03/2019;1476;1;173;1;Spese correnti;3;Acquisto di beni e servizi;2;Acquisto di servizi;5;Utenze e canoni;4;Energia elettrica;11/03/2019
203;2;0;45,53;280,17;TELECOM ITALIA SPA;ZD32272852;SALDO Fatt.n. 8R00025823  del 06/02/2019 2BIM 2019;11/03/2019;1476;1;173;1;Spese correnti;3;Acquisto di beni e servizi;2;Acquisto di servizi;5;Utenze e canoni;4;Energia elettrica;11/03/2019
203;3;0;98,8;280,17;TELECOM ITALIA SPA;ZD32272852;SALDO Fatt.n. 8R00025948  del 06/02/2019 2BIM 2019;11/03/2019;1476;1;173;1;Spese correnti;3;Acquisto di beni e servizi;2;Acquisto di servizi;5;Utenze e canoni;4;Energia elettrica;11/03/2019
203;4;0;99,47;280,17;TELECOM ITALIA SPA;ZD32272852;SALDO Fatt.n. 8R00025637  del 06/02/2019 2BIM 2019;11/03/2019;1476;1;173;1;Spese correnti;3;Acquisto di beni e servizi;2;Acquisto di servizi;5;Utenze e canoni;4;Energia elettrica;11/03/2019
204;1;0;52,55;224,58;TELECOM ITALIA SPA;ZD32272852;SALDO Fatt.n. 8R00026409  del 06/02/2019 2BIM 2019;11/03/2019;1366;0;174;1;Spese correnti;3;Acquisto di beni e servizi;2;Acquisto di servizi;5;Utenze e canoni;1;Telefonia fissa;11/03/2019
204;2;0;84,4;224,58;TELECOM ITALIA SPA;ZD32272852;SALDO Fatt.n. 8R00026004  del 06/02/2019 2BIM 2019;11/03/2019;1366;0;174;1;Spese correnti;3;Acquisto di beni e servizi;2;Acquisto di servizi;5;Utenze e canoni;1;Telefonia fissa;11/03/2019
204;3;0;87,63;224,58;TELECOM ITALIA SPA;ZD32272852;SALDO Fatt.n. 8R00026580  del 06/02/2019 2BIM 2019;11/03/2019;1366;0;174;1;Spese correnti;3;Acquisto di beni e servizi;2;Acquisto di servizi;5;Utenze e canoni;1;Telefonia fissa;11/03/2019
205;1;0;158,6;158,6;DITTA GASPARI;ZE0274A6B5;SALDO Fatt.n. 02647/S  del 28/02/2019;12/03/2019;1043;2;39;1;Spese correnti;3;Acquisto di beni e servizi;1;Acquisto di beni;2;Altri beni di consumo;1;Carta, cancelleria e stampati;12/03/2019
206;1;0;20,76;1.444,81;CHIGHINE GIAN LUIGI; ;RIMBORSI VIAGGIO ANNO 2018;12/03/2019;1906;0;193;1;Spese correnti;4;Trasferimenti correnti;2;Trasferimenti correnti a Famiglie;2;Interventi assistenziali;999;Altri assegni e sussidi assistenziali;12/03/2019
206;2;0;1.367,40;1.444,81;GHISU DONATELLO; ;RIMBORSI VIAGGIO ANNO 2018;12/03/2019;1906;0;193;1;Spese correnti;4;Trasferimenti correnti;2;Trasferimenti correnti a Famiglie;2;Interventi assistenziali;999;Altri assegni e sussidi assistenziali;12/03/2019
206;3;0;56,65;1.444,81;SERRA FERDINANDO; ;RIMBORSI VIAGGIO ANNO 2018;12/03/2019;1906;0;193;1;Spese correnti;4;Trasferimenti correnti;2;Trasferimenti correnti a Famiglie;2;Interventi assistenziali;999;Altri assegni e sussidi assistenziali;12/03/2019
207;1;0;154,28;154,28;OMESSO NOMINATIVO NEL RISPETTO DELLA NORMATIVA SULLA PROTEZIONE DATI PERSONALI; ;l.162/98;12/03/2019;1927;3;19;1;Spese correnti;4;Trasferimenti correnti;2;Trasferimenti correnti a Famiglie;2;Interventi assistenziali;999;Altri assegni e sussidi assistenziali;12/03/2019
208;1;0;352,59;352,59;MINISTERO INTERNO; ;CORRISPETTIVO PER RILASCIO N. 21 CIE -PERIODO 01/01/2019-28/02/2019;12/03/2019;1039;0;40;1;Spese correnti;3;Acquisto di beni e servizi;2;Acquisto di servizi;16;Servizi amministrativi;999;Altre spese per servizi amministrativi;12/03/2019
209;1;0;1.972,03;1.972,03;COMUNE DI SASSARI; ;SALDO Fatt.n. 16/12  del 26/02/2019 SCISSIONE DEI PAGAMENTI;12/03/2019;1738;0;41;1;Spese correnti;3;Acquisto di beni e servizi;2;Acquisto di servizi;15;Contratti di servizio pubblico;5;Contratti di servizio per il conferimento in discarica dei rifiuti;12/03/2019
210;1;0;249,61;249,61;OMESSO NOMINATIVO NEL RISPETTO DELLA NORMATIVA SULLA PROTEZIONE DATI PERSONALI; ;l.162/98;12/03/2019;1927;3;19;1;Spese correnti;4;Trasferimenti correnti;2;Trasferimenti correnti a Famiglie;2;Interventi assistenziali;999;Altri assegni e sussidi assistenziali;12/03/2019
211;1;0;77,49;77,49;OMESSO NOMINATIVO NEL RISPETTO DELLA NORMATIVA SULLA PROTEZIONE DATI PERSONALI; ;l.162/98;12/03/2019;1927;3;19;1;Spese correnti;4;Trasferimenti correnti;2;Trasferimenti correnti a Famiglie;2;Interventi assistenziali;999;Altri assegni e sussidi assistenziali;12/03/2019
212;1;0;459,9;459,9;OMESSO NOMINATIVO NEL RISPETTO DELLA NORMATIVA SULLA PROTEZIONE DATI PERSONALI; ;l.162/98;12/03/2019;1927;3;19;1;Spese correnti;4;Trasferimenti correnti;2;Trasferimenti correnti a Famiglie;2;Interventi assistenziali;999;Altri assegni e sussidi assistenziali;12/03/2019
213;1;0;130;130;OMESSO NOMINATIVO NEL RISPETTO DELLA NORMATIVA SULLA PROTEZIONE DATI PERSONALI; ;l.162/98;12/03/2019;1927;3;19;1;Spese correnti;4;Trasferimenti correnti;2;Trasferimenti correnti a Famiglie;2;Interventi assistenziali;999;Altri assegni e sussidi assistenziali;12/03/2019
214;1;0;98,95;98,95;OMESSO NOMINATIVO NEL RISPETTO DELLA NORMATIVA SULLA PROTEZIONE DATI PERSONALI; ;l.162/98;12/03/2019;1927;3;19;1;Spese correnti;4;Trasferimenti correnti;2;Trasferimenti correnti a Famiglie;2;Interventi assistenziali;999;Altri assegni e sussidi assistenziali;12/03/2019
215;1;0;5.783,26;5.783,26;UNIONE DEI COMUNI ALTA GALLURA;ZE81F03069;SALDO Fatt.n. 5/1/1  del 25/02/2019 ONERI SMALTIMENTO R.U. - ANNO 2018 - COMUNE DI LAERRU E BULZI GENNAIO/DICEMBRE 2018 200108 RIFIUTI BIODEGRADABILI;12/03/2019;1738;0;108;1;Spese correnti;3;Acquisto di beni e servizi;2;Acquisto di servizi;15;Contratti di servizio pubblico;5;Contratti di servizio per il conferimento in discarica dei rifiuti;12/03/2019
216;1;0;3.372,44;3.372,44;UNIONE DEI COMUNI ALTA GALLURA;ZF3276C32A;SALDO Fatt.n. 5/1/1  del 25/02/2019 ONERI SMALTIMENTO R.U. - ANNO 2018 - COMUNE DI LAERRU E BULZI GENNAIO/DICEMBRE 2018 200108 RIFIUTI BIODEGRADABILI;12/03/2019;1738;0;42;1;Spese correnti;3;Acquisto di beni e servizi;2;Acquisto di servizi;15;Contratti di servizio pubblico;5;Contratti di servizio per il conferimento in discarica dei rifiuti;12/03/2019
217;1;0;599;599;UNIPOL SAI AGENTI BECCU MARCO- TERROSU MASSIMILIANO;Z0C277DA1B;polizza automezzo comunale;12/03/2019;1056;3;43;1;Spese correnti;10;Altre spese correnti;4;Premi di assicurazione;1;Premi di assicurazione contro i danni;3;Premi di assicurazione per responsabilità civile verso terzi;12/03/2019
218;1;0;1.006,65;1.006,65;GBR ROSSETTO;Z8C264C3A2;SALDO Fatt.n. 126754/2018/V1  del 27/12/2018 CONTRIBUTO CONAI ASSOLTO OVE DOVUTO;14/03/2019;1043;2;197;1;Spese correnti;3;Acquisto di beni e servizi;1;Acquisto di beni;2;Altri beni di consumo;1;Carta, cancelleria e stampati;14/03/2019
219;1;0;0,03;0,03;GBR ROSSETTO;Z0E22EF271;SALDO Fatt.n. 30561/2018/V1  del 31/03/2018;14/03/2019;1043;2;72;1;Spese correnti;3;Acquisto di beni e servizi;1;Acquisto di beni;2;Altri beni di consumo;1;Carta, cancelleria e stampati;14/03/2019
220;1;0;1.481,58;1.481,58;PERSONALE DIVERSO (Confr.Allegato); ;STIPENDI MESE DI: MARZO 19;19/03/2019;1001;0;0;1;Spese correnti;3;Acquisto di beni e servizi;2;Acquisto di servizi;1;Organi e incarichi istituzionali dell'amministrazione;1;Organi istituzionali dell'amministrazione - Indennità;19/03/2019
249;1;0;2.563,66;2.563,66;PERSONALE DIVERSO (Confr.Allegato); ;COMPENSO LAVORO STRAORDINARIO CONSULTAZIONI 24/02/2019;19/03/2019;1065;1;0;1;Spese correnti;3;Acquisto di beni e servizi;2;Acquisto di servizi;99;Altri servizi;4;Altre spese per consultazioni elettorali dell'ente;19/03/2019
250;1;0;217,91;828,08;TESORERIA PROVINCIALE DELLO STATO; ;RITENUTE SU STRAORDINARIO;19/03/2019;1065;1;0;1;Spese correnti;3;Acquisto di beni e servizi;2;Acquisto di servizi;99;Altri servizi;4;Altre spese per consultazioni elettorali dell'ente;19/03/2019
250;2;0;610,17;828,08;TESORERIA PROVINCIALE DELLO STATO; ;RITENUTE SU STRAORDINARIO CPDEL;19/03/2019;1065;1;0;1;Spese correnti;3;Acquisto di beni e servizi;2;Acquisto di servizi;99;Altri servizi;4;Altre spese per consultazioni elettorali dell'ente;19/03/2019
253;1;0;1.662,65;1.662,65;CONSORZIO LA SORGENTE;7591934620;SALDO Fatt.n. 3/82  del 13/03/2019 VENDITA;20/03/2019;1902;0;31;1;Spese correnti;3;Acquisto di beni e servizi;2;Acquisto di servizi;15;Contratti di servizio pubblico;9;Contratti di servizio di assistenza sociale domiciliare;20/03/2019
254;1;0;1.372,50;1.372,50;SETCOM DI GABRIELE DIANA;ZB1279E7FD;SALDO Fatt.n. 4/PA  del 19/03/2019;26/03/2019;1035;0;48;1;Spese correnti;3;Acquisto di beni e servizi;2;Acquisto di servizi;19;Servizi informatici e di telecomunicazioni;5;Servizi per i sistemi e relativa manutenzione;26/03/2019
255;1;0;2.536,80;2.536,80;A.I.A.S.; ;FATT.N.275/A FEBBRAIO;26/03/2019;1934;0;30;1;Spese correnti;4;Trasferimenti correnti;4;Trasferimenti correnti a Istituzioni Sociali Private;1;Trasferimenti correnti a Istituzioni Sociali Private;1;Trasferimenti correnti a Istituzioni Sociali Private;26/03/2019
256;1;0;215,52;1.087,02;OMESSO NOMINATIVO NEL RISPETTO DELLA NORMATIVA SULLA PROTEZIONE DATI PERSONALI; ;l.162/98 FEBBRAIO;26/03/2019;1927;3;19;1;Spese correnti;4;Trasferimenti correnti;2;Trasferimenti correnti a Famiglie;2;Interventi assistenziali;999;Altri assegni e sussidi assistenziali;26/03/2019
256;2;0;296,78;1.087,02;OMESSO NOMINATIVO NEL RISPETTO DELLA NORMATIVA SULLA PROTEZIONE DATI PERSONALI; ;l.162/98 FEBBRAIO;26/03/2019;1927;3;19;1;Spese correnti;4;Trasferimenti correnti;2;Trasferimenti correnti a Famiglie;2;Interventi assistenziali;999;Altri assegni e sussidi assistenziali;26/03/2019
256;3;0;269,4;1.087,02;OMESSO NOMINATIVO NEL RISPETTO DELLA NORMATIVA SULLA PROTEZIONE DATI PERSONALI; ;l.162/98 FEBBRAIO;26/03/2019;1927;3;19;1;Spese correnti;4;Trasferimenti correnti;2;Trasferimenti correnti a Famiglie;2;Interventi assistenziali;999;Altri assegni e sussidi assistenziali;26/03/2019
256;4;0;305,32;1.087,02;OMESSO NOMINATIVO NEL RISPETTO DELLA NORMATIVA SULLA PROTEZIONE DATI PERSONALI; ;l.162/98 FEBBRAIO;26/03/2019;1927;3;19;1;Spese correnti;4;Trasferimenti correnti;2;Trasferimenti correnti a Famiglie;2;Interventi assistenziali;999;Altri assegni e sussidi assistenziali;26/03/2019
257;1;0;31,24;521,8;OMESSO NOMINATIVO NEL RISPETTO DELLA NORMATIVA SULLA PROTEZIONE DATI PERSONALI; ;l.162/98 FEBBRAIO;26/03/2019;1927;3;19;1;Spese correnti;4;Trasferimenti correnti;2;Trasferimenti correnti a Famiglie;2;Interventi assistenziali;999;Altri assegni e sussidi assistenziali;26/03/2019
257;2;0;151,56;521,8;OMESSO NOMINATIVO NEL RISPETTO DELLA NORMATIVA SULLA PROTEZIONE DATI PERSONALI; ;l.162/98 FEBBRAIO;26/03/2019;1927;3;19;1;Spese correnti;4;Trasferimenti correnti;2;Trasferimenti correnti a Famiglie;2;Interventi assistenziali;999;Altri assegni e sussidi assistenziali;26/03/2019
257;3;0;161,64;521,8;OMESSO NOMINATIVO NEL RISPETTO DELLA NORMATIVA SULLA PROTEZIONE DATI PERSONALI; ;l.162/98 FEBBRAIO;26/03/2019;1927;3;19;1;Spese correnti;4;Trasferimenti correnti;2;Trasferimenti correnti a Famiglie;2;Interventi assistenziali;999;Altri assegni e sussidi assistenziali;26/03/2019
257;4;0;177,36;521,8;OMESSO NOMINATIVO NEL RISPETTO DELLA NORMATIVA SULLA PROTEZIONE DATI PERSONALI; ;l.162/98 FEBBRAIO;26/03/2019;1927;3;19;1;Spese correnti;4;Trasferimenti correnti;2;Trasferimenti correnti a Famiglie;2;Interventi assistenziali;999;Altri assegni e sussidi assistenziali;26/03/2019
258;1;0;169,34;169,34;EDUPE';Z7F2686393;SALDO Fatt.n. 2/5  del 04/03/2019;26/03/2019;1360;0;210;1;Spese correnti;3;Acquisto di beni e servizi;2;Acquisto di servizi;11;Prestazioni professionali e specialistiche;2;Assistenza psicologica, sociale e religiosa;26/03/2019
260;1;0;352;352;CONSORZIO ENERGIA CEV; ;SALDO Fatt.n. 4552018  del 16/04/2018;03/04/2019;1043;10;0;1;Spese correnti;3;Acquisto di beni e servizi;2;Acquisto di servizi;5;Utenze e canoni;4;Energia elettrica;03/04/2019
261;1;0;2.623,95;2.623,95;AIRONE COOPERATIVA SOCIALE DI ASSISTENZA ONLUS;Z04256347E;SALDO Fatt.n. 374  del 13/03/2019 Fattura Cliente;03/04/2019;1899;1;23;1;Spese correnti;3;Acquisto di beni e servizi;2;Acquisto di servizi;11;Prestazioni professionali e specialistiche;999;Altre prestazioni professionali e specialistiche n.a.c.;03/04/2019
262;1;0;2.906,37;2.906,37;HALLEY SARDEGNA SRL;ZD326B45F5;SALDO Fatt.n. 0000401  del 01/04/2019;05/04/2019;1042;0;20;1;Spese correnti;3;Acquisto di beni e servizi;2;Acquisto di servizi;9;Manutenzione ordinaria e riparazioni;6;Manutenzione ordinaria e riparazioni di macchine per ufficio;05/04/2019
265;1;0;18.150,00;18.150,00;CICLAT TRASPORTI AMBIENTE SOC.COOP.;7,63E+14;SALDO Fatt.n. 226 -P  del 31/03/2019 FATTURA;05/04/2019;1738;0;14;1;Spese correnti;3;Acquisto di beni e servizi;2;Acquisto di servizi;15;Contratti di servizio pubblico;5;Contratti di servizio per il conferimento in discarica dei rifiuti;05/04/2019
266;1;0;1.626,67;1.626,67;CHESSA ALESSANDRO;Z9A1CFA2F9;SALDO Fatt.n. FATTPA 32_19  del 01/04/2019 Vs. dare per manutenzione ordinaria impianto di illuminazione pubblica ed impianti elettrici immobili comunali MARZO 2019;05/04/2019;1939;0;1;1;Spese correnti;3;Acquisto di beni e servizi;2;Acquisto di servizi;9;Manutenzione ordinaria e riparazioni;8;Manutenzione ordinaria e riparazioni di beni immobili;05/04/2019
267;1;0;920,98;920,98;MM IMPIANTISTICA DI MONAGHEDDU MASSIMILIANO VITTORIO;Z32256DAD3;SALDO Fatt.n. 3/PA  del 29/03/2019;05/04/2019;1514;2;29;1;Spese correnti;3;Acquisto di beni e servizi;2;Acquisto di servizi;5;Utenze e canoni;999;Utenze e canoni per altri servizi n.a.c.;05/04/2019
269;1;0;13.000,00;13.000,00;COMUNE DI OSILO; ;PIANO LOCALE UNITARIO SAD GENNAIO GIUGNO;05/04/2019;1920;11;51;1;Spese correnti;4;Trasferimenti correnti;1;Trasferimenti correnti a Amministrazioni Pubbliche;2;Trasferimenti correnti a Amministrazioni Locali;3;Trasferimenti correnti a Comuni;05/04/2019
270;1;0;117,55;869,75;OMESSO NOMINATIVO NEL RISPETTO DELLA NORMATIVA SULLA PROTEZIONE DATI PERSONALI; ;l.162/98 marzo;09/04/2019;1927;3;19;1;Spese correnti;4;Trasferimenti correnti;2;Trasferimenti correnti a Famiglie;2;Interventi assistenziali;999;Altri assegni e sussidi assistenziali;09/04/2019
270;2;0;97,27;869,75;OMESSO NOMINATIVO NEL RISPETTO DELLA NORMATIVA SULLA PROTEZIONE DATI PERSONALI; ;l.162/98 marzo;09/04/2019;1927;3;19;1;Spese correnti;4;Trasferimenti correnti;2;Trasferimenti correnti a Famiglie;2;Interventi assistenziali;999;Altri assegni e sussidi assistenziali;09/04/2019
270;3;0;192,25;869,75;OMESSO NOMINATIVO NEL RISPETTO DELLA NORMATIVA SULLA PROTEZIONE DATI PERSONALI; ;l.162/98 marzo;09/04/2019;1927;3;19;1;Spese correnti;4;Trasferimenti correnti;2;Trasferimenti correnti a Famiglie;2;Interventi assistenziali;999;Altri assegni e sussidi assistenziali;09/04/2019
270;4;0;249,5;869,75;OMESSO NOMINATIVO NEL RISPETTO DELLA NORMATIVA SULLA PROTEZIONE DATI PERSONALI; ;l.162/98 marzo;09/04/2019;1927;3;19;1;Spese correnti;4;Trasferimenti correnti;2;Trasferimenti correnti a Famiglie;2;Interventi assistenziali;999;Altri assegni e sussidi assistenziali;09/04/2019
270;5;0;213,18;869,75;OMESSO NOMINATIVO NEL RISPETTO DELLA NORMATIVA SULLA PROTEZIONE DATI PERSONALI; ;l.162/98 marzo;09/04/2019;1927;3;19;1;Spese correnti;4;Trasferimenti correnti;2;Trasferimenti correnti a Famiglie;2;Interventi assistenziali;999;Altri assegni e sussidi assistenziali;09/04/2019
271;1;0;624,2;980,85;OMESSO NOMINATIVO NEL RISPETTO DELLA NORMATIVA SULLA PROTEZIONE DATI PERSONALI; ;l.162/98 marzo;09/04/2019;1927;3;19;1;Spese correnti;4;Trasferimenti correnti;2;Trasferimenti correnti a Famiglie;2;Interventi assistenziali;999;Altri assegni e sussidi assistenziali;09/04/2019
271;2;0;212,1;980,85;OMESSO NOMINATIVO NEL RISPETTO DELLA NORMATIVA SULLA PROTEZIONE DATI PERSONALI; ;l.162/98 marzo;09/04/2019;1927;3;19;1;Spese correnti;4;Trasferimenti correnti;2;Trasferimenti correnti a Famiglie;2;Interventi assistenziali;999;Altri assegni e sussidi assistenziali;09/04/2019
271;3;0;144,55;980,85;OMESSO NOMINATIVO NEL RISPETTO DELLA NORMATIVA SULLA PROTEZIONE DATI PERSONALI; ;l.162/98 marzo;09/04/2019;1927;3;19;1;Spese correnti;4;Trasferimenti correnti;2;Trasferimenti correnti a Famiglie;2;Interventi assistenziali;999;Altri assegni e sussidi assistenziali;09/04/2019
272;1;0;327,35;1.261,18;OMESSO NOMINATIVO NEL RISPETTO DELLA NORMATIVA SULLA PROTEZIONE DATI PERSONALI; ;l.162/98 marzo;09/04/2019;1927;3;19;1;Spese correnti;4;Trasferimenti correnti;2;Trasferimenti correnti a Famiglie;2;Interventi assistenziali;999;Altri assegni e sussidi assistenziali;09/04/2019
272;2;0;181,83;1.261,18;OMESSO NOMINATIVO NEL RISPETTO DELLA NORMATIVA SULLA PROTEZIONE DATI PERSONALI; ;l.162/98 marzo;09/04/2019;1927;3;19;1;Spese correnti;4;Trasferimenti correnti;2;Trasferimenti correnti a Famiglie;2;Interventi assistenziali;999;Altri assegni e sussidi assistenziali;09/04/2019
272;3;0;752;1.261,18;OMESSO NOMINATIVO NEL RISPETTO DELLA NORMATIVA SULLA PROTEZIONE DATI PERSONALI; ;l.162/98 marzo;09/04/2019;1927;3;19;1;Spese correnti;4;Trasferimenti correnti;2;Trasferimenti correnti a Famiglie;2;Interventi assistenziali;999;Altri assegni e sussidi assistenziali;09/04/2019
273;1;0;402,45;877,61;OMESSO NOMINATIVO NEL RISPETTO DELLA NORMATIVA SULLA PROTEZIONE DATI PERSONALI; ;l.162/98 marzo;09/04/2019;1927;3;19;1;Spese correnti;4;Trasferimenti correnti;2;Trasferimenti correnti a Famiglie;2;Interventi assistenziali;999;Altri assegni e sussidi assistenziali;09/04/2019
273;2;0;308,5;877,61;OMESSO NOMINATIVO NEL RISPETTO DELLA NORMATIVA SULLA PROTEZIONE DATI PERSONALI; ;l.162/98 marzo;09/04/2019;1927;3;19;1;Spese correnti;4;Trasferimenti correnti;2;Trasferimenti correnti a Famiglie;2;Interventi assistenziali;999;Altri assegni e sussidi assistenziali;09/04/2019
273;3;0;166,66;877,61;OMESSO NOMINATIVO NEL RISPETTO DELLA NORMATIVA SULLA PROTEZIONE DATI PERSONALI; ;l.162/98 marzo;09/04/2019;1927;3;19;1;Spese correnti;4;Trasferimenti correnti;2;Trasferimenti correnti a Famiglie;2;Interventi assistenziali;999;Altri assegni e sussidi assistenziali;09/04/2019
274;1;0;199;1.111,65;OMESSO NOMINATIVO NEL RISPETTO DELLA NORMATIVA SULLA PROTEZIONE DATI PERSONALI; ;l.162/98 marzo;09/04/2019;1927;3;19;1;Spese correnti;4;Trasferimenti correnti;2;Trasferimenti correnti a Famiglie;2;Interventi assistenziali;999;Altri assegni e sussidi assistenziali;09/04/2019
274;2;0;466,25;1.111,65;OMESSO NOMINATIVO NEL RISPETTO DELLA NORMATIVA SULLA PROTEZIONE DATI PERSONALI; ;l.162/98 marzo;09/04/2019;1927;3;19;1;Spese correnti;4;Trasferimenti correnti;2;Trasferimenti correnti a Famiglie;2;Interventi assistenziali;999;Altri assegni e sussidi assistenziali;09/04/2019
274;3;0;446,4;1.111,65;OMESSO NOMINATIVO NEL RISPETTO DELLA NORMATIVA SULLA PROTEZIONE DATI PERSONALI; ;l.162/98 marzo;09/04/2019;1927;3;19;1;Spese correnti;4;Trasferimenti correnti;2;Trasferimenti correnti a Famiglie;2;Interventi assistenziali;999;Altri assegni e sussidi assistenziali;09/04/2019
275;1;0;249,61;793,77;OMESSO NOMINATIVO NEL RISPETTO DELLA NORMATIVA SULLA PROTEZIONE DATI PERSONALI; ;l.162/98 marzo;09/04/2019;1927;3;19;1;Spese correnti;4;Trasferimenti correnti;2;Trasferimenti correnti a Famiglie;2;Interventi assistenziali;999;Altri assegni e sussidi assistenziali;09/04/2019
275;2;0;147,41;793,77;OMESSO NOMINATIVO NEL RISPETTO DELLA NORMATIVA SULLA PROTEZIONE DATI PERSONALI; ;l.162/98 marzo;09/04/2019;1927;3;19;1;Spese correnti;4;Trasferimenti correnti;2;Trasferimenti correnti a Famiglie;2;Interventi assistenziali;999;Altri assegni e sussidi assistenziali;09/04/2019
275;3;0;207,5;793,77;OMESSO NOMINATIVO NEL RISPETTO DELLA NORMATIVA SULLA PROTEZIONE DATI PERSONALI; ;l.162/98 marzo;09/04/2019;1927;3;19;1;Spese correnti;4;Trasferimenti correnti;2;Trasferimenti correnti a Famiglie;2;Interventi assistenziali;999;Altri assegni e sussidi assistenziali;09/04/2019
275;4;0;189,25;793,77;OMESSO NOMINATIVO NEL RISPETTO DELLA NORMATIVA SULLA PROTEZIONE DATI PERSONALI; ;l.162/98 marzo;09/04/2019;1927;3;19;1;Spese correnti;4;Trasferimenti correnti;2;Trasferimenti correnti a Famiglie;2;Interventi assistenziali;999;Altri assegni e sussidi assistenziali;09/04/2019
277;1;0;150;330;OMISSIS; ;REIS marzo 2019;10/04/2019;1912;3;153;1;Spese correnti;4;Trasferimenti correnti;2;Trasferimenti correnti a Famiglie;2;Interventi assistenziali;999;Altri assegni e sussidi assistenziali;10/04/2019
277;2;0;60;330;OMISSIS; ;REIS marzo 2019;10/04/2019;1912;3;153;1;Spese correnti;4;Trasferimenti correnti;2;Trasferimenti correnti a Famiglie;2;Interventi assistenziali;999;Altri assegni e sussidi assistenziali;10/04/2019
277;3;0;60;330;OMISSIS; ;REIS marzo 2019;10/04/2019;1912;3;153;1;Spese correnti;4;Trasferimenti correnti;2;Trasferimenti correnti a Famiglie;2;Interventi assistenziali;999;Altri assegni e sussidi assistenziali;10/04/2019
277;4;0;60;330;OMISSIS; ;REIS marzo 2019;10/04/2019;1912;3;153;1;Spese correnti;4;Trasferimenti correnti;2;Trasferimenti correnti a Famiglie;2;Interventi assistenziali;999;Altri assegni e sussidi assistenziali;10/04/2019
278;1;0;150;450;OMISSIS; ;REIS MARZO;10/04/2019;1912;3;153;1;Spese correnti;4;Trasferimenti correnti;2;Trasferimenti correnti a Famiglie;2;Interventi assistenziali;999;Altri assegni e sussidi assistenziali;10/04/2019
278;2;0;90;450;OMISSIS; ;REIS MARZO;10/04/2019;1912;3;153;1;Spese correnti;4;Trasferimenti correnti;2;Trasferimenti correnti a Famiglie;2;Interventi assistenziali;999;Altri assegni e sussidi assistenziali;10/04/2019
278;3;0;150;450;OMISSIS; ;REIS MARZO;10/04/2019;1912;3;153;1;Spese correnti;4;Trasferimenti correnti;2;Trasferimenti correnti a Famiglie;2;Interventi assistenziali;999;Altri assegni e sussidi assistenziali;10/04/2019
278;4;0;60;450;OMISSIS; ;REIS MARZO;10/04/2019;1912;3;153;1;Spese correnti;4;Trasferimenti correnti;2;Trasferimenti correnti a Famiglie;2;Interventi assistenziali;999;Altri assegni e sussidi assistenziali;10/04/2019
279;1;0;400;1.400,00;OMISSIS; ;REIS MARZO;10/04/2019;1912;3;153;1;Spese correnti;4;Trasferimenti correnti;2;Trasferimenti correnti a Famiglie;2;Interventi assistenziali;999;Altri assegni e sussidi assistenziali;10/04/2019
279;2;0;400;1.400,00;OMISSIS; ;REIS MARZO;10/04/2019;1912;3;153;1;Spese correnti;4;Trasferimenti correnti;2;Trasferimenti correnti a Famiglie;2;Interventi assistenziali;999;Altri assegni e sussidi assistenziali;10/04/2019
279;3;0;300;1.400,00;OMISSIS; ;REIS MARZO;10/04/2019;1912;3;153;1;Spese correnti;4;Trasferimenti correnti;2;Trasferimenti correnti a Famiglie;2;Interventi assistenziali;999;Altri assegni e sussidi assistenziali;10/04/2019
279;4;0;300;1.400,00;OMISSIS; ;REIS MARZO;10/04/2019;1912;3;153;1;Spese correnti;4;Trasferimenti correnti;2;Trasferimenti correnti a Famiglie;2;Interventi assistenziali;999;Altri assegni e sussidi assistenziali;10/04/2019
280;1;0;200;1.200,00;OMISSIS; ;REIS;10/04/2019;1912;3;153;1;Spese correnti;4;Trasferimenti correnti;2;Trasferimenti correnti a Famiglie;2;Interventi assistenziali;999;Altri assegni e sussidi assistenziali;10/04/2019
280;2;0;300;1.200,00;OMISSIS; ;REIS;10/04/2019;1912;3;153;1;Spese correnti;4;Trasferimenti correnti;2;Trasferimenti correnti a Famiglie;2;Interventi assistenziali;999;Altri assegni e sussidi assistenziali;10/04/2019
280;3;0;300;1.200,00;OMISSIS; ;REIS;10/04/2019;1912;3;153;1;Spese correnti;4;Trasferimenti correnti;2;Trasferimenti correnti a Famiglie;2;Interventi assistenziali;999;Altri assegni e sussidi assistenziali;10/04/2019
280;4;0;400;1.200,00;OMISSIS; ;REIS;10/04/2019;1912;3;153;1;Spese correnti;4;Trasferimenti correnti;2;Trasferimenti correnti a Famiglie;2;Interventi assistenziali;999;Altri assegni e sussidi assistenziali;10/04/2019
281;1;0;400;1.800,00;OMISSIS; ;REIS MARZO;10/04/2019;1912;3;153;1;Spese correnti;4;Trasferimenti correnti;2;Trasferimenti correnti a Famiglie;2;Interventi assistenziali;999;Altri assegni e sussidi assistenziali;10/04/2019
281;2;0;400;1.800,00;OMISSIS; ;REIS MARZO;10/04/2019;1912;3;153;1;Spese correnti;4;Trasferimenti correnti;2;Trasferimenti correnti a Famiglie;2;Interventi assistenziali;999;Altri assegni e sussidi assistenziali;10/04/2019
281;3;0;500;1.800,00;OMISSIS; ;REIS MARZO;10/04/2019;1912;3;153;1;Spese correnti;4;Trasferimenti correnti;2;Trasferimenti correnti a Famiglie;2;Interventi assistenziali;999;Altri assegni e sussidi assistenziali;10/04/2019
281;4;0;500;1.800,00;OMISSIS; ;REIS MARZO;10/04/2019;1912;3;153;1;Spese correnti;4;Trasferimenti correnti;2;Trasferimenti correnti a Famiglie;2;Interventi assistenziali;999;Altri assegni e sussidi assistenziali;10/04/2019
282;1;0;500;1.900,00;OMISSIS; ;REIS MARZO;10/04/2019;1912;3;153;1;Spese correnti;4;Trasferimenti correnti;2;Trasferimenti correnti a Famiglie;2;Interventi assistenziali;999;Altri assegni e sussidi assistenziali;10/04/2019
282;2;0;500;1.900,00;OMISSIS; ;REIS MARZO;10/04/2019;1912;3;153;1;Spese correnti;4;Trasferimenti correnti;2;Trasferimenti correnti a Famiglie;2;Interventi assistenziali;999;Altri assegni e sussidi assistenziali;10/04/2019
282;3;0;500;1.900,00;OMISSIS; ;REIS MARZO;10/04/2019;1912;3;153;1;Spese correnti;4;Trasferimenti correnti;2;Trasferimenti correnti a Famiglie;2;Interventi assistenziali;999;Altri assegni e sussidi assistenziali;10/04/2019
282;4;0;400;1.900,00;OMISSIS; ;REIS MARZO;10/04/2019;1912;3;153;1;Spese correnti;4;Trasferimenti correnti;2;Trasferimenti correnti a Famiglie;2;Interventi assistenziali;999;Altri assegni e sussidi assistenziali;10/04/2019
283;1;0;201,1;201,1;EDUPE';Z7F2686393;SALDO Fatt.n. 2/6  del 01/04/2019;10/04/2019;1360;0;210;1;Spese correnti;3;Acquisto di beni e servizi;2;Acquisto di servizi;11;Prestazioni professionali e specialistiche;2;Assistenza psicologica, sociale e religiosa;10/04/2019
284;1;0;1.187,60;1.187,60;BOSINCO LUIGI;Z341F3FOCC;SALDO Fatt.n. FATTPA 11_19  del 02/04/2019 gestione scuolabus mese di marzo 2019 C.I.G. Z341F3FOCC;10/04/2019;1400;0;132;1;Spese correnti;3;Acquisto di beni e servizi;2;Acquisto di servizi;15;Contratti di servizio pubblico;2;Contratti di servizio di trasporto scolastico;10/04/2019
285;1;0;2.320,28;2.320,28;SILODEMA SOCIETA' COOPERATIVA SOCIALE A R.L.;7585760F2B;SALDO Fatt.n. FATTPA 21_19  del 01/04/2019 Servizio mensa svolto nel mese di Marzo     CIG 7585760F2B;10/04/2019;1352;3;52;1;Spese correnti;3;Acquisto di beni e servizi;2;Acquisto di servizi;15;Contratti di servizio pubblico;6;Contratti di servizio per le mense scolastiche;10/04/2019
286;1;0;329,01;329,01;ASARA MAURIZIO;ZD725234E3;SALDO Fatt.n. FATTPA 17_19  del 02/04/2019;10/04/2019;1600;0;171;1;Spese correnti;3;Acquisto di beni e servizi;2;Acquisto di servizi;18;Servizi sanitari;13;Acquisti di servizi di trasporto in emergenza e urgenza;10/04/2019
287;1;0;3.143,89;3.143,89;GLOBAL POWER;622385037F;ACCONTO Fatt.n. V0/22037  del 01/02/2019 Fattura Energia Elettrica;10/04/2019;1937;1;53;1;Spese correnti;3;Acquisto di beni e servizi;2;Acquisto di servizi;5;Utenze e canoni;4;Energia elettrica;10/04/2019
288;1;0;-158,16;691,66;GLOBAL POWER;622385037F;ACCONTO Fatt.n. V0/22037  del 01/02/2019 Fattura Energia Elettrica;10/04/2019;1937;1;53;1;Spese correnti;3;Acquisto di beni e servizi;2;Acquisto di servizi;5;Utenze e canoni;4;Energia elettrica;10/04/2019
288;2;0;849,82;691,66;GLOBAL POWER;622385037F;SALDO Fatt.n. V0/22037  del 01/02/2019 Fattura Energia Elettrica;10/04/2019;1937;1;53;1;Spese correnti;3;Acquisto di beni e servizi;2;Acquisto di servizi;5;Utenze e canoni;4;Energia elettrica;10/04/2019
289;1;0;159,55;159,55;GLOBAL POWER;Z6E2234C3D;ACCONTO Fatt.n. V0/22038  del 01/02/2019 Fattura Energia Elettrica;10/04/2019;1937;1;53;1;Spese correnti;3;Acquisto di beni e servizi;2;Acquisto di servizi;5;Utenze e canoni;4;Energia elettrica;10/04/2019
290;1;0;1.414,28;1.414,28;GLOBAL POWER;622385037F;ACCONTO Fatt.n. V0/22038  del 01/02/2019 Fattura Energia Elettrica;10/04/2019;1937;1;53;1;Spese correnti;3;Acquisto di beni e servizi;2;Acquisto di servizi;5;Utenze e canoni;4;Energia elettrica;10/04/2019
291;1;0;350,64;350,64;GLOBAL POWER;622385037F;SALDO Fatt.n. V0/22038  del 01/02/2019 Fattura Energia Elettrica;10/04/2019;1937;1;53;1;Spese correnti;3;Acquisto di beni e servizi;2;Acquisto di servizi;5;Utenze e canoni;4;Energia elettrica;10/04/2019
292;1;0;2.434,32;2.434,32;GLOBAL POWER;ZD9273DFBF;ACCONTO Fatt.n. V0/35672  del 01/03/2019 Fattura Energia Elettrica;10/04/2019;1937;1;53;1;Spese correnti;3;Acquisto di beni e servizi;2;Acquisto di servizi;5;Utenze e canoni;4;Energia elettrica;10/04/2019
293;1;0;535,55;535,55;GLOBAL POWER;ZD9273DFBF;SALDO Fatt.n. V0/35672  del 01/03/2019 Fattura Energia Elettrica;10/04/2019;1937;1;53;1;Spese correnti;3;Acquisto di beni e servizi;2;Acquisto di servizi;5;Utenze e canoni;4;Energia elettrica;10/04/2019
294;1;0;1.750,17;1.750,17;GLOBAL POWER;ZD9273DFBF;ACCONTO Fatt.n. V0/35673  del 01/03/2019 Fattura Energia Elettrica;10/04/2019;1937;1;53;1;Spese correnti;3;Acquisto di beni e servizi;2;Acquisto di servizi;5;Utenze e canoni;4;Energia elettrica;10/04/2019
295;1;0;87,06;87,06;GLOBAL POWER;Z6E2234C3D;SALDO Fatt.n. V0/35673  del 01/03/2019 Fattura Energia Elettrica;10/04/2019;1937;1;53;1;Spese correnti;3;Acquisto di beni e servizi;2;Acquisto di servizi;5;Utenze e canoni;4;Energia elettrica;10/04/2019
296;1;0;404,28;404,28;GLOBAL POWER;Z6E2234C3D;SALDO Fatt.n. V0/35673  del 01/03/2019 Fattura Energia Elettrica;10/04/2019;1937;1;53;1;Spese correnti;3;Acquisto di beni e servizi;2;Acquisto di servizi;5;Utenze e canoni;4;Energia elettrica;10/04/2019
297;1;0;0,4;0,4;GLOBAL POWER;Z6E2234C3D;SALDO Fatt.n. V0/35673  del 01/03/2019 Fattura Energia Elettrica;10/04/2019;1937;1;53;1;Spese correnti;3;Acquisto di beni e servizi;2;Acquisto di servizi;5;Utenze e canoni;4;Energia elettrica;10/04/2019
298;1;0;510,14;2.356,53;OMESSO NOMINATIVO NEL RISPETTO DELLA NORMATIVA SULLA PROTEZIONE DATI PERSONALI; ;leggi di settore;10/04/2019;1906;0;54;1;Spese correnti;4;Trasferimenti correnti;2;Trasferimenti correnti a Famiglie;2;Interventi assistenziali;999;Altri assegni e sussidi assistenziali;10/04/2019
298;2;0;510,14;2.356,53;OMESSO NOMINATIVO NEL RISPETTO DELLA NORMATIVA SULLA PROTEZIONE DATI PERSONALI; ;leggi di settore;10/04/2019;1906;0;54;1;Spese correnti;4;Trasferimenti correnti;2;Trasferimenti correnti a Famiglie;2;Interventi assistenziali;999;Altri assegni e sussidi assistenziali;10/04/2019
298;3;0;826,11;2.356,53;OMESSO NOMINATIVO NEL RISPETTO DELLA NORMATIVA SULLA PROTEZIONE DATI PERSONALI; ;leggi di settore;10/04/2019;1906;0;54;1;Spese correnti;4;Trasferimenti correnti;2;Trasferimenti correnti a Famiglie;2;Interventi assistenziali;999;Altri assegni e sussidi assistenziali;10/04/2019
298;4;0;510,14;2.356,53;OMESSO NOMINATIVO NEL RISPETTO DELLA NORMATIVA SULLA PROTEZIONE DATI PERSONALI; ;leggi di settore;10/04/2019;1906;0;54;1;Spese correnti;4;Trasferimenti correnti;2;Trasferimenti correnti a Famiglie;2;Interventi assistenziali;999;Altri assegni e sussidi assistenziali;10/04/2019
299;1;0;1.468,86;1.995,22;OMESSO NOMINATIVO NEL RISPETTO DELLA NORMATIVA SULLA PROTEZIONE DATI PERSONALI; ;leggi di settore;10/04/2019;1906;0;54;1;Spese correnti;4;Trasferimenti correnti;2;Trasferimenti correnti a Famiglie;2;Interventi assistenziali;999;Altri assegni e sussidi assistenziali;10/04/2019
299;2;0;526,36;1.995,22;OMESSO NOMINATIVO NEL RISPETTO DELLA NORMATIVA SULLA PROTEZIONE DATI PERSONALI; ;leggi di settore;10/04/2019;1906;0;54;1;Spese correnti;4;Trasferimenti correnti;2;Trasferimenti correnti a Famiglie;2;Interventi assistenziali;999;Altri assegni e sussidi assistenziali;10/04/2019
300;1;0;269,91;1.329,33;OMESSO NOMINATIVO NEL RISPETTO DELLA NORMATIVA SULLA PROTEZIONE DATI PERSONALI; ;leggi di settore;10/04/2019;1906;0;54;1;Spese correnti;4;Trasferimenti correnti;2;Trasferimenti correnti a Famiglie;2;Interventi assistenziali;999;Altri assegni e sussidi assistenziali;10/04/2019
300;2;0;549,28;1.329,33;OMESSO NOMINATIVO NEL RISPETTO DELLA NORMATIVA SULLA PROTEZIONE DATI PERSONALI; ;leggi di settore;10/04/2019;1906;0;54;1;Spese correnti;4;Trasferimenti correnti;2;Trasferimenti correnti a Famiglie;2;Interventi assistenziali;999;Altri assegni e sussidi assistenziali;10/04/2019
300;3;0;510,14;1.329,33;OMESSO NOMINATIVO NEL RISPETTO DELLA NORMATIVA SULLA PROTEZIONE DATI PERSONALI; ;leggi di settore;10/04/2019;1906;0;54;1;Spese correnti;4;Trasferimenti correnti;2;Trasferimenti correnti a Famiglie;2;Interventi assistenziali;999;Altri assegni e sussidi assistenziali;10/04/2019
301;1;0;774,69;1.549,38;OMESSO NOMINATIVO NEL RISPETTO DELLA NORMATIVA SULLA PROTEZIONE DATI PERSONALI; ;leggi di settore;10/04/2019;1906;0;54;1;Spese correnti;4;Trasferimenti correnti;2;Trasferimenti correnti a Famiglie;2;Interventi assistenziali;999;Altri assegni e sussidi assistenziali;10/04/2019
301;2;0;774,69;1.549,38;OMESSO NOMINATIVO NEL RISPETTO DELLA NORMATIVA SULLA PROTEZIONE DATI PERSONALI; ;leggi di settore;10/04/2019;1906;0;54;1;Spese correnti;4;Trasferimenti correnti;2;Trasferimenti correnti a Famiglie;2;Interventi assistenziali;999;Altri assegni e sussidi assistenziali;10/04/2019
302;1;0;507,06;507,06;TURRA GAVINA; ;rimborso spese viaggio gennaio febbraio marzo;10/04/2019;1024;3;55;1;Spese correnti;3;Acquisto di beni e servizi;2;Acquisto di servizi;2;Organizzazione eventi, pubblicita` e servizi per trasferta;1;Rimborso per viaggio e trasloco;10/04/2019
303;1;0;1.159,00;1.159,00;E-FIL;Z9C2580DD9;"SALDO Fatt.n. 55/19/PA  del 29/03/2019 soluzione Plug &amp; Pay nodoPA - canone anno 2019";11/04/2019;1043;12;154;1;Spese correnti;3;Acquisto di beni e servizi;2;Acquisto di servizi;5;Utenze e canoni;999;Utenze e canoni per altri servizi n.a.c.;11/04/2019
304;1;0;2.700,00;2.700,00;EUROPEAN BROKERS S.R.L.;Z8527E1982;POLIZZA ASSICURATIVA RCT/O;11/04/2019;1045;0;56;1;Spese correnti;10;Altre spese correnti;4;Premi di assicurazione;1;Premi di assicurazione contro i danni;3;Premi di assicurazione per responsabilità civile verso terzi;11/04/2019
305;1;0;1.481,58;1.481,58;PERSONALE DIVERSO (Confr.Allegato); ;STIPENDI MESE DI: APRILE 19;15/04/2019;1001;0;0;1;Spese correnti;3;Acquisto di beni e servizi;2;Acquisto di servizi;1;Organi e incarichi istituzionali dell'amministrazione;1;Organi istituzionali dell'amministrazione - Indennità;15/04/2019
334;1;0;358,56;358,56;POSTE ITALIANE;ZDB270E28A;SALDO Fatt.n. 8719074362  del 18/03/2019 Fattura Elettronica relativa all'Identificativo Rendiconto 2100994351;17/04/2019;1043;11;13;1;Spese correnti;3;Acquisto di beni e servizi;2;Acquisto di servizi;16;Servizi amministrativi;2;Spese postali;17/04/2019
335;1;0;31,3;59,47;CATTARI NICOLINA; ;rimborso spese;17/04/2019;1043;3;60;1;Spese correnti;3;Acquisto di beni e servizi;2;Acquisto di servizi;4;Acquisto di servizi per formazione e addestramento del personale dell'ente;999;Acquisto di servizi per altre spese per formazione e addestramento n.a.c.;17/04/2019
335;2;0;28,17;59,47;ZANDA MONICA; ;rimborso spese;17/04/2019;1043;3;60;1;Spese correnti;3;Acquisto di beni e servizi;2;Acquisto di servizi;4;Acquisto di servizi per formazione e addestramento del personale dell'ente;999;Acquisto di servizi per altre spese per formazione e addestramento n.a.c.;17/04/2019
336;1;0;100;200;CATTARI NICOLINA; ;rimborso spese;17/04/2019;1043;3;60;1;Spese correnti;3;Acquisto di beni e servizi;2;Acquisto di servizi;4;Acquisto di servizi per formazione e addestramento del personale dell'ente;999;Acquisto di servizi per altre spese per formazione e addestramento n.a.c.;17/04/2019
336;2;0;100;200;ZANDA MONICA; ;rimborso spese;17/04/2019;1043;3;60;1;Spese correnti;3;Acquisto di beni e servizi;2;Acquisto di servizi;4;Acquisto di servizi per formazione e addestramento del personale dell'ente;999;Acquisto di servizi per altre spese per formazione e addestramento n.a.c.;17/04/2019
338;1;0;74,74;74,74;ZANDA MONICA; ;RIMBORSO SPESE VIAGGIO;17/04/2019;1024;3;61;1;Spese correnti;3;Acquisto di beni e servizi;2;Acquisto di servizi;2;Organizzazione eventi, pubblicita` e servizi per trasferta;1;Rimborso per viaggio e trasloco;17/04/2019
340;1;0;251,44;1.138,56;OMESSO NOMINATIVO NEL RISPETTO DELLA NORMATIVA SULLA PROTEZIONE DATI PERSONALI; ;l.162/98 MESE MARZO;17/04/2019;1927;3;19;1;Spese correnti;4;Trasferimenti correnti;2;Trasferimenti correnti a Famiglie;2;Interventi assistenziali;999;Altri assegni e sussidi assistenziali;17/04/2019
340;2;0;312,4;1.138,56;OMESSO NOMINATIVO NEL RISPETTO DELLA NORMATIVA SULLA PROTEZIONE DATI PERSONALI; ;l.162/98 MESE MARZO;17/04/2019;1927;3;19;1;Spese correnti;4;Trasferimenti correnti;2;Trasferimenti correnti a Famiglie;2;Interventi assistenziali;999;Altri assegni e sussidi assistenziali;17/04/2019
340;3;0;269,4;1.138,56;OMESSO NOMINATIVO NEL RISPETTO DELLA NORMATIVA SULLA PROTEZIONE DATI PERSONALI; ;l.162/98 MESE MARZO;17/04/2019;1927;3;19;1;Spese correnti;4;Trasferimenti correnti;2;Trasferimenti correnti a Famiglie;2;Interventi assistenziali;999;Altri assegni e sussidi assistenziali;17/04/2019
340;4;0;305,32;1.138,56;OMESSO NOMINATIVO NEL RISPETTO DELLA NORMATIVA SULLA PROTEZIONE DATI PERSONALI; ;l.162/98 MESE MARZO;17/04/2019;1927;3;19;1;Spese correnti;4;Trasferimenti correnti;2;Trasferimenti correnti a Famiglie;2;Interventi assistenziali;999;Altri assegni e sussidi assistenziali;17/04/2019
341;1;0;143,68;644,32;OMESSO NOMINATIVO NEL RISPETTO DELLA NORMATIVA SULLA PROTEZIONE DATI PERSONALI; ;l.162/98 MARZO;17/04/2019;1927;3;19;1;Spese correnti;4;Trasferimenti correnti;2;Trasferimenti correnti a Famiglie;2;Interventi assistenziali;999;Altri assegni e sussidi assistenziali;17/04/2019
341;2;0;151,56;644,32;OMESSO NOMINATIVO NEL RISPETTO DELLA NORMATIVA SULLA PROTEZIONE DATI PERSONALI; ;l.162/98 MARZO;17/04/2019;1927;3;19;1;Spese correnti;4;Trasferimenti correnti;2;Trasferimenti correnti a Famiglie;2;Interventi assistenziali;999;Altri assegni e sussidi assistenziali;17/04/2019
341;3;0;161,64;644,32;OMESSO NOMINATIVO NEL RISPETTO DELLA NORMATIVA SULLA PROTEZIONE DATI PERSONALI; ;l.162/98 MARZO;17/04/2019;1927;3;19;1;Spese correnti;4;Trasferimenti correnti;2;Trasferimenti correnti a Famiglie;2;Interventi assistenziali;999;Altri assegni e sussidi assistenziali;17/04/2019
341;4;0;187,44;644,32;OMESSO NOMINATIVO NEL RISPETTO DELLA NORMATIVA SULLA PROTEZIONE DATI PERSONALI; ;l.162/98 MARZO;17/04/2019;1927;3;19;1;Spese correnti;4;Trasferimenti correnti;2;Trasferimenti correnti a Famiglie;2;Interventi assistenziali;999;Altri assegni e sussidi assistenziali;17/04/2019
342;1;0;459,9;834,9;OMESSO NOMINATIVO NEL RISPETTO DELLA NORMATIVA SULLA PROTEZIONE DATI PERSONALI; ;l.162/98 MARZO;17/04/2019;1927;3;19;1;Spese correnti;4;Trasferimenti correnti;2;Trasferimenti correnti a Famiglie;2;Interventi assistenziali;999;Altri assegni e sussidi assistenziali;17/04/2019
342;2;0;375;834,9;OMESSO NOMINATIVO NEL RISPETTO DELLA NORMATIVA SULLA PROTEZIONE DATI PERSONALI; ;l.162/98 MARZO;17/04/2019;1927;3;19;1;Spese correnti;4;Trasferimenti correnti;2;Trasferimenti correnti a Famiglie;2;Interventi assistenziali;999;Altri assegni e sussidi assistenziali;17/04/2019
348;1;0;272,98;272,98;UNIONE DEI COMUNI ALTA GALLURA;ZF3276C32A;ACCONTO Fatt.n. 5/1/1  del 25/02/2019 ONERI SMALTIMENTO R.U. - ANNO 2018 - COMUNE DI LAERRU E BULZI GENNAIO/DICEMBRE 2018 200108 RIFIUTI BIODEGRADABILI;17/04/2019;1738;0;42;1;Spese correnti;3;Acquisto di beni e servizi;2;Acquisto di servizi;15;Contratti di servizio pubblico;5;Contratti di servizio per il conferimento in discarica dei rifiuti;17/04/2019
349;1;0;642,59;642,59;UNIONE DEI COMUNI ALTA GALLURA;ZE81F03069;SALDO Fatt.n. 5/1/1  del 25/02/2019 ONERI SMALTIMENTO R.U. - ANNO 2018 - COMUNE DI LAERRU E BULZI GENNAIO/DICEMBRE 2018 200108 RIFIUTI BIODEGRADABILI;17/04/2019;1738;0;108;1;Spese correnti;3;Acquisto di beni e servizi;2;Acquisto di servizi;15;Contratti di servizio pubblico;5;Contratti di servizio per il conferimento in discarica dei rifiuti;17/04/2019
350;1;0;187,35;187,35;COMUNE DI SASSARI; ;SALDO Fatt.n. 16/12  del 26/02/2019 SCISSIONE DEI PAGAMENTI;17/04/2019;1738;0;41;1;Spese correnti;3;Acquisto di beni e servizi;2;Acquisto di servizi;15;Contratti di servizio pubblico;5;Contratti di servizio per il conferimento in discarica dei rifiuti;17/04/2019
353;1;0;61,36;276,12;BOSINCO GIUSEPPINA; ;GETTONI PRESENZA CONSIGLIERI;03/05/2019;1001;0;207;1;Spese correnti;3;Acquisto di beni e servizi;2;Acquisto di servizi;1;Organi e incarichi istituzionali dell'amministrazione;1;Organi istituzionali dell'amministrazione - Indennità;03/05/2019
353;2;0;30,68;276,12;ERETTA GIOVANNI AGOSTINO; ;GETTONI PRESENZA CONSIGLIERI;03/05/2019;1001;0;207;1;Spese correnti;3;Acquisto di beni e servizi;2;Acquisto di servizi;1;Organi e incarichi istituzionali dell'amministrazione;1;Organi istituzionali dell'amministrazione - Indennità;03/05/2019
353;3;0;76,7;276,12;LATTE GIOVANNI ANTONIO; ;GETTONI PRESENZA CONSIGLIERI;03/05/2019;1001;0;207;1;Spese correnti;3;Acquisto di beni e servizi;2;Acquisto di servizi;1;Organi e incarichi istituzionali dell'amministrazione;1;Organi istituzionali dell'amministrazione - Indennità;03/05/2019
353;4;0;107,38;276,12;SINI ANTONIO; ;GETTONI PRESENZA CONSIGLIERI;03/05/2019;1001;0;207;1;Spese correnti;3;Acquisto di beni e servizi;2;Acquisto di servizi;1;Organi e incarichi istituzionali dell'amministrazione;1;Organi istituzionali dell'amministrazione - Indennità;03/05/2019
355;1;0;219,6;219,6;DITTA GASPARI;ZED27A4B80;SALDO Fatt.n. 03895/S  del 30/03/2019;03/05/2019;1043;8;47;1;Spese correnti;3;Acquisto di beni e servizi;1;Acquisto di beni;2;Altri beni di consumo;14;Stampati specialistici;03/05/2019
356;1;0;2.718,00;2.718,00;A.I.A.S.; ;fatt.n.563/a marzo 2019;03/05/2019;1934;0;30;1;Spese correnti;4;Trasferimenti correnti;4;Trasferimenti correnti a Istituzioni Sociali Private;1;Trasferimenti correnti a Istituzioni Sociali Private;1;Trasferimenti correnti a Istituzioni Sociali Private;03/05/2019
357;1;0;1.345,05;1.345,05;AIRONE COOPERATIVA SOCIALE DI ASSISTENZA ONLUS;Z04256347E;ACCONTO Fatt.n. 749  del 16/04/2019 Fattura Cliente;03/05/2019;1899;1;23;1;Spese correnti;3;Acquisto di beni e servizi;2;Acquisto di servizi;11;Prestazioni professionali e specialistiche;999;Altre prestazioni professionali e specialistiche n.a.c.;03/05/2019
358;1;0;529,2;529,2;AIRONE COOPERATIVA SOCIALE DI ASSISTENZA ONLUS;Z04256347E;SALDO Fatt.n. 749  del 16/04/2019 Fattura Cliente;03/05/2019;1043;3;0;1;Spese correnti;3;Acquisto di beni e servizi;2;Acquisto di servizi;4;Acquisto di servizi per formazione e addestramento del personale dell'ente;999;Acquisto di servizi per altre spese per formazione e addestramento n.a.c.;03/05/2019
359;1;0;1.605,90;1.605,90;CONSORZIO LA SORGENTE;7591934620;SALDO Fatt.n. 3/103  del 16/04/2019 VENDITA;03/05/2019;1902;0;31;1;Spese correnti;3;Acquisto di beni e servizi;2;Acquisto di servizi;15;Contratti di servizio pubblico;9;Contratti di servizio di assistenza sociale domiciliare;03/05/2019
363;1;0;18.150,00;18.150,00;CICLAT TRASPORTI AMBIENTE SOC.COOP.;7,63E+14;SALDO Fatt.n. 293 -P  del 30/04/2019 FATTURA;06/05/2019;1738;0;14;1;Spese correnti;3;Acquisto di beni e servizi;2;Acquisto di servizi;15;Contratti di servizio pubblico;5;Contratti di servizio per il conferimento in discarica dei rifiuti;06/05/2019
367;1;0;1.195,00;1.195,00;EUROPEAN BROKERS S.R.L.;Z8B281C95B;polizze automezzi comunali;07/05/2019;1056;3;64;1;Spese correnti;10;Altre spese correnti;4;Premi di assicurazione;1;Premi di assicurazione contro i danni;3;Premi di assicurazione per responsabilità civile verso terzi;07/05/2019
368;1;0;83;83;ASSOCIAZIONE NAZIONALE PICCOLI COMUNI; ;QUOTA ANNUALE;07/05/2019;1002;0;65;1;Spese correnti;3;Acquisto di beni e servizi;2;Acquisto di servizi;99;Altri servizi;999;Altri servizi diversi n.a.c.;07/05/2019
369;1;0;2.379,00;2.379,00;HALLEY SARDEGNA SRL;ZAD27AEBB7;SALDO Fatt.n. 0000525  del 03/05/2019;13/05/2019;1043;2;45;1;Spese correnti;3;Acquisto di beni e servizi;1;Acquisto di beni;2;Altri beni di consumo;6;Materiale informatico;13/05/2019
370;1;0;341,6;341,6;DITTA GASPARI;Z9E27BF25C;SALDO Fatt.n. 07295/S  del 30/04/2019;13/05/2019;1043;2;57;1;Spese correnti;3;Acquisto di beni e servizi;1;Acquisto di beni;2;Altri beni di consumo;14;Stampati specialistici;13/05/2019
371;1;0;117,55;845,1;OMESSO NOMINATIVO NEL RISPETTO DELLA NORMATIVA SULLA PROTEZIONE DATI PERSONALI; ;l.162/98 APRILE;13/05/2019;1927;3;19;1;Spese correnti;4;Trasferimenti correnti;2;Trasferimenti correnti a Famiglie;2;Interventi assistenziali;999;Altri assegni e sussidi assistenziali;13/05/2019
371;2;0;170,04;845,1;OMESSO NOMINATIVO NEL RISPETTO DELLA NORMATIVA SULLA PROTEZIONE DATI PERSONALI; ;l.162/98 APRILE;13/05/2019;1927;3;19;1;Spese correnti;4;Trasferimenti correnti;2;Trasferimenti correnti a Famiglie;2;Interventi assistenziali;999;Altri assegni e sussidi assistenziali;13/05/2019
371;3;0;149,55;845,1;OMESSO NOMINATIVO NEL RISPETTO DELLA NORMATIVA SULLA PROTEZIONE DATI PERSONALI; ;l.162/98 APRILE;13/05/2019;1927;3;19;1;Spese correnti;4;Trasferimenti correnti;2;Trasferimenti correnti a Famiglie;2;Interventi assistenziali;999;Altri assegni e sussidi assistenziali;13/05/2019
371;4;0;249,1;845,1;OMESSO NOMINATIVO NEL RISPETTO DELLA NORMATIVA SULLA PROTEZIONE DATI PERSONALI; ;l.162/98 APRILE;13/05/2019;1927;3;19;1;Spese correnti;4;Trasferimenti correnti;2;Trasferimenti correnti a Famiglie;2;Interventi assistenziali;999;Altri assegni e sussidi assistenziali;13/05/2019
371;5;0;158,86;845,1;OMESSO NOMINATIVO NEL RISPETTO DELLA NORMATIVA SULLA PROTEZIONE DATI PERSONALI; ;l.162/98 APRILE;13/05/2019;1927;3;19;1;Spese correnti;4;Trasferimenti correnti;2;Trasferimenti correnti a Famiglie;2;Interventi assistenziali;999;Altri assegni e sussidi assistenziali;13/05/2019
372;1;0;212;1.340,00;OMESSO NOMINATIVO NEL RISPETTO DELLA NORMATIVA SULLA PROTEZIONE DATI PERSONALI; ;l.162/98 APRILE;13/05/2019;1927;3;19;1;Spese correnti;4;Trasferimenti correnti;2;Trasferimenti correnti a Famiglie;2;Interventi assistenziali;999;Altri assegni e sussidi assistenziali;13/05/2019
372;2;0;430;1.340,00;OMESSO NOMINATIVO NEL RISPETTO DELLA NORMATIVA SULLA PROTEZIONE DATI PERSONALI; ;l.162/98 APRILE;13/05/2019;1927;3;19;1;Spese correnti;4;Trasferimenti correnti;2;Trasferimenti correnti a Famiglie;2;Interventi assistenziali;999;Altri assegni e sussidi assistenziali;13/05/2019
372;3;0;133,5;1.340,00;OMESSO NOMINATIVO NEL RISPETTO DELLA NORMATIVA SULLA PROTEZIONE DATI PERSONALI; ;l.162/98 APRILE;13/05/2019;1927;3;19;1;Spese correnti;4;Trasferimenti correnti;2;Trasferimenti correnti a Famiglie;2;Interventi assistenziali;999;Altri assegni e sussidi assistenziali;13/05/2019
372;4;0;474,5;1.340,00;OMESSO NOMINATIVO NEL RISPETTO DELLA NORMATIVA SULLA PROTEZIONE DATI PERSONALI; ;l.162/98 APRILE;13/05/2019;1927;3;19;1;Spese correnti;4;Trasferimenti correnti;2;Trasferimenti correnti a Famiglie;2;Interventi assistenziali;999;Altri assegni e sussidi assistenziali;13/05/2019
372;5;0;90;1.340,00;OMESSO NOMINATIVO NEL RISPETTO DELLA NORMATIVA SULLA PROTEZIONE DATI PERSONALI; ;l.162/98 APRILE;13/05/2019;1927;3;19;1;Spese correnti;4;Trasferimenti correnti;2;Trasferimenti correnti a Famiglie;2;Interventi assistenziali;999;Altri assegni e sussidi assistenziali;13/05/2019
373;1;0;181,83;1.111,75;OMESSO NOMINATIVO NEL RISPETTO DELLA NORMATIVA SULLA PROTEZIONE DATI PERSONALI; ;l.162/98 APRILE;13/05/2019;1927;3;19;1;Spese correnti;4;Trasferimenti correnti;2;Trasferimenti correnti a Famiglie;2;Interventi assistenziali;999;Altri assegni e sussidi assistenziali;13/05/2019
373;2;0;200,56;1.111,75;OMESSO NOMINATIVO NEL RISPETTO DELLA NORMATIVA SULLA PROTEZIONE DATI PERSONALI; ;l.162/98 APRILE;13/05/2019;1927;3;19;1;Spese correnti;4;Trasferimenti correnti;2;Trasferimenti correnti a Famiglie;2;Interventi assistenziali;999;Altri assegni e sussidi assistenziali;13/05/2019
373;3;0;252;1.111,75;OMESSO NOMINATIVO NEL RISPETTO DELLA NORMATIVA SULLA PROTEZIONE DATI PERSONALI; ;l.162/98 APRILE;13/05/2019;1927;3;19;1;Spese correnti;4;Trasferimenti correnti;2;Trasferimenti correnti a Famiglie;2;Interventi assistenziali;999;Altri assegni e sussidi assistenziali;13/05/2019
373;4;0;310,7;1.111,75;OMESSO NOMINATIVO NEL RISPETTO DELLA NORMATIVA SULLA PROTEZIONE DATI PERSONALI; ;l.162/98 APRILE;13/05/2019;1927;3;19;1;Spese correnti;4;Trasferimenti correnti;2;Trasferimenti correnti a Famiglie;2;Interventi assistenziali;999;Altri assegni e sussidi assistenziali;13/05/2019
373;5;0;166,66;1.111,75;OMESSO NOMINATIVO NEL RISPETTO DELLA NORMATIVA SULLA PROTEZIONE DATI PERSONALI; ;l.162/98 APRILE;13/05/2019;1927;3;19;1;Spese correnti;4;Trasferimenti correnti;2;Trasferimenti correnti a Famiglie;2;Interventi assistenziali;999;Altri assegni e sussidi assistenziali;13/05/2019
374;1;0;105,9;987,46;OMESSO NOMINATIVO NEL RISPETTO DELLA NORMATIVA SULLA PROTEZIONE DATI PERSONALI; ;l.162/98 APRILE;13/05/2019;1927;3;19;1;Spese correnti;4;Trasferimenti correnti;2;Trasferimenti correnti a Famiglie;2;Interventi assistenziali;999;Altri assegni e sussidi assistenziali;13/05/2019
374;2;0;129;987,46;OMESSO NOMINATIVO NEL RISPETTO DELLA NORMATIVA SULLA PROTEZIONE DATI PERSONALI; ;l.162/98 APRILE;13/05/2019;1927;3;19;1;Spese correnti;4;Trasferimenti correnti;2;Trasferimenti correnti a Famiglie;2;Interventi assistenziali;999;Altri assegni e sussidi assistenziali;13/05/2019
374;3;0;316;987,46;OMESSO NOMINATIVO NEL RISPETTO DELLA NORMATIVA SULLA PROTEZIONE DATI PERSONALI; ;l.162/98 APRILE;13/05/2019;1927;3;19;1;Spese correnti;4;Trasferimenti correnti;2;Trasferimenti correnti a Famiglie;2;Interventi assistenziali;999;Altri assegni e sussidi assistenziali;13/05/2019
374;4;0;285;987,46;OMESSO NOMINATIVO NEL RISPETTO DELLA NORMATIVA SULLA PROTEZIONE DATI PERSONALI; ;l.162/98 APRILE;13/05/2019;1927;3;19;1;Spese correnti;4;Trasferimenti correnti;2;Trasferimenti correnti a Famiglie;2;Interventi assistenziali;999;Altri assegni e sussidi assistenziali;13/05/2019
374;5;0;151,56;987,46;OMESSO NOMINATIVO NEL RISPETTO DELLA NORMATIVA SULLA PROTEZIONE DATI PERSONALI; ;l.162/98 APRILE;13/05/2019;1927;3;19;1;Spese correnti;4;Trasferimenti correnti;2;Trasferimenti correnti a Famiglie;2;Interventi assistenziali;999;Altri assegni e sussidi assistenziali;13/05/2019
375;1;0;249,61;687,42;OMESSO NOMINATIVO NEL RISPETTO DELLA NORMATIVA SULLA PROTEZIONE DATI PERSONALI; ;l.162/98 APRILE;13/05/2019;1927;3;19;1;Spese correnti;4;Trasferimenti correnti;2;Trasferimenti correnti a Famiglie;2;Interventi assistenziali;999;Altri assegni e sussidi assistenziali;13/05/2019
375;2;0;62,81;687,42;OMESSO NOMINATIVO NEL RISPETTO DELLA NORMATIVA SULLA PROTEZIONE DATI PERSONALI; ;l.162/98 APRILE;13/05/2019;1927;3;19;1;Spese correnti;4;Trasferimenti correnti;2;Trasferimenti correnti a Famiglie;2;Interventi assistenziali;999;Altri assegni e sussidi assistenziali;13/05/2019
375;3;0;375;687,42;OMESSO NOMINATIVO NEL RISPETTO DELLA NORMATIVA SULLA PROTEZIONE DATI PERSONALI; ;l.162/98 APRILE;13/05/2019;1927;3;19;1;Spese correnti;4;Trasferimenti correnti;2;Trasferimenti correnti a Famiglie;2;Interventi assistenziali;999;Altri assegni e sussidi assistenziali;13/05/2019
376;1;0;1.937,02;1.937,02;SILODEMA SOCIETA' COOPERATIVA SOCIALE A R.L.;7585760F2B;SALDO Fatt.n. FATTPA 25_19  del 05/05/2019 Servizio mensa svolto nel mese di Aprile   CIG 7585760F2B;13/05/2019;1352;3;52;1;Spese correnti;3;Acquisto di beni e servizi;2;Acquisto di servizi;15;Contratti di servizio pubblico;6;Contratti di servizio per le mense scolastiche;13/05/2019
377;1;0;127,01;127,01;EDUPE';Z7F2686393;SALDO Fatt.n. 2/12  del 02/05/2019;13/05/2019;1360;0;210;1;Spese correnti;3;Acquisto di beni e servizi;2;Acquisto di servizi;11;Prestazioni professionali e specialistiche;2;Assistenza psicologica, sociale e religiosa;13/05/2019
378;1;0;1.187,61;1.187,61;BOSINCO LUIGI;Z341F3FOCC;SALDO Fatt.n. FATTPA 13_19  del 01/05/2019 Gestione scuolabus mese di Aprile 2019 gg 24 C.I.G.Z341F3FOCC;13/05/2019;1400;0;132;1;Spese correnti;3;Acquisto di beni e servizi;2;Acquisto di servizi;15;Contratti di servizio pubblico;2;Contratti di servizio di trasporto scolastico;13/05/2019
379;1;0;183,96;183,96;ASARA MAURIZIO;ZD725234E3;ACCONTO Fatt.n. FATTPA 25_19  del 02/05/2019;13/05/2019;1600;0;171;1;Spese correnti;3;Acquisto di beni e servizi;2;Acquisto di servizi;18;Servizi sanitari;13;Acquisti di servizi di trasporto in emergenza e urgenza;13/05/2019
380;1;0;145,05;145,05;ASARA MAURIZIO;ZD725234E3;SALDO Fatt.n. FATTPA 25_19  del 02/05/2019;13/05/2019;1043;8;66;1;Spese correnti;3;Acquisto di beni e servizi;1;Acquisto di beni;2;Altri beni di consumo;999;Altri beni e materiali di consumo n.a.c.;13/05/2019
381;1;0;252,72;1.698,42;OMESSO NOMINATIVO NEL RISPETTO DELLA NORMATIVA SULLA PROTEZIONE DATI PERSONALI; ;leggi di settore;13/05/2019;1906;0;54;1;Spese correnti;4;Trasferimenti correnti;2;Trasferimenti correnti a Famiglie;2;Interventi assistenziali;999;Altri assegni e sussidi assistenziali;13/05/2019
381;2;0;199,92;1.698,42;OMESSO NOMINATIVO NEL RISPETTO DELLA NORMATIVA SULLA PROTEZIONE DATI PERSONALI; ;leggi di settore;13/05/2019;1906;0;54;1;Spese correnti;4;Trasferimenti correnti;2;Trasferimenti correnti a Famiglie;2;Interventi assistenziali;999;Altri assegni e sussidi assistenziali;13/05/2019
381;3;0;698,22;1.698,42;OMESSO NOMINATIVO NEL RISPETTO DELLA NORMATIVA SULLA PROTEZIONE DATI PERSONALI; ;leggi di settore;13/05/2019;1906;0;54;1;Spese correnti;4;Trasferimenti correnti;2;Trasferimenti correnti a Famiglie;2;Interventi assistenziali;999;Altri assegni e sussidi assistenziali;13/05/2019
381;4;0;400,14;1.698,42;OMESSO NOMINATIVO NEL RISPETTO DELLA NORMATIVA SULLA PROTEZIONE DATI PERSONALI; ;leggi di settore;13/05/2019;1906;0;54;1;Spese correnti;4;Trasferimenti correnti;2;Trasferimenti correnti a Famiglie;2;Interventi assistenziali;999;Altri assegni e sussidi assistenziali;13/05/2019
381;5;0;147,42;1.698,42;OMESSO NOMINATIVO NEL RISPETTO DELLA NORMATIVA SULLA PROTEZIONE DATI PERSONALI; ;leggi di settore;13/05/2019;1906;0;54;1;Spese correnti;4;Trasferimenti correnti;2;Trasferimenti correnti a Famiglie;2;Interventi assistenziali;999;Altri assegni e sussidi assistenziali;13/05/2019
382;1;0;285,43;285,43;MINISTERO INTERNO; ;COMUNE DI LAERRU CORRISPETTIVO PER N. 17 C. I. DAL 01/03/2019 AL 30/04/2019;13/05/2019;1039;0;67;1;Spese correnti;3;Acquisto di beni e servizi;2;Acquisto di servizi;16;Servizi amministrativi;999;Altre spese per servizi amministrativi;13/05/2019
383;1;0;2.000,00;2.000,00;ISTITUTO COMPRENSIVO SCUOLA MATERNA ELEMENTARE E MEDIA; ;TRASFERIMENTO FONDI PER SPESE FUNZIONAMENTO A.S. 2019/2020;13/05/2019;1404;0;68;1;Spese correnti;4;Trasferimenti correnti;1;Trasferimenti correnti a Amministrazioni Pubbliche;2;Trasferimenti correnti a Amministrazioni Locali;999;Trasferimenti correnti a altre Amministrazioni Locali n.a.c.;13/05/2019
384;1;0;52,7;712,29;ABBANOA; ;SALDO Fatt.n. 0150020190000668000  del 11/04/2019 B/Bollettazione;13/05/2019;1043;5;69;1;Spese correnti;3;Acquisto di beni e servizi;2;Acquisto di servizi;5;Utenze e canoni;5;Acqua;13/05/2019
384;2;0;59,6;712,29;ABBANOA; ;SALDO Fatt.n. 0150020190000641100  del 11/04/2019 B/Bollettazione;13/05/2019;1043;5;69;1;Spese correnti;3;Acquisto di beni e servizi;2;Acquisto di servizi;5;Utenze e canoni;5;Acqua;13/05/2019
384;3;0;96,15;712,29;ABBANOA; ;SALDO Fatt.n. 0150020190000667900  del 11/04/2019 B/Bollettazione;13/05/2019;1043;5;69;1;Spese correnti;3;Acquisto di beni e servizi;2;Acquisto di servizi;5;Utenze e canoni;5;Acqua;13/05/2019
384;4;0;229,24;712,29;ABBANOA; ;SALDO Fatt.n. 0150020190000668100  del 11/04/2019 B/Bollettazione;13/05/2019;1043;5;69;1;Spese correnti;3;Acquisto di beni e servizi;2;Acquisto di servizi;5;Utenze e canoni;5;Acqua;13/05/2019
384;5;0;274,6;712,29;ABBANOA; ;SALDO Fatt.n. 0150020190000641000  del 11/04/2019 B/Bollettazione;13/05/2019;1043;5;69;1;Spese correnti;3;Acquisto di beni e servizi;2;Acquisto di servizi;5;Utenze e canoni;5;Acqua;13/05/2019
387;1;0;30;30;BANCA MONTE DEI PASCHI DI SIENA; ;ANAC;13/05/2019;1738;0;0;1;Spese correnti;3;Acquisto di beni e servizi;2;Acquisto di servizi;15;Contratti di servizio pubblico;5;Contratti di servizio per il conferimento in discarica dei rifiuti;13/05/2019
390;1;0;164,51;164,51;ASARA MAURIZIO;ZD725234E3;SALDO Fatt.n. FATTPA 60_18  del 31/10/2018;16/05/2019;1043;8;0;1;Spese correnti;3;Acquisto di beni e servizi;1;Acquisto di beni;2;Altri beni di consumo;1;Carta, cancelleria e stampati;16/05/2019
391;1;0;1.394,43;1.394,43;MORO PIETRO; ;rimborso forfettario amministratori;17/05/2019;1001;0;73;1;Spese correnti;3;Acquisto di beni e servizi;2;Acquisto di servizi;1;Organi e incarichi istituzionali dell'amministrazione;1;Organi istituzionali dell'amministrazione - Indennità;17/05/2019
392;1;0;348,6;348,6;SINI GIOVANNI MARIA; ;RIMBORSO FORFETTARIO AMMINISTRATORI;17/05/2019;1001;0;76;1;Spese correnti;3;Acquisto di beni e servizi;2;Acquisto di servizi;1;Organi e incarichi istituzionali dell'amministrazione;1;Organi istituzionali dell'amministrazione - Indennità;17/05/2019
393;1;0;348,6;348,6;VERRE ANDREINA; ;RIMBORSO FORFETTARIO AMMINISTRATORI;17/05/2019;1001;0;74;1;Spese correnti;3;Acquisto di beni e servizi;2;Acquisto di servizi;1;Organi e incarichi istituzionali dell'amministrazione;1;Organi istituzionali dell'amministrazione - Indennità;17/05/2019
394;1;0;464,8;464,8;DEFFENU ANNA MARIA; ;RIMBORSO FORFETTARIO AMMINISTRATORI;17/05/2019;1001;0;75;1;Spese correnti;3;Acquisto di beni e servizi;2;Acquisto di servizi;1;Organi e incarichi istituzionali dell'amministrazione;1;Organi istituzionali dell'amministrazione - Indennità;17/05/2019
395;1;0;1.481,58;1.481,58;PERSONALE DIVERSO (Confr.Allegato); ;STIPENDI MESE DI: MAGGIO 19;17/05/2019;1001;0;0;1;Spese correnti;3;Acquisto di beni e servizi;2;Acquisto di servizi;1;Organi e incarichi istituzionali dell'amministrazione;1;Organi istituzionali dell'amministrazione - Indennità;17/05/2019
424;1;0;7,13;7,13;POSTE ITALIANE;ZDB270E28A;SALDO Fatt.n. 8719140668  del 08/05/2019 Fattura Elettronica relativa all'Identificativo Rendiconto 2102076947;17/05/2019;1043;11;13;1;Spese correnti;3;Acquisto di beni e servizi;2;Acquisto di servizi;16;Servizi amministrativi;2;Spese postali;17/05/2019
425;1;0;1;7;BANCO DI SARDEGNA; ;spese tesoreria;20/05/2019;1054;0;0;1;Spese correnti;3;Acquisto di beni e servizi;2;Acquisto di servizi;17;Servizi finanziari;2;Oneri per servizio di tesoreria;20/05/2019
425;2;0;1;7;BANCO DI SARDEGNA; ;spese tesoreria;20/05/2019;1054;0;0;1;Spese correnti;3;Acquisto di beni e servizi;2;Acquisto di servizi;17;Servizi finanziari;2;Oneri per servizio di tesoreria;20/05/2019
425;3;0;1;7;BANCO DI SARDEGNA; ;spese tesoreria;20/05/2019;1054;0;0;1;Spese correnti;3;Acquisto di beni e servizi;2;Acquisto di servizi;17;Servizi finanziari;2;Oneri per servizio di tesoreria;20/05/2019
425;4;0;1;7;BANCO DI SARDEGNA; ;spese tesoreria;20/05/2019;1054;0;0;1;Spese correnti;3;Acquisto di beni e servizi;2;Acquisto di servizi;17;Servizi finanziari;2;Oneri per servizio di tesoreria;20/05/2019
425;5;0;1;7;BANCO DI SARDEGNA; ;spese tesoreria;20/05/2019;1054;0;0;1;Spese correnti;3;Acquisto di beni e servizi;2;Acquisto di servizi;17;Servizi finanziari;2;Oneri per servizio di tesoreria;20/05/2019
425;6;0;1;7;BANCO DI SARDEGNA; ;spese tesoreria;20/05/2019;1054;0;0;1;Spese correnti;3;Acquisto di beni e servizi;2;Acquisto di servizi;17;Servizi finanziari;2;Oneri per servizio di tesoreria;20/05/2019
425;7;0;1;7;BANCO DI SARDEGNA; ;spese tesoreria;20/05/2019;1054;0;0;1;Spese correnti;3;Acquisto di beni e servizi;2;Acquisto di servizi;17;Servizi finanziari;2;Oneri per servizio di tesoreria;20/05/2019
426;1;0;1.572,39;1.572,39;GLOBAL POWER;ZD9273DFBF;ACCONTO Fatt.n. V0/49956  del 01/04/2019 Fattura Energia Elettrica;21/05/2019;1937;1;53;1;Spese correnti;3;Acquisto di beni e servizi;2;Acquisto di servizi;5;Utenze e canoni;4;Energia elettrica;21/05/2019
427;1;0;345,93;345,93;GLOBAL POWER;ZD9273DFBF;SALDO Fatt.n. V0/49956  del 01/04/2019 Fattura Energia Elettrica;21/05/2019;1937;1;53;1;Spese correnti;3;Acquisto di beni e servizi;2;Acquisto di servizi;5;Utenze e canoni;4;Energia elettrica;21/05/2019
428;1;0;2.410,87;2.410,87;GLOBAL POWER;ZD9273DFBF;ACCONTO Fatt.n. V0/49955  del 01/04/2019 Fattura Energia Elettrica;21/05/2019;1937;1;53;1;Spese correnti;3;Acquisto di beni e servizi;2;Acquisto di servizi;5;Utenze e canoni;4;Energia elettrica;21/05/2019
429;1;0;530,39;530,39;GLOBAL POWER;ZD9273DFBF;SALDO Fatt.n. V0/49955  del 01/04/2019 Fattura Energia Elettrica;21/05/2019;1937;1;53;1;Spese correnti;3;Acquisto di beni e servizi;2;Acquisto di servizi;5;Utenze e canoni;4;Energia elettrica;21/05/2019
430;1;0;2.718,00;2.718,00;A.I.A.S.; ;fatt.n. 742/a mese di aprile;21/05/2019;1934;0;30;1;Spese correnti;4;Trasferimenti correnti;4;Trasferimenti correnti a Istituzioni Sociali Private;1;Trasferimenti correnti a Istituzioni Sociali Private;1;Trasferimenti correnti a Istituzioni Sociali Private;21/05/2019
431;1;0;35,88;349;TELECOM ITALIA SPA;Z44276815E;SALDO Fatt.n. 8R00068587  del 05/04/2019 3BIM 2019;21/05/2019;1043;12;77;1;Spese correnti;3;Acquisto di beni e servizi;2;Acquisto di servizi;5;Utenze e canoni;1;Telefonia fissa;21/05/2019
431;2;0;49,97;349;TELECOM ITALIA SPA;Z44276815E;SALDO Fatt.n. 8R00069046  del 05/04/2019 3BIM 2019;21/05/2019;1043;12;77;1;Spese correnti;3;Acquisto di beni e servizi;2;Acquisto di servizi;5;Utenze e canoni;1;Telefonia fissa;21/05/2019
431;3;0;74,74;349;TELECOM ITALIA SPA;Z44276815E;SALDO Fatt.n. 8R00069211  del 05/04/2019 3BIM 2019;21/05/2019;1043;12;77;1;Spese correnti;3;Acquisto di beni e servizi;2;Acquisto di servizi;5;Utenze e canoni;1;Telefonia fissa;21/05/2019
431;4;0;87,77;349;TELECOM ITALIA SPA;Z44276815E;SALDO Fatt.n. 8R00069915  del 05/04/2019 3BIM 2019;21/05/2019;1043;12;77;1;Spese correnti;3;Acquisto di beni e servizi;2;Acquisto di servizi;5;Utenze e canoni;1;Telefonia fissa;21/05/2019
431;5;0;100,64;349;TELECOM ITALIA SPA;Z44276815E;SALDO Fatt.n. 8R00069451  del 05/04/2019 3BIM 2019;21/05/2019;1043;12;77;1;Spese correnti;3;Acquisto di beni e servizi;2;Acquisto di servizi;5;Utenze e canoni;1;Telefonia fissa;21/05/2019
432;1;0;97,8;97,8;TELECOM ITALIA SPA;Z44276815E;SALDO Fatt.n. 8R00068989  del 05/04/2019 3BIM 2019;21/05/2019;1476;1;78;1;Spese correnti;3;Acquisto di beni e servizi;2;Acquisto di servizi;5;Utenze e canoni;1;Telefonia fissa;21/05/2019
433;1;0;54,29;54,29;TELECOM ITALIA SPA;Z44276815E;SALDO Fatt.n. 8R00069646  del 05/04/2019 3BIM 2019;21/05/2019;1366;0;79;1;Spese correnti;3;Acquisto di beni e servizi;2;Acquisto di servizi;5;Utenze e canoni;1;Telefonia fissa;21/05/2019
434;1;0;1.263,81;1.263,81;CONSORZIO LA SORGENTE;7591934620;SALDO Fatt.n. 3/130  del 14/05/2019 VENDITA;21/05/2019;1902;0;31;1;Spese correnti;3;Acquisto di beni e servizi;2;Acquisto di servizi;15;Contratti di servizio pubblico;9;Contratti di servizio di assistenza sociale domiciliare;21/05/2019
435;1;0;328,02;1.247,58;OMESSO NOMINATIVO NEL RISPETTO DELLA NORMATIVA SULLA PROTEZIONE DATI PERSONALI; ;l.162/98 APRILE;21/05/2019;1927;3;19;1;Spese correnti;4;Trasferimenti correnti;2;Trasferimenti correnti a Famiglie;2;Interventi assistenziali;999;Altri assegni e sussidi assistenziali;21/05/2019
435;2;0;314,3;1.247,58;OMESSO NOMINATIVO NEL RISPETTO DELLA NORMATIVA SULLA PROTEZIONE DATI PERSONALI; ;l.162/98 APRILE;21/05/2019;1927;3;19;1;Spese correnti;4;Trasferimenti correnti;2;Trasferimenti correnti a Famiglie;2;Interventi assistenziali;999;Altri assegni e sussidi assistenziali;21/05/2019
435;3;0;332,26;1.247,58;OMESSO NOMINATIVO NEL RISPETTO DELLA NORMATIVA SULLA PROTEZIONE DATI PERSONALI; ;l.162/98 APRILE;21/05/2019;1927;3;19;1;Spese correnti;4;Trasferimenti correnti;2;Trasferimenti correnti a Famiglie;2;Interventi assistenziali;999;Altri assegni e sussidi assistenziali;21/05/2019
435;4;0;273;1.247,58;OMESSO NOMINATIVO NEL RISPETTO DELLA NORMATIVA SULLA PROTEZIONE DATI PERSONALI; ;l.162/98 APRILE;21/05/2019;1927;3;19;1;Spese correnti;4;Trasferimenti correnti;2;Trasferimenti correnti a Famiglie;2;Interventi assistenziali;999;Altri assegni e sussidi assistenziali;21/05/2019
436;1;0;152,66;1.287,96;OMESSO NOMINATIVO NEL RISPETTO DELLA NORMATIVA SULLA PROTEZIONE DATI PERSONALI; ;l.162/98 APRILE;21/05/2019;1927;3;19;1;Spese correnti;4;Trasferimenti correnti;2;Trasferimenti correnti a Famiglie;2;Interventi assistenziali;999;Altri assegni e sussidi assistenziali;21/05/2019
436;2;0;278,38;1.287,96;OMESSO NOMINATIVO NEL RISPETTO DELLA NORMATIVA SULLA PROTEZIONE DATI PERSONALI; ;l.162/98 APRILE;21/05/2019;1927;3;19;1;Spese correnti;4;Trasferimenti correnti;2;Trasferimenti correnti a Famiglie;2;Interventi assistenziali;999;Altri assegni e sussidi assistenziali;21/05/2019
436;3;0;473,29;1.287,96;OMESSO NOMINATIVO NEL RISPETTO DELLA NORMATIVA SULLA PROTEZIONE DATI PERSONALI; ;l.162/98 APRILE;21/05/2019;1927;3;19;1;Spese correnti;4;Trasferimenti correnti;2;Trasferimenti correnti a Famiglie;2;Interventi assistenziali;999;Altri assegni e sussidi assistenziali;21/05/2019
436;4;0;197,56;1.287,96;OMESSO NOMINATIVO NEL RISPETTO DELLA NORMATIVA SULLA PROTEZIONE DATI PERSONALI; ;l.162/98 APRILE;21/05/2019;1927;3;19;1;Spese correnti;4;Trasferimenti correnti;2;Trasferimenti correnti a Famiglie;2;Interventi assistenziali;999;Altri assegni e sussidi assistenziali;21/05/2019
436;5;0;186,07;1.287,96;OMESSO NOMINATIVO NEL RISPETTO DELLA NORMATIVA SULLA PROTEZIONE DATI PERSONALI; ;l.162/98 APRILE;21/05/2019;1927;3;19;1;Spese correnti;4;Trasferimenti correnti;2;Trasferimenti correnti a Famiglie;2;Interventi assistenziali;999;Altri assegni e sussidi assistenziali;21/05/2019
437;1;0;14;14;MONAGHEDDU LUCIO; ;restituzione somme non dovute;21/05/2019;1029;0;80;1;Spese correnti;4;Trasferimenti correnti;2;Trasferimenti correnti a Famiglie;2;Interventi assistenziali;999;Altri assegni e sussidi assistenziali;21/05/2019
438;1;0;12.500,00;12.500,00;COMUNE DI OSILO; ;SET GENNAIO GIUGNO 2019;21/05/2019;1920;10;82;1;Spese correnti;4;Trasferimenti correnti;1;Trasferimenti correnti a Amministrazioni Pubbliche;2;Trasferimenti correnti a Amministrazioni Locali;3;Trasferimenti correnti a Comuni;21/05/2019
439;1;0;352;352;CONSORZIO ENERGIA CEV; ;SALDO Fatt.n. 438-2019-00  del 07/05/2019;21/05/2019;1043;10;0;1;Spese correnti;3;Acquisto di beni e servizi;2;Acquisto di servizi;5;Utenze e canoni;4;Energia elettrica;21/05/2019
440;1;0;42;42;MANCA GREGORIO; ;restituzione somme non dovute;22/05/2019;1029;0;89;1;Spese correnti;4;Trasferimenti correnti;2;Trasferimenti correnti a Famiglie;2;Interventi assistenziali;999;Altri assegni e sussidi assistenziali;22/05/2019
441;1;0;41;41;FIORI ALDO; ;restituzione somme non dovute;22/05/2019;1029;0;88;1;Spese correnti;4;Trasferimenti correnti;2;Trasferimenti correnti a Famiglie;2;Interventi assistenziali;999;Altri assegni e sussidi assistenziali;22/05/2019
442;1;0;19;19;POSTE ITALIANE; ;restituzione somme non dovute;22/05/2019;1029;0;95;1;Spese correnti;4;Trasferimenti correnti;2;Trasferimenti correnti a Famiglie;2;Interventi assistenziali;999;Altri assegni e sussidi assistenziali;22/05/2019
443;1;0;31;31;MONAGHEDDU GIOVANNI; ;restituzione somme non dovute;22/05/2019;1029;0;94;1;Spese correnti;4;Trasferimenti correnti;2;Trasferimenti correnti a Famiglie;2;Interventi assistenziali;999;Altri assegni e sussidi assistenziali;22/05/2019
444;1;0;22;22;MARTINEZ DEMETRIO; ;restituzione somme non dovute;22/05/2019;1029;0;92;1;Spese correnti;4;Trasferimenti correnti;2;Trasferimenti correnti a Famiglie;2;Interventi assistenziali;999;Altri assegni e sussidi assistenziali;22/05/2019
445;1;0;28;28;LEDDA AMELIA; ;restituzione somme non dovute;22/05/2019;1029;0;91;1;Spese correnti;4;Trasferimenti correnti;2;Trasferimenti correnti a Famiglie;2;Interventi assistenziali;999;Altri assegni e sussidi assistenziali;22/05/2019
446;1;0;19;19;MARTINEZ GIOVANNICA; ;restituzione somme non dovute;22/05/2019;1029;0;90;1;Spese correnti;4;Trasferimenti correnti;2;Trasferimenti correnti a Famiglie;2;Interventi assistenziali;999;Altri assegni e sussidi assistenziali;22/05/2019
447;1;0;111;111;FIORI PAOLA; ;restituzione somme non dovute di Razzu Giuseppa;22/05/2019;1029;0;96;1;Spese correnti;4;Trasferimenti correnti;2;Trasferimenti correnti a Famiglie;2;Interventi assistenziali;999;Altri assegni e sussidi assistenziali;22/05/2019
448;1;0;43;43;BARONI COSTANZA; ;restituzione somme non dovute;22/05/2019;1029;0;97;1;Spese correnti;4;Trasferimenti correnti;2;Trasferimenti correnti a Famiglie;2;Interventi assistenziali;999;Altri assegni e sussidi assistenziali;22/05/2019
449;1;0;21;21;PERSICO GEORGES; ;restituzione somme non dovute;22/05/2019;1029;0;98;1;Spese correnti;4;Trasferimenti correnti;2;Trasferimenti correnti a Famiglie;2;Interventi assistenziali;999;Altri assegni e sussidi assistenziali;22/05/2019
450;1;0;47;47;RECINO PIERO; ;restituzione somme non dovute;22/05/2019;1029;0;99;1;Spese correnti;4;Trasferimenti correnti;2;Trasferimenti correnti a Famiglie;2;Interventi assistenziali;999;Altri assegni e sussidi assistenziali;22/05/2019
451;1;0;23;23;SPARAPANI MARISA; ;restituzione somme non dovute;23/05/2019;1029;0;93;1;Spese correnti;4;Trasferimenti correnti;2;Trasferimenti correnti a Famiglie;2;Interventi assistenziali;999;Altri assegni e sussidi assistenziali;23/05/2019
452;1;0;34;34;BARONI PIETRINA; ;restituzione somme non dovute;23/05/2019;1029;0;100;1;Spese correnti;4;Trasferimenti correnti;2;Trasferimenti correnti a Famiglie;2;Interventi assistenziali;999;Altri assegni e sussidi assistenziali;23/05/2019
453;1;0;96;600;CARTA LUCIANO; ;liquidazione competenze dei seggi elezioni del 26/05/2019;27/05/2019;1065;0;101;1;Spese correnti;3;Acquisto di beni e servizi;2;Acquisto di servizi;99;Altri servizi;4;Altre spese per consultazioni elettorali dell'ente;27/05/2019
453;2;0;96;600;CHIGHINE GIAN LUIGI; ;liquidazione competenze dei seggi elezioni del 26/05/2019;27/05/2019;1065;0;101;1;Spese correnti;3;Acquisto di beni e servizi;2;Acquisto di servizi;99;Altri servizi;4;Altre spese per consultazioni elettorali dell'ente;27/05/2019
453;3;0;120;600;MASTINO GIUSEPPINA; ;liquidazione competenze dei seggi elezioni del 26/05/2019;27/05/2019;1065;0;101;1;Spese correnti;3;Acquisto di beni e servizi;2;Acquisto di servizi;99;Altri servizi;4;Altre spese per consultazioni elettorali dell'ente;27/05/2019
453;4;0;96;600;PALA FRANCESCA; ;liquidazione competenze dei seggi elezioni del 26/05/2019;27/05/2019;1065;0;101;1;Spese correnti;3;Acquisto di beni e servizi;2;Acquisto di servizi;99;Altri servizi;4;Altre spese per consultazioni elettorali dell'ente;27/05/2019
453;5;0;96;600;PUGGIONI GRAZIELLA; ;liquidazione competenze dei seggi elezioni del 26/05/2019;27/05/2019;1065;0;101;1;Spese correnti;3;Acquisto di beni e servizi;2;Acquisto di servizi;99;Altri servizi;4;Altre spese per consultazioni elettorali dell'ente;27/05/2019
453;6;0;96;600;RUDAS GIOVANNI MARIA; ;liquidazione competenze dei seggi elezioni del 26/05/2019;27/05/2019;1065;0;101;1;Spese correnti;3;Acquisto di beni e servizi;2;Acquisto di servizi;99;Altri servizi;4;Altre spese per consultazioni elettorali dell'ente;27/05/2019
454;1;0;1.300,00;1.300,00;A.S.D. Shardana Motorsport; ;CONTRIBUTO PER REALIZZAZIONE 2 EDIZIONE RALLY;27/05/2019;1830;0;102;1;Spese correnti;4;Trasferimenti correnti;4;Trasferimenti correnti a Istituzioni Sociali Private;1;Trasferimenti correnti a Istituzioni Sociali Private;1;Trasferimenti correnti a Istituzioni Sociali Private;27/05/2019
455;1;0;375,52;375,52;OMESSO NOMINATIVO NEL RISPETTO DELLA NORMATIVA SULLA PROTEZIONE DATI PERSONALI; ;l.162/98 APRILE;27/05/2019;1927;3;19;1;Spese correnti;4;Trasferimenti correnti;2;Trasferimenti correnti a Famiglie;2;Interventi assistenziali;999;Altri assegni e sussidi assistenziali;27/05/2019
456;1;0;1;3;BANCO DI SARDEGNA;ZD9273DFBF;spese tesoreria;27/05/2019;1937;1;53;1;Spese correnti;3;Acquisto di beni e servizi;2;Acquisto di servizi;5;Utenze e canoni;4;Energia elettrica;27/05/2019
456;2;0;1;3;BANCO DI SARDEGNA;ZD9273DFBF;spese tesoreria;27/05/2019;1937;1;53;1;Spese correnti;3;Acquisto di beni e servizi;2;Acquisto di servizi;5;Utenze e canoni;4;Energia elettrica;27/05/2019
456;3;0;1;3;BANCO DI SARDEGNA;ZD9273DFBF;spese tesoreria;27/05/2019;1937;1;53;1;Spese correnti;3;Acquisto di beni e servizi;2;Acquisto di servizi;5;Utenze e canoni;4;Energia elettrica;27/05/2019
458;1;0;923,86;923,86;GLOBAL POWER;ZD9273DFBF;ACCONTO Fatt.n. V0/63731  del 02/05/2019 Fattura Energia Elettrica;27/05/2019;1937;1;53;1;Spese correnti;3;Acquisto di beni e servizi;2;Acquisto di servizi;5;Utenze e canoni;4;Energia elettrica;27/05/2019
459;1;0;203,25;203,25;GLOBAL POWER;ZD9273DFBF;SALDO Fatt.n. V0/63731  del 02/05/2019 Fattura Energia Elettrica;27/05/2019;1937;1;53;1;Spese correnti;3;Acquisto di beni e servizi;2;Acquisto di servizi;5;Utenze e canoni;4;Energia elettrica;27/05/2019
460;1;0;1.730,39;1.730,39;GLOBAL POWER;ZD9273DFBF;ACCONTO Fatt.n. V0/63730  del 02/05/2019 Fattura Energia Elettrica;27/05/2019;1937;1;53;1;Spese correnti;3;Acquisto di beni e servizi;2;Acquisto di servizi;5;Utenze e canoni;4;Energia elettrica;27/05/2019
461;1;0;380,69;380,69;GLOBAL POWER;ZD9273DFBF;SALDO Fatt.n. V0/63730  del 02/05/2019 Fattura Energia Elettrica;27/05/2019;1937;1;53;1;Spese correnti;3;Acquisto di beni e servizi;2;Acquisto di servizi;5;Utenze e canoni;4;Energia elettrica;27/05/2019
465;1;0;733,44;733,44;GBR ROSSETTO;ZCB2863C43;SALDO Fatt.n. 57335/2019/V1  del 31/05/2019 CONTRIBUTO CONAI ASSOLTO OVE DOVUTO;06/06/2019;1043;2;70;1;Spese correnti;3;Acquisto di beni e servizi;1;Acquisto di beni;2;Altri beni di consumo;1;Carta, cancelleria e stampati;06/06/2019
466;1;0;2.688,00;2.688,00;SILODEMA SOCIETA' COOPERATIVA SOCIALE A R.L.;7585760F2B;SALDO Fatt.n. FATTPA 31_19  del 03/06/2019 Servizio mensa svolto nel mese di Maggio   CIG 7585760F2B;13/06/2019;1352;3;52;1;Spese correnti;3;Acquisto di beni e servizi;2;Acquisto di servizi;15;Contratti di servizio pubblico;6;Contratti di servizio per le mense scolastiche;13/06/2019
467;1;0;329,01;329,01;ASARA MAURIZIO;ZD725234E3;SALDO Fatt.n. FATTPA 37_19  del 03/06/2019;13/06/2019;1043;8;0;1;Spese correnti;3;Acquisto di beni e servizi;1;Acquisto di beni;2;Altri beni di consumo;999;Altri beni e materiali di consumo n.a.c.;13/06/2019
468;1;0;1.286,56;1.286,56;BOSINCO LUIGI;Z341F3FOCC;SALDO Fatt.n. FATTPA 15_19  del 03/06/2019 Gestione scuolabus mese di maggio 2019 gg 26 C.I.G.:Z341F3FOCC;13/06/2019;1400;0;132;1;Spese correnti;3;Acquisto di beni e servizi;2;Acquisto di servizi;15;Contratti di servizio pubblico;2;Contratti di servizio di trasporto scolastico;13/06/2019
469;1;0;1.528,19;1.528,19;CONSORZIO LA SORGENTE;7591934620;SALDO Fatt.n. 3/149  del 04/06/2019 VENDITA;13/06/2019;1902;0;31;1;Spese correnti;3;Acquisto di beni e servizi;2;Acquisto di servizi;15;Contratti di servizio pubblico;9;Contratti di servizio di assistenza sociale domiciliare;13/06/2019
470;1;0;201,1;201,1;EDUPE';Z7F2686393;SALDO Fatt.n. 2/16  del 03/06/2019;13/06/2019;1360;0;210;1;Spese correnti;3;Acquisto di beni e servizi;2;Acquisto di servizi;11;Prestazioni professionali e specialistiche;2;Assistenza psicologica, sociale e religiosa;13/06/2019
471;1;0;117,55;804,37;OMESSO NOMINATIVO NEL RISPETTO DELLA NORMATIVA SULLA PROTEZIONE DATI PERSONALI; ;l.162/98 MAGGIO;13/06/2019;1927;3;19;1;Spese correnti;4;Trasferimenti correnti;2;Trasferimenti correnti a Famiglie;2;Interventi assistenziali;999;Altri assegni e sussidi assistenziali;13/06/2019
471;2;0;99,57;804,37;OMESSO NOMINATIVO NEL RISPETTO DELLA NORMATIVA SULLA PROTEZIONE DATI PERSONALI; ;l.162/98 MAGGIO;13/06/2019;1927;3;19;1;Spese correnti;4;Trasferimenti correnti;2;Trasferimenti correnti a Famiglie;2;Interventi assistenziali;999;Altri assegni e sussidi assistenziali;13/06/2019
471;3;0;123;804,37;OMESSO NOMINATIVO NEL RISPETTO DELLA NORMATIVA SULLA PROTEZIONE DATI PERSONALI; ;l.162/98 MAGGIO;13/06/2019;1927;3;19;1;Spese correnti;4;Trasferimenti correnti;2;Trasferimenti correnti a Famiglie;2;Interventi assistenziali;999;Altri assegni e sussidi assistenziali;13/06/2019
471;4;0;254,9;804,37;OMESSO NOMINATIVO NEL RISPETTO DELLA NORMATIVA SULLA PROTEZIONE DATI PERSONALI; ;l.162/98 MAGGIO;13/06/2019;1927;3;19;1;Spese correnti;4;Trasferimenti correnti;2;Trasferimenti correnti a Famiglie;2;Interventi assistenziali;999;Altri assegni e sussidi assistenziali;13/06/2019
471;5;0;209,35;804,37;OMESSO NOMINATIVO NEL RISPETTO DELLA NORMATIVA SULLA PROTEZIONE DATI PERSONALI; ;l.162/98 MAGGIO;13/06/2019;1927;3;19;1;Spese correnti;4;Trasferimenti correnti;2;Trasferimenti correnti a Famiglie;2;Interventi assistenziali;999;Altri assegni e sussidi assistenziali;13/06/2019
472;1;0;140;1.203,70;OMESSO NOMINATIVO NEL RISPETTO DELLA NORMATIVA SULLA PROTEZIONE DATI PERSONALI; ;l.162/98 MAGGIO;13/06/2019;1927;3;19;1;Spese correnti;4;Trasferimenti correnti;2;Trasferimenti correnti a Famiglie;2;Interventi assistenziali;999;Altri assegni e sussidi assistenziali;13/06/2019
472;2;0;375;1.203,70;OMESSO NOMINATIVO NEL RISPETTO DELLA NORMATIVA SULLA PROTEZIONE DATI PERSONALI; ;l.162/98 MAGGIO;13/06/2019;1927;3;19;1;Spese correnti;4;Trasferimenti correnti;2;Trasferimenti correnti a Famiglie;2;Interventi assistenziali;999;Altri assegni e sussidi assistenziali;13/06/2019
472;3;0;430;1.203,70;OMESSO NOMINATIVO NEL RISPETTO DELLA NORMATIVA SULLA PROTEZIONE DATI PERSONALI; ;l.162/98 MAGGIO;13/06/2019;1927;3;19;1;Spese correnti;4;Trasferimenti correnti;2;Trasferimenti correnti a Famiglie;2;Interventi assistenziali;999;Altri assegni e sussidi assistenziali;13/06/2019
472;4;0;168,7;1.203,70;OMESSO NOMINATIVO NEL RISPETTO DELLA NORMATIVA SULLA PROTEZIONE DATI PERSONALI; ;l.162/98 MAGGIO;13/06/2019;1927;3;19;1;Spese correnti;4;Trasferimenti correnti;2;Trasferimenti correnti a Famiglie;2;Interventi assistenziali;999;Altri assegni e sussidi assistenziali;13/06/2019
472;5;0;90;1.203,70;OMESSO NOMINATIVO NEL RISPETTO DELLA NORMATIVA SULLA PROTEZIONE DATI PERSONALI; ;l.162/98 MAGGIO;13/06/2019;1927;3;19;1;Spese correnti;4;Trasferimenti correnti;2;Trasferimenti correnti a Famiglie;2;Interventi assistenziali;999;Altri assegni e sussidi assistenziali;13/06/2019
473;1;0;375;1.547,13;OMESSO NOMINATIVO NEL RISPETTO DELLA NORMATIVA SULLA PROTEZIONE DATI PERSONALI; ;l.162/98 maggio;13/06/2019;1927;3;106;1;Spese correnti;4;Trasferimenti correnti;2;Trasferimenti correnti a Famiglie;2;Interventi assistenziali;999;Altri assegni e sussidi assistenziali;13/06/2019
473;2;0;747,5;1.547,13;OMESSO NOMINATIVO NEL RISPETTO DELLA NORMATIVA SULLA PROTEZIONE DATI PERSONALI; ;l.162/98 maggio;13/06/2019;1927;3;106;1;Spese correnti;4;Trasferimenti correnti;2;Trasferimenti correnti a Famiglie;2;Interventi assistenziali;999;Altri assegni e sussidi assistenziali;13/06/2019
473;3;0;424,63;1.547,13;OMESSO NOMINATIVO NEL RISPETTO DELLA NORMATIVA SULLA PROTEZIONE DATI PERSONALI; ;l.162/98 maggio;13/06/2019;1927;3;106;1;Spese correnti;4;Trasferimenti correnti;2;Trasferimenti correnti a Famiglie;2;Interventi assistenziali;999;Altri assegni e sussidi assistenziali;13/06/2019
474;1;0;151,57;928,07;OMESSO NOMINATIVO NEL RISPETTO DELLA NORMATIVA SULLA PROTEZIONE DATI PERSONALI; ;l.162/98;13/06/2019;1927;3;106;1;Spese correnti;4;Trasferimenti correnti;2;Trasferimenti correnti a Famiglie;2;Interventi assistenziali;999;Altri assegni e sussidi assistenziali;13/06/2019
474;2;0;202;928,07;OMESSO NOMINATIVO NEL RISPETTO DELLA NORMATIVA SULLA PROTEZIONE DATI PERSONALI; ;l.162/98;13/06/2019;1927;3;106;1;Spese correnti;4;Trasferimenti correnti;2;Trasferimenti correnti a Famiglie;2;Interventi assistenziali;999;Altri assegni e sussidi assistenziali;13/06/2019
474;3;0;300,1;928,07;OMESSO NOMINATIVO NEL RISPETTO DELLA NORMATIVA SULLA PROTEZIONE DATI PERSONALI; ;l.162/98;13/06/2019;1927;3;106;1;Spese correnti;4;Trasferimenti correnti;2;Trasferimenti correnti a Famiglie;2;Interventi assistenziali;999;Altri assegni e sussidi assistenziali;13/06/2019
474;4;0;143,8;928,07;OMESSO NOMINATIVO NEL RISPETTO DELLA NORMATIVA SULLA PROTEZIONE DATI PERSONALI; ;l.162/98;13/06/2019;1927;3;106;1;Spese correnti;4;Trasferimenti correnti;2;Trasferimenti correnti a Famiglie;2;Interventi assistenziali;999;Altri assegni e sussidi assistenziali;13/06/2019
474;5;0;130,6;928,07;OMESSO NOMINATIVO NEL RISPETTO DELLA NORMATIVA SULLA PROTEZIONE DATI PERSONALI; ;l.162/98;13/06/2019;1927;3;106;1;Spese correnti;4;Trasferimenti correnti;2;Trasferimenti correnti a Famiglie;2;Interventi assistenziali;999;Altri assegni e sussidi assistenziali;13/06/2019
475;1;0;167,3;1.066,97;OMESSO NOMINATIVO NEL RISPETTO DELLA NORMATIVA SULLA PROTEZIONE DATI PERSONALI; ;l.162/98;13/06/2019;1927;3;106;1;Spese correnti;4;Trasferimenti correnti;2;Trasferimenti correnti a Famiglie;2;Interventi assistenziali;999;Altri assegni e sussidi assistenziali;13/06/2019
475;2;0;132;1.066,97;OMESSO NOMINATIVO NEL RISPETTO DELLA NORMATIVA SULLA PROTEZIONE DATI PERSONALI; ;l.162/98;13/06/2019;1927;3;106;1;Spese correnti;4;Trasferimenti correnti;2;Trasferimenti correnti a Famiglie;2;Interventi assistenziali;999;Altri assegni e sussidi assistenziali;13/06/2019
475;3;0;320;1.066,97;OMESSO NOMINATIVO NEL RISPETTO DELLA NORMATIVA SULLA PROTEZIONE DATI PERSONALI; ;l.162/98;13/06/2019;1927;3;106;1;Spese correnti;4;Trasferimenti correnti;2;Trasferimenti correnti a Famiglie;2;Interventi assistenziali;999;Altri assegni e sussidi assistenziali;13/06/2019
475;4;0;286;1.066,97;OMESSO NOMINATIVO NEL RISPETTO DELLA NORMATIVA SULLA PROTEZIONE DATI PERSONALI; ;l.162/98;13/06/2019;1927;3;106;1;Spese correnti;4;Trasferimenti correnti;2;Trasferimenti correnti a Famiglie;2;Interventi assistenziali;999;Altri assegni e sussidi assistenziali;13/06/2019
475;5;0;161,67;1.066,97;OMESSO NOMINATIVO NEL RISPETTO DELLA NORMATIVA SULLA PROTEZIONE DATI PERSONALI; ;l.162/98;13/06/2019;1927;3;106;1;Spese correnti;4;Trasferimenti correnti;2;Trasferimenti correnti a Famiglie;2;Interventi assistenziali;999;Altri assegni e sussidi assistenziali;13/06/2019
476;1;0;166,4;457,66;OMESSO NOMINATIVO NEL RISPETTO DELLA NORMATIVA SULLA PROTEZIONE DATI PERSONALI; ;l.162/98;13/06/2019;1927;3;106;1;Spese correnti;4;Trasferimenti correnti;2;Trasferimenti correnti a Famiglie;2;Interventi assistenziali;999;Altri assegni e sussidi assistenziali;13/06/2019
476;2;0;109,38;457,66;OMESSO NOMINATIVO NEL RISPETTO DELLA NORMATIVA SULLA PROTEZIONE DATI PERSONALI; ;l.162/98;13/06/2019;1927;3;106;1;Spese correnti;4;Trasferimenti correnti;2;Trasferimenti correnti a Famiglie;2;Interventi assistenziali;999;Altri assegni e sussidi assistenziali;13/06/2019
476;3;0;181,88;457,66;OMESSO NOMINATIVO NEL RISPETTO DELLA NORMATIVA SULLA PROTEZIONE DATI PERSONALI; ;l.162/98;13/06/2019;1927;3;106;1;Spese correnti;4;Trasferimenti correnti;2;Trasferimenti correnti a Famiglie;2;Interventi assistenziali;999;Altri assegni e sussidi assistenziali;13/06/2019
478;1;0;2.468,45;2.468,45;CHESSA ALESSANDRO;7800624E8D;SALDO Fatt.n. FATTPA 42_19  del 02/06/2019 Vs. dare per manutenzione ordinaria impianto di illuminazione pubblica ed impianti elettrici immobili comunali nuovo contratto APRILE E MAGGIO 2019;13/06/2019;1939;0;46;1;Spese correnti;3;Acquisto di beni e servizi;2;Acquisto di servizi;9;Manutenzione ordinaria e riparazioni;8;Manutenzione ordinaria e riparazioni di beni immobili;13/06/2019
479;1;0;1.515,46;1.515,46;TRANSPORT S.A.S DI TAULA;Z9C2890CFC;SALDO Fatt.n. 190800225  del 29/05/2019 Consegna a: COMUNE DI LAERRU VIA G.DELEDDA LAERRU 07030 SS;13/06/2019;1056;1;105;1;Spese correnti;3;Acquisto di beni e servizi;2;Acquisto di servizi;9;Manutenzione ordinaria e riparazioni;12;Manutenzione ordinaria e riparazioni di terreni e beni materiali non prodotti;13/06/2019
482;1;0;741,76;741,76;RUGGIU ANTINCENDIO E SICUREZZA;Z66289316A;SALDO Fatt.n. 1781A  del 27/05/2019;13/06/2019;1036;0;103;1;Spese correnti;3;Acquisto di beni e servizi;2;Acquisto di servizi;9;Manutenzione ordinaria e riparazioni;5;Manutenzione ordinaria e riparazioni di attrezzature;13/06/2019
483;1;0;992,25;992,25;AIRONE COOPERATIVA SOCIALE DI ASSISTENZA ONLUS; ;SEGRETARIATO;13/06/2019;1043;8;0;1;Spese correnti;3;Acquisto di beni e servizi;1;Acquisto di beni;2;Altri beni di consumo;999;Altri beni e materiali di consumo n.a.c.;13/06/2019
484;1;0;409;409;MELE CARLA - ECONOMO COMUNALE; ;spese registrazione contratti;14/06/2019;1059;0;107;1;Spese correnti;3;Acquisto di beni e servizi;2;Acquisto di servizi;16;Servizi amministrativi;999;Altre spese per servizi amministrativi;14/06/2019
485;1;0;90,3;90,3;OMESSO NOMINATIVO NEL RISPETTO DELLA NORMATIVA SULLA PROTEZIONE DATI PERSONALI; ;l.162/98;14/06/2019;1927;3;106;1;Spese correnti;4;Trasferimenti correnti;2;Trasferimenti correnti a Famiglie;2;Interventi assistenziali;999;Altri assegni e sussidi assistenziali;14/06/2019
486;1;0;313;313;OMESSO NOMINATIVO NEL RISPETTO DELLA NORMATIVA SULLA PROTEZIONE DATI PERSONALI; ;l.162/98;14/06/2019;1927;3;106;1;Spese correnti;4;Trasferimenti correnti;2;Trasferimenti correnti a Famiglie;2;Interventi assistenziali;999;Altri assegni e sussidi assistenziali;14/06/2019
487;1;0;69,72;69,72;VERRE ANDREINA; ;RIMBORSO FORFETTARIO AMMINISTRATORI GIUGNO;17/06/2019;1001;0;74;1;Spese correnti;3;Acquisto di beni e servizi;2;Acquisto di servizi;1;Organi e incarichi istituzionali dell'amministrazione;1;Organi istituzionali dell'amministrazione - Indennità;17/06/2019
488;1;0;69,72;69,72;SINI GIOVANNI MARIA; ;RIMBORSO FORFETTARIO AMMINISTRATORI GIUGNO;17/06/2019;1001;0;76;1;Spese correnti;3;Acquisto di beni e servizi;2;Acquisto di servizi;1;Organi e incarichi istituzionali dell'amministrazione;1;Organi istituzionali dell'amministrazione - Indennità;17/06/2019
489;1;0;92,96;92,96;DEFFENU ANNA MARIA; ;RIMBORSO FORFETTARIO AMMINISTRATORI GIUGNO;17/06/2019;1001;0;75;1;Spese correnti;3;Acquisto di beni e servizi;2;Acquisto di servizi;1;Organi e incarichi istituzionali dell'amministrazione;1;Organi istituzionali dell'amministrazione - Indennità;17/06/2019
490;1;0;465,12;465,12;TURRA GAVINA; ;rimborso spese viaggio aprile maggio;17/06/2019;1024;3;108;1;Spese correnti;3;Acquisto di beni e servizi;2;Acquisto di servizi;2;Organizzazione eventi, pubblicita` e servizi per trasferta;1;Rimborso per viaggio e trasloco;17/06/2019
492;1;0;190,11;190,11;MEF CASSA DEPOSITI; ;interessi 1 sem.2019;17/06/2019;1941;1;0;1;Spese correnti;7;Interessi passivi;5;Interessi su Mutui e altri finanziamenti a medio lungo termine;4;Interessi passivi su finanziamenti a medio lungo termine a Imprese;4;Interessi passivi a Cassa Depositi e Prestiti - Gestione Tesoro su mutui e altri finanziamenti a medio lungo termine;17/06/2019
493;1;0;517,79;517,79;MEF CASSA DEPOSITI; ;interessi 1 sem.2019;17/06/2019;1943;0;0;1;Spese correnti;7;Interessi passivi;5;Interessi su Mutui e altri finanziamenti a medio lungo termine;4;Interessi passivi su finanziamenti a medio lungo termine a Imprese;3;Interessi passivi a Cassa Depositi e Prestiti SPA su mutui e altri finanziamenti a medio lungo termine;17/06/2019
495;1;0;5.121,42;5.121,42;BANCO SARDEGNA; ;quota interessi 1 sem.2019;17/06/2019;1427;0;0;1;Spese correnti;7;Interessi passivi;5;Interessi su Mutui e altri finanziamenti a medio lungo termine;5;Interessi passivi su mutui e altri finanziamenti a medio lungo termine ad altri soggetti;999;Interessi passivi su mutui e altri finanziamenti a medio lungo termine ad altri soggetti;17/06/2019
497;1;0;1.481,58;1.481,58;PERSONALE DIVERSO (Confr.Allegato); ;STIPENDI MESE DI: GIUGNO 19;18/06/2019;1001;0;0;1;Spese correnti;3;Acquisto di beni e servizi;2;Acquisto di servizi;1;Organi e incarichi istituzionali dell'amministrazione;1;Organi istituzionali dell'amministrazione - Indennità;18/06/2019
498;1;0;125,94;125,94;TESORERIA PROVINCIALE DELLO STATO; ;VERS. IMPOSTE MESE: GIUGNO 19 PER I.R.A.P.;18/06/2019;1001;0;0;1;Spese correnti;3;Acquisto di beni e servizi;2;Acquisto di servizi;1;Organi e incarichi istituzionali dell'amministrazione;1;Organi istituzionali dell'amministrazione - Indennità;18/06/2019
526;1;0;1.958,80;1.958,80;PERSONALE DIVERSO (Confr.Allegato); ;LIQUIDAZIONE LAVORO STRAORDINARIO 26/05/2019;18/06/2019;1065;1;0;1;Spese correnti;3;Acquisto di beni e servizi;2;Acquisto di servizi;99;Altri servizi;4;Altre spese per consultazioni elettorali dell'ente;18/06/2019
527;1;0;166,5;632,69;TESORERIA PROVINCIALE DELLO STATO; ;RITENUTE IRAP SU STRAORDINARIO ELETTORALE;18/06/2019;1065;1;0;1;Spese correnti;3;Acquisto di beni e servizi;2;Acquisto di servizi;99;Altri servizi;4;Altre spese per consultazioni elettorali dell'ente;18/06/2019
527;2;0;466,19;632,69;TESORERIA PROVINCIALE DELLO STATO; ;RITENUTE CPDEL SU STRAORDINARIO ELETTORALE;18/06/2019;1065;1;0;1;Spese correnti;3;Acquisto di beni e servizi;2;Acquisto di servizi;99;Altri servizi;4;Altre spese per consultazioni elettorali dell'ente;18/06/2019
534;1;0;38,91;359,19;TELECOM ITALIA SPA;Z44276815E;SALDO Fatt.n. 8R00111595  del 06/06/2019 4BIM 2019;20/06/2019;1043;12;77;1;Spese correnti;3;Acquisto di beni e servizi;2;Acquisto di servizi;5;Utenze e canoni;1;Telefonia fissa;20/06/2019
534;2;0;45,66;359,19;TELECOM ITALIA SPA;Z44276815E;SALDO Fatt.n. 8R00110626  del 06/06/2019 4BIM 2019;20/06/2019;1043;12;77;1;Spese correnti;3;Acquisto di beni e servizi;2;Acquisto di servizi;5;Utenze e canoni;1;Telefonia fissa;20/06/2019
534;3;0;74,37;359,19;TELECOM ITALIA SPA;Z44276815E;SALDO Fatt.n. 8R00110666  del 06/06/2019 4BIM 2019;20/06/2019;1043;12;77;1;Spese correnti;3;Acquisto di beni e servizi;2;Acquisto di servizi;5;Utenze e canoni;1;Telefonia fissa;20/06/2019
534;4;0;87,61;359,19;TELECOM ITALIA SPA;Z44276815E;SALDO Fatt.n. 8R00110891  del 06/06/2019 4BIM 2019;20/06/2019;1043;12;77;1;Spese correnti;3;Acquisto di beni e servizi;2;Acquisto di servizi;5;Utenze e canoni;1;Telefonia fissa;20/06/2019
534;5;0;112,64;359,19;TELECOM ITALIA SPA;Z44276815E;SALDO Fatt.n. 8R00111119  del 06/06/2019 4BIM 2019;20/06/2019;1043;12;77;1;Spese correnti;3;Acquisto di beni e servizi;2;Acquisto di servizi;5;Utenze e canoni;1;Telefonia fissa;20/06/2019
535;1;0;102,44;102,44;TELECOM ITALIA SPA;Z44276815E;SALDO Fatt.n. 8R00112061  del 06/06/2019 4BIM 2019;20/06/2019;1476;1;78;1;Spese correnti;3;Acquisto di beni e servizi;2;Acquisto di servizi;5;Utenze e canoni;1;Telefonia fissa;20/06/2019
536;1;0;57,19;57,19;TELECOM ITALIA SPA;Z44276815E;SALDO Fatt.n. 8R00112300  del 06/06/2019 4BIM 2019;20/06/2019;1366;0;79;1;Spese correnti;3;Acquisto di beni e servizi;2;Acquisto di servizi;5;Utenze e canoni;1;Telefonia fissa;20/06/2019
539;1;0;992,25;992,25;AIRONE COOPERATIVA SOCIALE DI ASSISTENZA ONLUS;Z04256347E;SALDO Fatt.n. 810  del 03/05/2019 Fattura Cliente;20/06/2019;1043;3;0;1;Spese correnti;3;Acquisto di beni e servizi;2;Acquisto di servizi;4;Acquisto di servizi per formazione e addestramento del personale dell'ente;999;Acquisto di servizi per altre spese per formazione e addestramento n.a.c.;20/06/2019
541;1;0;18.150,00;18.150,00;CICLAT TRASPORTI AMBIENTE SOC.COOP.;7,63E+14;SALDO Fatt.n. 400 -P  del 31/05/2019 FATTURA;20/06/2019;1738;0;87;1;Spese correnti;3;Acquisto di beni e servizi;2;Acquisto di servizi;15;Contratti di servizio pubblico;5;Contratti di servizio per il conferimento in discarica dei rifiuti;20/06/2019
542;1;0;26,84;26,84;DITTA GASPARI;Z9E27BF25C;SALDO Fatt.n. 11018/S  del 31/05/2019;20/06/2019;1043;2;57;1;Spese correnti;3;Acquisto di beni e servizi;1;Acquisto di beni;2;Altri beni di consumo;14;Stampati specialistici;20/06/2019
543;1;0;280,6;280,6;DITTA GASPARI;Z8027AEB5A;SALDO Fatt.n. 10989/S  del 31/05/2019;20/06/2019;1043;2;44;1;Spese correnti;3;Acquisto di beni e servizi;1;Acquisto di beni;2;Altri beni di consumo;14;Stampati specialistici;20/06/2019
544;1;0;130;130;ANUSCA; ;quota associativa;20/06/2019;1060;0;112;1;Spese correnti;3;Acquisto di beni e servizi;2;Acquisto di servizi;99;Altri servizi;999;Altri servizi diversi n.a.c.;20/06/2019
546;1;0;527,04;527,04;DITTA GASPARI;Z05286283B;SALDO Fatt.n. 12930/S  del 20/06/2019;21/06/2019;1043;3;71;1;Spese correnti;3;Acquisto di beni e servizi;2;Acquisto di servizi;4;Acquisto di servizi per formazione e addestramento del personale dell'ente;4;Acquisto di servizi per formazione obbligatoria;21/06/2019
547;1;0;1.176,31;1.176,31;GIESSE FORNITURE S.R.L.;Z4028A37BE;SALDO Fatt.n. 2/122  del 25/06/2019 VENDITA;27/06/2019;1265;0;114;1;Spese correnti;3;Acquisto di beni e servizi;1;Acquisto di beni;2;Altri beni di consumo;4;Vestiario;27/06/2019
548;1;0;233,48;1.354,09;OMESSO NOMINATIVO NEL RISPETTO DELLA NORMATIVA SULLA PROTEZIONE DATI PERSONALI; ;l.162/98 maggio;27/06/2019;1927;3;106;1;Spese correnti;4;Trasferimenti correnti;2;Trasferimenti correnti a Famiglie;2;Interventi assistenziali;999;Altri assegni e sussidi assistenziali;27/06/2019
548;2;0;312,4;1.354,09;OMESSO NOMINATIVO NEL RISPETTO DELLA NORMATIVA SULLA PROTEZIONE DATI PERSONALI; ;l.162/98 maggio;27/06/2019;1927;3;106;1;Spese correnti;4;Trasferimenti correnti;2;Trasferimenti correnti a Famiglie;2;Interventi assistenziali;999;Altri assegni e sussidi assistenziali;27/06/2019
548;3;0;314,3;1.354,09;OMESSO NOMINATIVO NEL RISPETTO DELLA NORMATIVA SULLA PROTEZIONE DATI PERSONALI; ;l.162/98 maggio;27/06/2019;1927;3;106;1;Spese correnti;4;Trasferimenti correnti;2;Trasferimenti correnti a Famiglie;2;Interventi assistenziali;999;Altri assegni e sussidi assistenziali;27/06/2019
548;4;0;323,28;1.354,09;OMESSO NOMINATIVO NEL RISPETTO DELLA NORMATIVA SULLA PROTEZIONE DATI PERSONALI; ;l.162/98 maggio;27/06/2019;1927;3;106;1;Spese correnti;4;Trasferimenti correnti;2;Trasferimenti correnti a Famiglie;2;Interventi assistenziali;999;Altri assegni e sussidi assistenziali;27/06/2019
548;5;0;170,63;1.354,09;OMESSO NOMINATIVO NEL RISPETTO DELLA NORMATIVA SULLA PROTEZIONE DATI PERSONALI; ;l.162/98 maggio;27/06/2019;1927;3;106;1;Spese correnti;4;Trasferimenti correnti;2;Trasferimenti correnti a Famiglie;2;Interventi assistenziali;999;Altri assegni e sussidi assistenziali;27/06/2019
549;1;0;215,52;660,69;OMESSO NOMINATIVO NEL RISPETTO DELLA NORMATIVA SULLA PROTEZIONE DATI PERSONALI; ;l.162/98 MAGGIO;27/06/2019;1927;3;106;1;Spese correnti;4;Trasferimenti correnti;2;Trasferimenti correnti a Famiglie;2;Interventi assistenziali;999;Altri assegni e sussidi assistenziali;27/06/2019
549;2;0;218,68;660,69;OMESSO NOMINATIVO NEL RISPETTO DELLA NORMATIVA SULLA PROTEZIONE DATI PERSONALI; ;l.162/98 MAGGIO;27/06/2019;1927;3;106;1;Spese correnti;4;Trasferimenti correnti;2;Trasferimenti correnti a Famiglie;2;Interventi assistenziali;999;Altri assegni e sussidi assistenziali;27/06/2019
549;3;0;39,05;660,69;OMESSO NOMINATIVO NEL RISPETTO DELLA NORMATIVA SULLA PROTEZIONE DATI PERSONALI; ;l.162/98 MAGGIO;27/06/2019;1927;3;106;1;Spese correnti;4;Trasferimenti correnti;2;Trasferimenti correnti a Famiglie;2;Interventi assistenziali;999;Altri assegni e sussidi assistenziali;27/06/2019
549;4;0;187,44;660,69;OMESSO NOMINATIVO NEL RISPETTO DELLA NORMATIVA SULLA PROTEZIONE DATI PERSONALI; ;l.162/98 MAGGIO;27/06/2019;1927;3;106;1;Spese correnti;4;Trasferimenti correnti;2;Trasferimenti correnti a Famiglie;2;Interventi assistenziali;999;Altri assegni e sussidi assistenziali;27/06/2019
550;1;0;1.378,22;1.378,22;REGIONE AUTONOMA DELLA SARDEGNA; ;rimborso somme ble tongue;28/06/2019;1043;12;115;1;Spese correnti;3;Acquisto di beni e servizi;2;Acquisto di servizi;5;Utenze e canoni;999;Utenze e canoni per altri servizi n.a.c.;28/06/2019
551;1;0;52,94;52,94;FAIS GIUSEPPINA; ;RIMBORSO SOMME NON DOVUTE;28/06/2019;1029;0;116;1;Spese correnti;4;Trasferimenti correnti;2;Trasferimenti correnti a Famiglie;2;Interventi assistenziali;999;Altri assegni e sussidi assistenziali;28/06/2019
